Workbook

Sheet Instructions
B1: Inventaire des émissions de gaz à effet de serre
B3: À propos :
B4: L’outil d’inventaire des émissions de gaz à effet de serre (outil d’inventaire des GES) a été conçu comme un outil gratuit et accessible pour aider les services publics à élaborer un inventaire des émissions de GES le plus précis possible. Il est basé sur le travail effectué par l’Université de Toronto sous contrat avec la Ville de Toronto, tel que révisé par le groupe de travail sur l’inventaire des GES du comité mixte sur les changements climatiques de l’OWWA/WEAO. Cet outil a été conçu pour être utilisé par les services d’eau et d’eaux usées de l’Ontario, mais il peut être adapté à d’autres juridictions.
B6: Versions
B7: N° de version | C7: Date de publication | D7: Description
B8: 01 | C8: 2023-03-10 | D8: Première version pour le test bêta
B9: 02 | C9: 2023-04-17 | D9: Première publication officielle sur les sites de l’OWWA et de la WEAO
B10: 03 | C10: 2023-09-14 | D10: Corrections et mises à jour mineures – changements résumés dans le Guide de l’utilisateur
B11: 04 | C11: 2024-08-01 | D11: Ajouts, corrections et mises à jour – changements résumés dans le Guide de l’utilisateur
B13: Avertissement :
B14: Pour utiliser l’outil d’inventaire des GES et le guide de l’utilisateur qui l’accompagne, il faut accepter les conditions suivantes :
B15: 1) Toute personne qui télécharge ou utilise ce modèle de quelque manière que ce soit ne peut le vendre ou tirer profit de quelque manière que ce soit de sa vente, de sa distribution ou de son utilisation.
B16: 2) Ni l’OWWA ni la WEAO ne peuvent être tenues responsables des pertes qui pourraient subvenir directement ou indirectement du fait de l’utilisation de ce modèle. Les personnes qui utilisent ce modèle le font à leurs propres risques.
B18: Guide de l’utilisateur
B19: Cet outil est accompagné d’un guide de l’utilisateur à l’adresse suivante owwa.ca/commissions/changement-climatique
B20: Pour toute question ou tout commentaire concernant cet outil, veuillez envoyer un courriel à ghgtool@weaocommittee.org.
B22: Légende des onglets de la feuille de calcul :
B23: Ce fichier est organisé comme suit :
B25: ▪ | C25: Instructions
B26: ▪ | C26: Références
B27: ▪ | C27: Entrées (feuille rouge)
C28: Entrées
B30: ▪ | C30: Bilan (feuille grise)
C31: Bilan
B33: ▪ | C33: Émissions de portée 1 (feuille verte)
C34: Portée 1 - Procédés
C35: Portée 1 - Combustion
B37: ▪ | C37: Émissions de portée 2 (feuille turquoise)
C38: Portée 2 - Électricité
B40: ▪ | C40: Émissions de portée 3 (feuille bleue)
C41: Portée 3 - Électricité en amont
C42: Portée 3 - Carburant en amont
C43: Portée 3 - Biosolides
C44: Portée 3 - Produits chimiques
B46: Définitions et acronymes:
B47: CO2 = dioxyde de carbone
B48: N2O = oxyde nitreux
B49: CH4 = méthane
B50: CO2éq. = équivalent CO2
B51: Tonnes = tonnes métriques
B52: PRP = potentiel de réchauffement planétaire
B53: CE = coefficient d’émissions
B54: PCS = pouvoir calorifique supérieur
B55: DSM = déchets solides municipaux
B56: GIEC = Groupe d’experts intergouvernemental sur l’évolution du climat
B57: ACV = analyse du cycle de vie
B58: CTCG = du berceau au consommateur
B59: CTC = du berceau à la combustion
B60: TWAS = boues activées épaissies

Sheet Références
B1: RÉFÉRENCES
B3: Les « noms courts » ci-dessous sont utilisés dans la feuille Excel pour retracer l’origine des données de la documentation. Les liens sont inclus sur cette page uniquement, pour faciliter les mises à jour futures.
B5: Nom court | C5: Nom complet | D5: Lien (en anglais)
B6: BEAM 2011 | C6: Modèle d’évaluation des émissions associées aux biosolides 2011 | D6: https://ccme.ca/fr/res/beam_fr_revised_version_1.1.xls
B7: Guide de l’utilisateur du BEAM 2009 | C7: Guide de l’utilisateur du modèle d’évaluation des émissions associées aux biosolides 2011 | D7: https://www.ccme.ca/fr/res/meeb_guidef.pdf
B8: Guide valorisation des biosolides 2012 | C8: Guide pour la valorisation des biosolides municipaux, des boues municipales et des boues de fosses septiques traitées 2012 | D8: https://www.environnement.gouv.qc.ca/matieres/articles/boues-municipales-pol.pdf
B9: BEAM 2022 | C9: Biosolids Emissions Assessment Model 2022 | D9: https://www.biosolidsghgs.org/
B10: Canada Fuel LCA Model 2024 | C10: Base de données du modèle ACV des combustibles du Canada 2024 juin 2024 | D10: https://www.canada.ca/fr/environnement-changement-climatique/services/gestion-pollution/modele-analyse-cycle-vie-combustibles.html
B11: Canada Fuel LCA Methodology 2020 | C11: Méthodologie du modèle ACV des combustibles du Canada 2020 | D11: https://publications.gc.ca/collections/collection_2020/eccc/En4-418-2020-fra.pdf
B12: Canada GHG Requirements 2023 | C12: Programme de déclaration des gaz à effet de serre du Canada – Exigences relatives à la quantification 2023 | D12: https://publications.gc.ca/collections/collection_2023/eccc/En81-28-2023-fra.pdf
B13: IPCC 2006 | C13: Lignes directrices 2006 du GIEC pour les inventaires nationaux de gaz à effet de serre | D13: https://www.ipcc-nggip.iges.or.jp/public/2006gl/french/vol5.html
B14: IPCC 2007 | C14: Changements climatiques 2007 : Les éléments scientifiques. Contribution du Groupe de travail I au sixième Rapport d’évaluation du Groupe d’experts intergouvernemental sur l’évolution du climat, 2007 | D14: https://www.ipcc.ch/site/assets/uploads/2020/02/ar4-wg1-sum-vol-fr.pdf
B15: IPCC 2013 | C15: Changements climatiques 2013 : Les éléments scientifiques. Contribution du Groupe de travail I au sixième Rapport d’évaluation du Groupe d’experts intergouvernemental sur l’évolution du climat, 2013 | D15: https://archive.ipcc.ch/pdf/assessment-report/ar5/wg1/WG1AR5_SummaryVolume_FINAL_FRENCH.pdf
B16: IPCC 2019 | C16: Révision 2019 de l’édition 2006 des Lignes directrices du GIEC pour les inventaires nationaux de gaz à effet de serre 2019 (disponible en anglais seulement) | D16: https://www.ipcc-nggip.iges.or.jp/public/2019rf/pdf/5_Volume5/19R_V5_6_Ch06_Wastewater.pdf
B17: IPCC 2021 | C17: Changement climatique 2021 : Les bases scientifiques physiques. Contribution du Groupe de travail I au sixième Rapport d’évaluation du Groupe d’experts intergouvernemental sur l’évolution du climat, 2021 | D17: https://www.ipcc.ch/report/ar6/wg1/downloads/report/IPCC_AR6_WG1_SPM_French.pdf
B18: MECP ON.20 2019 | C18: Ontario Ministry of the Environment and Climate Change- Guideline for Greenhouse Gas Reporting 2019, Appendix 10 - ON.20 General Stationary Combustion | D18: https://prod-environmental-registry.s3.amazonaws.com/2019-04/Guideline%20for%20QRV%20of%20GHG%20Emissions%20April%202019%20Final%20Clean_0.pdf
B19: NIR 2024 | C19: Rapport d’inventaire national du Canada 1990-2022 | D19: https://publications.gc.ca/site/eng/9.502402/publication.html
B20: US EPA AP-42 | C20: US EPA AP-42: Compilation of Air Emissions Factors | D20: https://www3.epa.gov/ttnchie1/ap42/ch13/final/c13s05.pdf

Sheet Entrées
B1: Inventaire des émissions de GES – Entrées | S1: NE PAS SUPPRIMER OU MODIFIER LES CELLULES DANS LES COLONNES AU-DELÀ DE LA COLONNE ROUGE. ELLES SONT UTILISÉES COMME CALCULS INTERNES POUR LE FORMATAGE ET LES LISTES.
S2: LES COLONNES AU-DELÀ DE LA COLONNE ROUGE NE DOIVENT PAS ÊTRE IMPRIMÉES POUR LES SORTIES.
B3: LÉGENDE
B4: Données spécifiques aux services publics
B5: Valeur adoptée par le service public
B6: Entrée par défaut, plage type ou valeur adaptée de la documentation
B7: Rendement calculé sur la base de données spécifiques aux services publics
B9: DONNÉES SPÉCIFIQUES AUX SERVICES PUBLICS
B10: Nom du service public
B11: Période d’inventaire
B12: Population desservie
B15: RENSEIGNEMENTS GÉNÉRAUX SUR LES SERVICES PUBLICS | D15: Unités | E15: Valeur de l’entrée
B16: Type d’installation/système | E16: TRAITEMENT DES EAUX USÉES | I16: COLLECTE DES EAUX USÉES | J16: APPROVISIONNEMENT EN EAU | N16: DISTRIBUTION D’EAU | O16: SYSTÈMES DE SOUTIEN | P16: RÉFÉRENCE GÉNÉRIQUE | Q16: NOTES DE L'UTILISATEUR
B17: Nom de l’installation/système | E17: STEU1 | F17: STEU2 | G17: STEU3 | H17: STEU4 | I17: Collecte | J17: STE1 | K17: STE2 | L17: STE3 | M17: STE4 | N17: Distribution | O17: Inst. sout.
B19: INFO INST. EAU | J19: STE1 | K19: STE2 | L19: STE3 | M19: STE4
C20: Débit journalier moyen annuel | D20: m3/jour
B22: INFO INST. EAUX USÉES | E22: =IF(WWTP1="","",WWTP1) -> STEU1 | F22: =IF(WWTP2="","",WWTP2) -> STEU2 | G22: =IF(WWTP3="","",WWTP3) -> STEU3 | H22: =IF(WWTP4="","",WWTP4) -> STEU4
B23: F in | C23: Débit moyen annuel de l’influent de la station | D23: m3/jour
B24: F bypass | C24: Moyenne annuelle du débit de dérivation du traitement secondaire | D24: m3/an
D25: m3/jour | E25: =E24/365 -> 0 | F25: =F24/365 -> 0 | G25: 0 | H25: 0
B26: FEff | C26: Moyenne annuelle du débit de l’effluent du traitement secondaire | D26: m3/jour
B27: Flag,ANA,in | C27: Volume annuel dans les étangs anaérobies | D27: m3/an
B28: Flag,AERin | C28: Volume annuel dans les étangs aérobies/aérés | D28: m3/an
B29: Flag,FAC,in | C29: Volume annuel dans les étangs facultatives ou non spécifiées | D29: m3/an
B31: PORTÉE 1 – ÉMISSIONS DE MÉTHANE ET D’OXYDE NITREUX PROVENANT DES EAUX USÉES DOMESTIQUES | E31: =IF(WWTP1="","",WWTP1) -> STEU1 | F31: =IF(WWTP2="","",WWTP2) -> STEU2 | G31: =IF(WWTP3="","",WWTP3) -> STEU3 | H31: =IF(WWTP4="","",WWTP4) -> STEU4 | I31: Entrée par défaut
B32: C BOD in | C32: Concentration de demande biochimique en oxygène (DBO5 dans les formules) dans l’influent de l’usine | D32: mgDBO/L
B33: C BOD eff,prim | C33: Concentration de DBO5 dans l’influent secondaire | D33: mgDBO/L
B34: C BOD eff | C34: Concentration de DBO5 dans l’effluent secondaire | D34: mgDBO/L
B35: C BOD bypass | C35: Concentration de DBO5 de dérivation secondaire | D35: mgDBO/L
B36: C BOD lag,ANA,in | C36: Concentration de DBO5 dans l’influent d'étangs secondaires | D36: mgDBO/L
B37: C BOD lag,ANA,eff | C37: Concentration de DBO5 dans l’effluent d'étangs anaérobies | D37: mgDBO/L
B38: C BOD lag,AER,in | C38: Concentration de DBO5 dans l’influent d'étangs aérobies/aérés secondaires | D38: mgDBO/L
B39: C BOD lag,AER,eff | C39: Concentration de DBO5 dans l’effluent d'étangs aérobies/aérés | D39: mgDBO/L
B40: C BOD lag,FAC,in | C40: Concentration de DBO5 dans l’influent d'étangs facultatives ou non spécifiées | D40: mgDBO/L
B41: C BOD lag,FAC,eff | C41: Concentration de DBO5 dans l’effluent d'étangs facultatives ou non spécifiées | D41: mgDBO/L
C42: Boues primaires à la digestion | D42: m3/jour
C43: Boues activées épaissies (TWAS) à la digestion | D43: m3/jour
C44: Concentration totale de solides dans les boues primaires | D44: %
C45: Concentration totale de solides volatiles dans les boues primaires | D45: %
C46: Concentration totale de solides dans les TWAS | D46: %
C47: Concentration totale de solides volatiles dans les TWAS | D47: %
B48: Smass_PS | C48: Masse sèche des boues primaires à la digestion | D48: kg de boues sèches/an | E48: =+(E42*E44*1000)*365 -> 0 | F48: =+(F42*F44*1000)*365 -> 0 | G48: 0 | H48: 0
C49: Masse sèche de solides volatils primaires à la digestion | D49: kg de boues sèches/an | E49: =+E48*E45 -> 0 | F49: =+F48*F45 -> 0 | G49: =+G48*G45 -> 0 | H49: =+H48*H45 -> 0
B50: Smass_WAS | C50: Masse sèche des boues secondaires à la digestion | D50: kg de boues sèches/an | E50: =+(E43*E46*1000)*1*365 -> 0 | F50: =+(F43*F46*1000)*1*365 -> 0 | G50: 0 | H50: 0
C51: Masse sèche de solides volatils secondaires à la digestion | D51: kg de boues sèches/an | E51: =+E50*E47 -> 0 | F51: =+F50*F47 -> 0 | G51: 0 | H51: 0
B53: C N in | C53: Concentration moyenne d’azote total dans l’inffluent d’eaux usées | D53: mgN/L
B54: C N eff_treat | C54: Concentration moyenne d’azote total dans l’effluent du traitement secondaire | D54: mgN/L
B55: C N eff_bypass | C55: Concentration moyenne d’azote total dans la dérivation du traitement secondaire | D55: mgN/L
B56: erem,prim | C56: Pourcentage d’enlèvement de DBO5 du traitement primaire | D56: % DBO retirée | E56: =$I$56 -> 0.33 | F56: =$I$56 -> 0.33 | G56: 0.33 | H56: 0.33 | I56: 0.33 | P56: Metcalf & Eddy, Wastewater Engineering, Treatment and Reuse, 4th Edition, 2003
B57: erem,sec | C57: Pourcentage d’enlèvement de DBO5 du traitement secondaire | D57: % DBO retirée | E57: =IF(ISNUMBER(E33),(E33-E34)/E33,$I$57) -> 0.95 | F57: =IF(ISNUMBER(F33),(F33-F34)/F33,$I$57) -> 0.95 | G57: =IF(ISNUMBER(G33),(G33-G34)/G33,$I$57) -> 0.95 | H57: =IF(ISNUMBER(H33),(H33-H34)/H33,$I$57) -> 0.95 | I57: 0.95 | P57: NIR2024, Partie 2, Tableau A3.6-14 | U57: Type de rejet d'effluent
B58: erem,lag,ANA | C58: Pourcentage d’enlèvement de DBO5 dans le traitement d'étangs anaérobies | D58: % DBO retirée | E58: =IF(ISNUMBER(E37),(E36-E37)/E36,$I$58) -> 0.85 | F58: =IF(ISNUMBER(F37),(F36-F37)/F36,$I$58) -> 0.85 | G58: =IF(ISNUMBER(G37),(G36-G37)/G36,$I$58) -> 0.85 | H58: =IF(ISNUMBER(H37),(H36-H37)/H36,$I$58) -> 0.85 | I58: 0.85 | P58: NIR2024, Partie 2, Tableau A3.6-14 | U58: Type de rejet d'effluent
B59: erem,lag,AER | C59: Pourcentage d’enlèvement de DBO5 dans le traitement d'étangs aérobies/aérés | D59: % DBO retirée | E59: =IF(ISNUMBER(E39),(E38-E39)/E38,$I$58) -> 0.85 | F59: =IF(ISNUMBER(F39),(F38-F39)/F38,$I$58) -> 0.85 | G59: =IF(ISNUMBER(G39),(G38-G39)/G38,$I$58) -> 0.85 | H59: =IF(ISNUMBER(H39),(H38-H39)/H38,$I$58) -> 0.85 | I59: 0.85 | P59: NIR2024, Partie 2, Tableau A3.6-14 | U59: Type de rejet d'effluent
B60: erem,lag,FAC | C60: Pourcentage d’enlèvement de DBO5 dans le traitement d'étangs facultatives ou non spécifiées | D60: % DBO retirée | E60: =IF(ISNUMBER(E41),(E40-E41)/E40,$I$58) -> 0.85 | F60: =IF(ISNUMBER(F41),(F40-F41)/F40,$I$58) -> 0.85 | G60: =IF(ISNUMBER(G41),(G40-G41)/G40,$I$58) -> 0.85 | H60: =IF(ISNUMBER(H41),(H40-H41)/H40,$I$58) -> 0.85 | I60: 0.85 | P60: NIR2024, Partie 2, Tableau A3.6-14 | U60: Type de rejet d'effluent
C61: Type de rejet d’effluents | D61: – | E61: Inconnu | F61: Inconnu | G61: Inconnu | H61: Inconnu | U61: Inconnu
U62: Rivières/criques
B63: PORTÉE 1 – GAZ DE DIGESTEUR | E63: =IF(WWTP1="","",WWTP1) -> STEU1 | F63: =IF(WWTP2="","",WWTP2) -> STEU2 | G63: =IF(WWTP3="","",WWTP3) -> STEU3 | H63: =IF(WWTP4="","",WWTP4) -> STEU4 | U63: Lacs/réservoirs
B64: VDG | C64: Volume journalier moyen annuel de gaz de digesteur (mesuré) | D64: m3/jour
B65: dboiler | C65: Gaz de digesteur brûlé dans des chaudières (% du volume annuel) | D65: %
B66: dcogen | C66: Gaz de digesteur brûlé dans des dispositifs de cogénération (% du volume annuel) | D66: %
B67: dflare | C67: Gaz de digesteur brûlé à la torche (% du volume annuel) | D67: % | E67: =1-E65-E66 -> 1 | F67: =1-F65-F66 -> 1 | G67: 1 | H67: 1
B68: CCH4 | C68: Concentration de CH4 dans le gaz de digesteur | D68: % | E68: 0.65 | F68: 0.65 | G68: 0.65 | H68: 0.65 | I68: 60%-70% | P68: Metcalf & Eddy, Wastewater Engineering, Treatment and Reuse, 4th Edition, 2003 and professional judgement
B69: CCH4 | C69: Concentration de CH4 dans le gaz de digesteur | D69: kgCH4/L | E69: =(E68*$E$217)/1000 -> 0.00042835 | F69: =(F68*$E$217)/1000 -> 0.00042835 | G69: =(G68*$E$217)/1000 -> 0.00042835 | H69: =(H68*$E$217)/1000 -> 0.00042835
B70: p | C70: Pourcentage d’émissions fugitives du digesteur | D70: % | E70: 0.021 | F70: 0.021 | G70: 0.021 | H70: 0.021 | I70: 0-10% | P70: NIR2024, Partie 2, section A3.6.2.2.1
B72: PORTÉE 1 – INCINÉRATION DES BOUES | E72: =IF(WWTP1="","",WWTP1) -> STEU1 | F72: =IF(WWTP2="","",WWTP2) -> STEU2 | G72: =IF(WWTP3="","",WWTP3) -> STEU3 | H72: =IF(WWTP4="","",WWTP4) -> STEU4
C73: Quantité de biosolides secs incinérés | D73: t bouessèches/an
C74: Pourcentage du total des solides de gâteau de biosolides | D74: %
C75: Quantité de biosolides humides incinérés | D75: tboueshumides/an | E75: =IF(OR(E74="",E73=""),"",E73/E74) ->  | F75: =IF(OR(F74="",F73=""),"",F73/F74) -> 
B77: PORTÉE 1 – COMBUSTION DU CARBURANT | E77: =IF(WWTP1="","",WWTP1) -> STEU1 | F77: =IF(WWTP2="","",WWTP2) -> STEU2 | G77: =IF(WWTP3="","",WWTP3) -> STEU3 | H77: =IF(WWTP4="","",WWTP4) -> STEU4 | I77: =IF(WWCollection="","",WWCollection) -> Collecte | J77: =IF(WTP1_="","",WTP1_) -> STE1 | K77: =IF(WTP2_="","",WTP2_) -> STE2 | L77: =IF(WTP3_="","",WTP3_) -> STE3 | M77: =IF(WTP4_="","",WTP4_) -> STE4 | N77: =IF(WDistr="","",WDistr) -> Distribution | O77: =IF(SuppFac="","",SuppFac) -> Inst. sout. | Q77: Notes de l'utilisateur
B78: VNG | C78: Consommation annuelle de gaz naturel | D78: m3/an
B79: VLFO | C79: Consommation annuelle de mazout léger (n° 2) | D79: L/an
B80: Vfacility, diesel | C80: Volume de diesel livré à l’installation | D80: L/an
B81: Vfacility, propane | C81: Volume de propane livré à l’installation | D81: L/an
B83: PORTÉE 1 – ÉMISSIONS DE LA COMBUSTION DE LA FLOTTE DE VÉHICULES
B84: Vfleet, diesel | C84: Consommation annuelle de diesel flotte de véhicules | D84: L/an
B85: Vfleet, gasoline | C85: Consommation annuelle d’essence flotte de véhicules | D85: L/an
B86: Vfleet, biodiesel | C86: Consommation annuelle de biodiesel flotte de véhicules | D86: L/an
B88: PORTÉE 2 – CONSOMMATION D’ÉLECTRICITÉ SUR PLACE DANS CHAQUE INSTALLATION | E88: =IF(WWTP1="","",WWTP1) -> STEU1 | F88: =IF(WWTP2="","",WWTP2) -> STEU2 | G88: =IF(WWTP3="","",WWTP3) -> STEU3 | H88: =IF(WWTP4="","",WWTP4) -> STEU4 | I88: =IF(WWCollection="","",WWCollection) -> Collecte | J88: =IF(WTP1_="","",WTP1_) -> STE1 | K88: =IF(WTP2_="","",WTP2_) -> STE2 | L88: =IF(WTP3_="","",WTP3_) -> STE3 | M88: =IF(WTP4_="","",WTP4_) -> STE4 | N88: =IF(WDistr="","",WDistr) -> Distribution | O88: =IF(SuppFac="","",SuppFac) -> Inst. sout.
B89: Velec | C89: Consommation annuelle d’électricité | D89: kWh/an
B91: PORTÉE 3 – GESTION DES BIOSOLIDES (BEAM)
B92: Remarque : Cet outil a été conçu pour accepter les données des modèles d’évaluation des émissions associées aux biosolides (BEAM) largement adoptés (BEAM 2011 ou BEAM 2022) pour les émissions liées à la gestion des biosolides. Veuillez consulter le guide de l’utilisateur pour obtenir des renseignements et des conseils plus détaillés. Les liens BEAM se trouvent dans l’onglet « Références ».
B93: Ne saisissez les données BEAM que dans la zone de saisie correspondant à l’approche d’inventaire que vous avez choisie. Par exemple, si vous choisissez BEAM 2022 dans la liste déroulante ci-dessous, ne saisissez des données que dans la zone de saisie BEAM 2022 ci-dessous. L’autre zone d’entrée peut être ignorée.
T94: BEAM 2011 | U94: Copiez et collez les valeurs de l’onglet « Entrées DETE - Totaux CO2 éq. », colonne H intitulée « Total », lignes 25 à 30 pour chaque scénario BEAM correspondant à chaque STEU.
C95: Choisir une méthode d’inventaire pour les biosolides | E95: BEAM 2011 | H95: Voir les notes importantes dans le guide de l’utilisateur sur le maintien de la cohérence des PRP entre BEAM et cet outil d’inventaire. | T95: BEAM 2022 | U95: Copier et coller les valeurs de l’onglet « Entrées DSM et Résultats », lignes 26 à 38 pour chaque scénario BEAM correspondant à chaque STEU.
T96: Ne pas inclure
C97: BEAM 2011 | E97: =U94 -> Copiez et collez les valeurs de l’onglet « Entrées DETE - Totaux CO2 éq. », colonne H intitulée « Total », lignes 25 à 30 pour chaque scénario BEAM correspondant à chaque STEU. | T97: =IF(T94=E95,TRUE()) -> TRUE
C98: Unité de procédé | E98: =IF(WWTP1="","",WWTP1) -> STEU1 | F98: =IF(WWTP2="","",WWTP2) -> STEU2 | G98: =IF(WWTP3="","",WWTP3) -> STEU3 | H98: =IF(WWTP4="","",WWTP4) -> STEU4
C99: Stabilisation alcaline | D99: MgCO2éq./an
C100: Compostage | D100: MgCO2éq./an
C101: Enfouissement | D101: MgCO2éq./an
C102: Combustion | D102: MgCO2éq./an
C103: Épandage | D103: MgCO2éq./an
C104: Transport | D104: MgCO2éq./an
C106: BEAM 2022 | E106: =U95 -> Copier et coller les valeurs de l’onglet « Entrées DSM et Résultats », lignes 26 à 38 pour chaque scénario BEAM correspondant à chaque STEU. | T106: =IF(T95=E95,TRUE()) -> FALSE
C107: Unité de procédé | E107: =IF(WWTP1="","",WWTP1) -> STEU1 | F107: =IF(WWTP2="","",WWTP2) -> STEU2 | G107: =IF(WWTP3="","",WWTP3) -> STEU3 | H107: =IF(WWTP4="","",WWTP4) -> STEU4
C108: Stabilisation alcaline | D108: MgCO2éq./an
C109: Compostage | D109: MgCO2éq./an
C110: Compostage 2 | D110: MgCO2éq./an
C111: Enfouissement – Typique | D111: MgCO2éq./an
C112: Enfouissement – Pire cas | D112: MgCO2éq./an
C113: Enfouissement – Important | D113: MgCO2éq./an
C114: Élimination des déchets – Réglementation CA | D114: MgCO2éq./an
C115: Combustion | D115: MgCO2éq./an
C116: Pyrolyse | D116: MgCO2éq./an
C117: Épandage | D117: MgCO2éq./an
C118: Épandage 2 | D118: MgCO2éq./an
C119: Émissions diverses | D119: MgCO2éq./an
C120: Transport | D120: MgCO2éq./an
B122: PORTÉE 3 – CONSOMMATION DE PRODUITS CHIMIQUES DANS CHAQUE INSTALLATION
B123: Mchem | C123: Masse annuelle de produits chimiques consommés | E123: =IF(WWTP1="","",WWTP1) -> STEU1 | F123: =IF(WWTP2="","",WWTP2) -> STEU2 | G123: =IF(WWTP3="","",WWTP3) -> STEU3 | H123: =IF(WWTP4="","",WWTP4) -> STEU4 | I123: =IF(WWCollection="","",WWCollection) -> Collecte | J123: =IF(WTP1_="","",WTP1_) -> STE1 | K123: =IF(WTP2_="","",WTP2_) -> STE2 | L123: =IF(WTP3_="","",WTP3_) -> STE3 | M123: =IF(WTP4_="","",WTP4_) -> STE4 | N123: =IF(WDistr="","",WDistr) -> Distribution | O123: =IF(SuppFac="","",SuppFac) -> Inst. sout. | Q123: Notes de l'utilisateur
C124: Produit chimique 1 | D124: kg/an | T124: =IF(SUM(E124:O124)>0,TRUE()) -> FALSE | V124: =IF(E124>0,TRUE()) -> FALSE | W124: =IF(F124>0,TRUE()) -> FALSE | X124: =IF(G124>0,TRUE()) -> FALSE | Y124: =IF(H124>0,TRUE()) -> FALSE | Z124: =IF(I124>0,TRUE()) -> FALSE | AA124: FALSE | AB124: FALSE | AC124: FALSE | AD124: FALSE | AE124: FALSE | AF124: FALSE
C125: Produit chimique 2 | D125: kg/an | T125: FALSE | V125: FALSE | W125: FALSE | X125: FALSE | Y125: FALSE | Z125: =IF(I125>0,TRUE()) -> FALSE | AA125: =IF(J125>0,TRUE()) -> FALSE | AB125: =IF(K125>0,TRUE()) -> FALSE | AC125: =IF(L125>0,TRUE()) -> FALSE | AD125: =IF(M125>0,TRUE()) -> FALSE | AE125: =IF(N125>0,TRUE()) -> FALSE | AF125: =IF(O125>0,TRUE()) -> FALSE
C126: Produit chimique 3 | D126: kg/an | T126: FALSE | V126: FALSE | W126: FALSE | X126: FALSE | Y126: FALSE | Z126: FALSE | AA126: FALSE | AB126: FALSE | AC126: FALSE | AD126: FALSE | AE126: FALSE | AF126: FALSE
C127: Produit chimique 4 | D127: kg/an | T127: FALSE | V127: FALSE | W127: FALSE | X127: FALSE | Y127: FALSE | Z127: FALSE | AA127: FALSE | AB127: FALSE | AC127: FALSE | AD127: FALSE | AE127: FALSE | AF127: FALSE
C128: Produit chimique 5 | D128: kg/an | T128: FALSE | V128: FALSE | W128: FALSE | X128: FALSE | Y128: FALSE | Z128: FALSE | AA128: FALSE | AB128: FALSE | AC128: FALSE | AD128: FALSE | AE128: FALSE | AF128: FALSE
C129: Produit chimique 6 | D129: kg/an | T129: FALSE | V129: FALSE | W129: FALSE | X129: FALSE | Y129: FALSE | Z129: FALSE | AA129: FALSE | AB129: FALSE | AC129: FALSE | AD129: FALSE | AE129: FALSE | AF129: FALSE
C130: Produit chimique 7 | D130: kg/an | T130: FALSE | V130: FALSE | W130: FALSE | X130: FALSE | Y130: FALSE | Z130: FALSE | AA130: FALSE | AB130: FALSE | AC130: FALSE | AD130: FALSE | AE130: FALSE | AF130: FALSE
C131: Produit chimique 8 | D131: kg/an | T131: FALSE | V131: FALSE | W131: FALSE | X131: FALSE | Y131: FALSE | Z131: FALSE | AA131: FALSE | AB131: FALSE | AC131: FALSE | AD131: FALSE | AE131: FALSE | AF131: FALSE
C132: Produit chimique 9 | D132: kg/an | T132: FALSE | V132: FALSE | W132: FALSE | X132: FALSE | Y132: FALSE | Z132: FALSE | AA132: FALSE | AB132: FALSE | AC132: FALSE | AD132: FALSE | AE132: FALSE | AF132: FALSE
C133: Produit chimique 10 | D133: kg/an | T133: FALSE | V133: FALSE | W133: FALSE | X133: FALSE | Y133: FALSE | Z133: FALSE | AA133: FALSE | AB133: FALSE | AC133: FALSE | AD133: FALSE | AE133: FALSE | AF133: FALSE
C134: Produit chimique 11 | D134: kg/an | T134: FALSE | V134: FALSE | W134: FALSE | X134: FALSE | Y134: FALSE | Z134: FALSE | AA134: FALSE | AB134: FALSE | AC134: FALSE | AD134: FALSE | AE134: FALSE | AF134: FALSE
C135: Produit chimique 12 | D135: kg/an | T135: FALSE | V135: FALSE | W135: FALSE | X135: FALSE | Y135: FALSE | Z135: FALSE | AA135: FALSE | AB135: FALSE | AC135: FALSE | AD135: FALSE | AE135: FALSE | AF135: FALSE
C136: Produit chimique 13 | D136: kg/an | T136: FALSE | V136: FALSE | W136: FALSE | X136: FALSE | Y136: FALSE | Z136: FALSE | AA136: FALSE | AB136: FALSE | AC136: FALSE | AD136: FALSE | AE136: FALSE | AF136: FALSE
C137: Produit chimique 14 | D137: kg/an | T137: FALSE | V137: FALSE | W137: FALSE | X137: FALSE | Y137: FALSE | Z137: FALSE | AA137: FALSE | AB137: FALSE | AC137: FALSE | AD137: FALSE | AE137: FALSE | AF137: FALSE
C138: Produit chimique 15 | D138: kg/an | T138: FALSE | V138: FALSE | W138: FALSE | X138: FALSE | Y138: FALSE | Z138: FALSE | AA138: FALSE | AB138: FALSE | AC138: FALSE | AD138: FALSE | AE138: FALSE | AF138: FALSE
C139: Produit chimique 16 | D139: kg/an | T139: FALSE | V139: FALSE | W139: FALSE | X139: FALSE | Y139: FALSE | Z139: FALSE | AA139: FALSE | AB139: FALSE | AC139: FALSE | AD139: FALSE | AE139: FALSE | AF139: FALSE
C140: Produit chimique 17 | D140: kg/an | T140: FALSE | V140: FALSE | W140: FALSE | X140: FALSE | Y140: FALSE | Z140: =IF(I140>0,TRUE()) -> FALSE | AA140: =IF(J140>0,TRUE()) -> FALSE | AB140: =IF(K140>0,TRUE()) -> FALSE | AC140: =IF(L140>0,TRUE()) -> FALSE | AD140: =IF(M140>0,TRUE()) -> FALSE | AE140: =IF(N140>0,TRUE()) -> FALSE | AF140: FALSE
C141: Produit chimique 18 | D141: kg/an | T141: FALSE | V141: FALSE | W141: FALSE | X141: FALSE | Y141: FALSE | Z141: FALSE | AA141: FALSE | AB141: FALSE | AC141: FALSE | AD141: FALSE | AE141: FALSE | AF141: FALSE
C142: Produit chimique 19 | D142: kg/an | T142: FALSE | V142: FALSE | W142: FALSE | X142: FALSE | Y142: FALSE | Z142: FALSE | AA142: FALSE | AB142: FALSE | AC142: FALSE | AD142: FALSE | AE142: FALSE | AF142: FALSE
C143: Produit chimique 20 | D143: kg/an | T143: FALSE | V143: FALSE | W143: FALSE | X143: FALSE | Y143: FALSE | Z143: FALSE | AA143: FALSE | AB143: FALSE | AC143: FALSE | AD143: FALSE | AE143: FALSE | AF143: FALSE
B144: Dtruck | C144: Distance parcourue par le camion entre le fournisseur et le site (trajet aller-retour) | E144: =IF(WWTP1="","",WWTP1) -> STEU1 | F144: =IF(WWTP2="","",WWTP2) -> STEU2 | G144: =IF(WWTP3="","",WWTP3) -> STEU3 | H144: =IF(WWTP4="","",WWTP4) -> STEU4 | I144: =IF(WWCollection="","",WWCollection) -> Collecte | J144: =IF(WTP1_="","",WTP1_) -> STE1 | K144: =IF(WTP2_="","",WTP2_) -> STE2 | L144: =IF(WTP3_="","",WTP3_) -> STE3 | M144: =IF(WTP4_="","",WTP4_) -> STE4 | N144: =IF(WDistr="","",WDistr) -> Distribution | O144: =IF(SuppFac="","",SuppFac) -> Inst. sout. | Q144: Notes de l'utilisateur | T144: =TRUE -> TRUE | U144: =TRUE -> TRUE
C145: =C124 -> Produit chimique 1 | D145: km | T145: =T124 -> FALSE | U145: =IF(SUM(E145:O145)>0,TRUE()) -> FALSE
C146: Produit chimique 2 | D146: km | T146: =T125 -> FALSE | U146: FALSE
C147: Produit chimique 3 | D147: km | T147: FALSE | U147: FALSE
C148: Produit chimique 4 | D148: km | T148: FALSE | U148: FALSE
C149: Produit chimique 5 | D149: km | T149: FALSE | U149: FALSE
C150: Produit chimique 6 | D150: km | T150: FALSE | U150: FALSE
C151: Produit chimique 7 | D151: km | T151: FALSE | U151: FALSE
C152: Produit chimique 8 | D152: km | T152: FALSE | U152: FALSE
C153: Produit chimique 9 | D153: km | T153: FALSE | U153: FALSE
C154: Produit chimique 10 | D154: km | T154: FALSE | U154: FALSE
C155: Produit chimique 11 | D155: km | T155: FALSE | U155: FALSE
C156: Produit chimique 12 | D156: km | T156: FALSE | U156: FALSE
C157: Produit chimique 13 | D157: km | T157: FALSE | U157: FALSE
C158: Produit chimique 14 | D158: km | T158: FALSE | U158: FALSE
C159: Produit chimique 15 | D159: km | T159: FALSE | U159: FALSE
C160: Produit chimique 16 | D160: km | T160: FALSE | U160: FALSE
C161: Produit chimique 17 | D161: km | T161: FALSE | U161: FALSE
C162: Produit chimique 18 | D162: km | T162: FALSE | U162: FALSE
C163: Produit chimique 19 | D163: km | T163: FALSE | U163: FALSE
C164: Produit chimique 20 | D164: km | T164: FALSE | U164: FALSE
B165: Dtrain | C165: Distance parcourue par le train entre le fournisseur et le site (trajet aller-retour) | E165: =IF(WWTP1="","",WWTP1) -> STEU1 | F165: =IF(WWTP2="","",WWTP2) -> STEU2 | G165: =IF(WWTP3="","",WWTP3) -> STEU3 | H165: =IF(WWTP4="","",WWTP4) -> STEU4 | I165: =IF(WWCollection="","",WWCollection) -> Collecte | J165: =IF(WTP1_="","",WTP1_) -> STE1 | K165: =IF(WTP2_="","",WTP2_) -> STE2 | L165: =IF(WTP3_="","",WTP3_) -> STE3 | M165: =IF(WTP4_="","",WTP4_) -> STE4 | N165: =IF(WDistr="","",WDistr) -> Distribution | O165: =IF(SuppFac="","",SuppFac) -> Inst. sout. | Q165: Notes de l'utilisateur | T165: =TRUE -> TRUE | U165: =TRUE -> TRUE
C166: =C124 -> Produit chimique 1 | D166: km | T166: =T124 -> FALSE | U166: =IF(SUM(E166:O166)>0,TRUE()) -> FALSE
C167: Produit chimique 2 | D167: km | T167: =T125 -> FALSE | U167: FALSE
C168: Produit chimique 3 | D168: km | T168: FALSE | U168: FALSE
C169: Produit chimique 4 | D169: km | T169: FALSE | U169: FALSE
C170: Produit chimique 5 | D170: km | T170: FALSE | U170: FALSE
C171: Produit chimique 6 | D171: km | T171: FALSE | U171: FALSE
C172: Produit chimique 7 | D172: km | T172: FALSE | U172: FALSE
C173: Produit chimique 8 | D173: km | T173: FALSE | U173: FALSE
C174: Produit chimique 9 | D174: km | T174: FALSE | U174: FALSE
C175: Produit chimique 10 | D175: km | T175: FALSE | U175: FALSE
C176: Produit chimique 11 | D176: km | T176: FALSE | U176: FALSE
C177: Produit chimique 12 | D177: km | T177: FALSE | U177: FALSE
C178: Produit chimique 13 | D178: km | T178: FALSE | U178: FALSE
C179: Produit chimique 14 | D179: km | T179: FALSE | U179: FALSE
C180: Produit chimique 15 | D180: km | T180: FALSE | U180: FALSE
C181: Produit chimique 16 | D181: km | T181: FALSE | U181: FALSE
C182: Produit chimique 17 | D182: km | T182: FALSE | U182: FALSE
C183: Produit chimique 18 | D183: km | T183: FALSE | U183: FALSE
C184: Produit chimique 19 | D184: km | T184: FALSE | U184: FALSE
C185: Produit chimique 20 | D185: km | T185: FALSE | U185: FALSE
B186: Dsea | C186: Distance parcourue par fret maritime entre le fournisseur et le site (trajet aller-retour) | E186: =IF(WWTP1="","",WWTP1) -> STEU1 | F186: =IF(WWTP2="","",WWTP2) -> STEU2 | G186: =IF(WWTP3="","",WWTP3) -> STEU3 | H186: =IF(WWTP4="","",WWTP4) -> STEU4 | I186: =IF(WWCollection="","",WWCollection) -> Collecte | J186: =IF(WTP1_="","",WTP1_) -> STE1 | K186: =IF(WTP2_="","",WTP2_) -> STE2 | L186: =IF(WTP3_="","",WTP3_) -> STE3 | M186: =IF(WTP4_="","",WTP4_) -> STE4 | N186: =IF(WDistr="","",WDistr) -> Distribution | O186: =IF(SuppFac="","",SuppFac) -> Inst. sout. | Q186: Notes de l'utilisateur | T186: =TRUE -> TRUE | U186: =TRUE -> TRUE
C187: =C124 -> Produit chimique 1 | D187: km | T187: =T124 -> FALSE | U187: =IF(SUM(E187:O187)>0,TRUE()) -> FALSE
C188: =C125 -> Produit chimique 2 | D188: km | T188: =T125 -> FALSE | U188: FALSE
C189: Produit chimique 3 | D189: km | T189: FALSE | U189: FALSE
C190: Produit chimique 4 | D190: km | T190: FALSE | U190: FALSE
C191: Produit chimique 5 | D191: km | T191: FALSE | U191: FALSE
C192: Produit chimique 6 | D192: km | T192: FALSE | U192: FALSE
C193: Produit chimique 7 | D193: km | T193: FALSE | U193: FALSE
C194: Produit chimique 8 | D194: km | T194: FALSE | U194: FALSE
C195: Produit chimique 9 | D195: km | T195: FALSE | U195: FALSE
C196: Produit chimique 10 | D196: km | T196: FALSE | U196: FALSE
C197: Produit chimique 11 | D197: km | T197: FALSE | U197: FALSE
C198: Produit chimique 12 | D198: km | T198: FALSE | U198: FALSE
C199: Produit chimique 13 | D199: km | T199: FALSE | U199: FALSE
C200: Produit chimique 14 | D200: km | T200: FALSE | U200: FALSE
C201: Produit chimique 15 | D201: km | T201: FALSE | U201: FALSE
C202: Produit chimique 16 | D202: km | T202: FALSE | U202: FALSE
C203: Produit chimique 17 | D203: km | T203: FALSE | U203: FALSE
C204: Produit chimique 18 | D204: km | T204: FALSE | U204: FALSE
C205: Produit chimique 19 | D205: km | T205: FALSE | U205: FALSE
C206: Produit chimique 20 | D206: km | T206: FALSE | U206: FALSE
B208: DONNÉES GÉNÉRIQUES (NON SPÉCIFIQUES À L’INSTALLATION)
B209: PORTÉE 1 – POTENTIEL DE RÉCHAUFFEMENT DE LA PLANÈTE | E209: Valeur de l’entrée | F209: Entrée par défaut | I209: Référence
C210: Potentiels de réchauffement de la planète | D210: Unités
C211: Valeurs du PRP du rapport d’évaluation du GIEC à utiliser | E211: AR6 | F211: AR4 | G211: AR5 | H211: AR6
C212: PRP du CH4 biogénique (horizon de 100 ans) | D212: CO2 éq. | E212: =LOOKUP($E$211,$F$211:$H$211,F212:H212) -> 27 | F212: 25 | G212: 28 | H212: 27 | I212: AR4: IPCC 2007, Tableau 2.14, AR5: IPCC 2013, Tableau 8.7, AR6: IPCC 2021, Tableau 7.15
C213: PRP du CH4 fossile (horizon de 100 ans) | D213: CO2 éq. | E213: =LOOKUP($E$211,$F$211:$H$211,F213:H213) -> 29.8 | F213: 25 | G213: 28 | H213: 29.8 | I213: AR4: IPCC 2007, Tableau 2.14, AR5: IPCC 2013, Tableau 8.7, AR6: IPCC 2021, Tableau 7.16
C214: PRP du N2O (horizon de 100 ans) | D214: CO2 éq. | E214: =LOOKUP($E$211,$F$211:$H$211,F214:H214) -> 273 | F214: 298 | G214: 265 | H214: 273 | I214: AR4: IPCC 2007, Tableau 2.14, AR5: IPCC 2013, Tableau 8.7, AR6: IPCC 2021, Tableau 7.17
B216: PORTÉE 1 – ÉMISSIONS DE MÉTHANE PROVENANT DES EAUX USÉES DOMESTIQUES | E216: Valeur de l’entrée | F216: Entrée par défaut | G216: Référence
... 85 more rows

Sheet Bilan
B1: Inventaire des émissions de GES – Bilan | S1: NE PAS SUPPRIMER OU MODIFIER LES CELLULES DANS LES COLONNES AU-DELÀ DE LA COLONNE GRISE. ELLES SONT UTILISÉES COMME CALCULS INTERNES POUR LE FORMATAGE ET LES LISTES.
S2: LES COLONNES AU-DELÀ DE LA COLONNE GRISE NE DOIVENT PAS ÊTRE IMPRIMÉES POUR LES SORTIES.
B3: Détails des sources d'émission | D3: Unité | E3: TOTAL | F3: =IF(WWTP1="","",WWTP1) -> STEU1 | G3: =IF(WWTP2="","",WWTP2) -> STEU2 | H3: =IF(WWTP3="","",WWTP3) -> STEU3 | I3: =IF(WWTP4="","",WWTP4) -> STEU4 | J3: =IF(WTP1_="","",WTP1_) -> STE1 | K3: =IF(WTP2_="","",WTP2_) -> STE2 | L3: =IF(WTP3_="","",WTP3_) -> STE3 | M3: =IF(WTP4_="","",WTP4_) -> STE4 | N3: =IF(WWCollection="","",WWCollection) -> Collecte | O3: =IF(WDistr="","",WDistr) -> Distribution | P3: =IF(SuppFac="","",SuppFac) -> Inst. sout.
B4: Portée 1 | C4: Combustion du biogaz dans le digesteur | D4: tCO2éq./an | E4: =SUM(F4:Q4) -> 0 | F4: ='Portée 1 - Combustion'!G47 -> 0 | G4: ='Portée 1 - Combustion'!H47 -> 0 | H4: ='Portée 1 - Combustion'!I47 -> 0 | I4: ='Portée 1 - Combustion'!J47 -> 0
C5: Incinération des boues de biosolides | D5: tCO2éq./an | E5: =SUM(F5:Q5) -> 0 | F5: ='Portée 1 - Combustion'!G68 ->  | G5: ='Portée 1 - Combustion'!H68 ->  | H5: ='Portée 1 - Combustion'!I68 ->  | I5: ='Portée 1 - Combustion'!J68 -> 
C6: N2O provenant du traitement | D6: tCO2éq./an | E6: 0 | F6: ='Portée 1 - Procédés'!G144 -> 0 | G6: ='Portée 1 - Procédés'!H144 -> 0 | H6: ='Portée 1 - Procédés'!I144 -> 0 | I6: ='Portée 1 - Procédés'!J144 -> 0
C7: CH4 provenant du traitement | D7: tCO2éq./an | E7: 0 | F7: ='Portée 1 - Procédés'!G76 -> 0 | G7: ='Portée 1 - Procédés'!H76 -> 0 | H7: ='Portée 1 - Procédés'!I76 -> 0 | I7: ='Portée 1 - Procédés'!J76 -> 0
C8: N2O fugitif provenant du rejet d’effluents | D8: tCO2éq./an | E8: 0 | F8: ='Portée 1 - Procédés'!G153 -> 0 | G8: ='Portée 1 - Procédés'!H153 -> 0 | H8: ='Portée 1 - Procédés'!I153 -> 0 | I8: ='Portée 1 - Procédés'!J153 -> 0
C9: CH4 fugitif du digesteur anaérobie | D9: tCO2éq./an | E9: 0 | F9: ='Portée 1 - Procédés'!G112 -> 0 | G9: ='Portée 1 - Procédés'!H112 -> 0 | H9: ='Portée 1 - Procédés'!I112 -> 0 | I9: ='Portée 1 - Procédés'!J112 -> 0
C10: CH4 fugitif provenant du rejet d’effluent | D10: tCO2éq./an | E10: 0 | F10: ='Portée 1 - Procédés'!G85 -> 0 | G10: ='Portée 1 - Procédés'!H85 -> 0 | H10: ='Portée 1 - Procédés'!I85 -> 0 | I10: ='Portée 1 - Procédés'!J85 -> 0
C11: Combustion de gaz naturel | D11: tCO2éq./an | E11: 0 | F11: ='Portée 1 - Combustion'!G79 -> 0 | G11: ='Portée 1 - Combustion'!H79 -> 0 | H11: ='Portée 1 - Combustion'!I79 -> 0 | I11: ='Portée 1 - Combustion'!J79 -> 0 | J11: ='Portée 1 - Combustion'!L79 -> 0 | K11: ='Portée 1 - Combustion'!M79 -> 0 | L11: ='Portée 1 - Combustion'!N79 -> 0 | M11: ='Portée 1 - Combustion'!O79 -> 0 | N11: ='Portée 1 - Combustion'!K79 -> 0 | O11: ='Portée 1 - Combustion'!P79 -> 0 | P11: ='Portée 1 - Combustion'!Q79 -> 0
C12: Combustion de mazout | D12: tCO2éq./an | E12: 0 | F12: ='Portée 1 - Combustion'!G90 -> 0 | G12: ='Portée 1 - Combustion'!H90 -> 0 | H12: ='Portée 1 - Combustion'!I90 -> 0 | I12: ='Portée 1 - Combustion'!J90 -> 0 | J12: ='Portée 1 - Combustion'!L90 -> 0 | K12: ='Portée 1 - Combustion'!M90 -> 0 | L12: ='Portée 1 - Combustion'!N90 -> 0 | M12: ='Portée 1 - Combustion'!O90 -> 0 | N12: ='Portée 1 - Combustion'!K90 -> 0 | O12: ='Portée 1 - Combustion'!P90 -> 0 | P12: ='Portée 1 - Combustion'!Q90 -> 0
C13: Combustion diesel | D13: tCO2éq./an | E13: 0 | F13: ='Portée 1 - Combustion'!G101 -> 0 | G13: ='Portée 1 - Combustion'!H101 -> 0 | H13: ='Portée 1 - Combustion'!I101 -> 0 | I13: ='Portée 1 - Combustion'!J101 -> 0 | J13: ='Portée 1 - Combustion'!L101 -> 0 | K13: ='Portée 1 - Combustion'!M101 -> 0 | L13: ='Portée 1 - Combustion'!N101 -> 0 | M13: ='Portée 1 - Combustion'!O101 -> 0 | N13: ='Portée 1 - Combustion'!K101 -> 0 | O13: ='Portée 1 - Combustion'!P101 -> 0 | P13: ='Portée 1 - Combustion'!Q101 -> 0
C14: Combustion du propane | D14: tCO2éq./an | E14: 0 | F14: ='Portée 1 - Combustion'!G112 -> 0 | G14: ='Portée 1 - Combustion'!H112 -> 0 | H14: ='Portée 1 - Combustion'!I112 -> 0 | I14: ='Portée 1 - Combustion'!J112 -> 0 | J14: ='Portée 1 - Combustion'!L112 -> 0 | K14: ='Portée 1 - Combustion'!M112 -> 0 | L14: ='Portée 1 - Combustion'!N112 -> 0 | M14: ='Portée 1 - Combustion'!O112 -> 0 | N14: ='Portée 1 - Combustion'!K112 -> 0 | O14: ='Portée 1 - Combustion'!P112 -> 0 | P14: ='Portée 1 - Combustion'!Q112 -> 0
C15: Combustion de carburant pour la flotte de véhicules | D15: tCO2éq./an | E15: 0 | P15: ='Portée 1 - Combustion'!Q128 -> 0
C16: Émissions totales de GES de la Portée 1 | E16: =+SUM(E4:E15) -> 0 | F16: 0 | G16: 0 | H16: 0 | I16: 0 | J16: =+SUM(J4:J15) -> 0 | K16: =+SUM(K4:K15) -> 0 | L16: =+SUM(L4:L15) -> 0 | M16: =+SUM(M4:M15) -> 0 | N16: =+SUM(N4:N15) -> 0 | O16: 0 | P16: 0
B17: Portée 2 | C17: Électricité consommée | D17: tCO2éq./an | E17: =SUM(F17:P17) -> 0 | F17: ='Portée 2 - Électricité'!G9 -> 0 | G17: ='Portée 2 - Électricité'!H9 -> 0 | H17: ='Portée 2 - Électricité'!I9 -> 0 | I17: ='Portée 2 - Électricité'!J9 -> 0 | J17: ='Portée 2 - Électricité'!L9 -> 0 | K17: ='Portée 2 - Électricité'!M9 -> 0 | L17: ='Portée 2 - Électricité'!N9 -> 0 | M17: ='Portée 2 - Électricité'!O9 -> 0 | N17: ='Portée 2 - Électricité'!K9 -> 0 | O17: ='Portée 2 - Électricité'!P9 -> 0 | P17: ='Portée 2 - Électricité'!Q9 -> 0
C18: Émissions totales de GES de la Portée 2 | E18: =SUM(E17:E17) -> 0 | F18: 0 | G18: 0 | H18: 0 | I18: 0 | J18: =SUM(J17:J17) -> 0 | K18: =SUM(K17:K17) -> 0 | L18: =SUM(L17:L17) -> 0 | M18: =SUM(M17:M17) -> 0 | N18: =SUM(N17:N17) -> 0 | O18: 0 | P18: 0
B19: Portée 3 | C19: Électricité | D19: tCO2éq./an | E19: =SUM(F19:P19) -> 0 | F19: ='Portée 3 - Électricité'!G11 -> 0 | G19: ='Portée 3 - Électricité'!H11 -> 0 | H19: ='Portée 3 - Électricité'!I11 -> 0 | I19: ='Portée 3 - Électricité'!J11 -> 0 | J19: ='Portée 3 - Électricité'!L11 -> 0 | K19: ='Portée 3 - Électricité'!M11 -> 0 | L19: ='Portée 3 - Électricité'!N11 -> 0 | M19: ='Portée 3 - Électricité'!O11 -> 0 | N19: ='Portée 3 - Électricité'!K11 -> 0 | O19: ='Portée 3 - Électricité'!P11 -> 0 | P19: ='Portée 3 - Électricité'!Q11 -> 0
C20: Gaz naturel en amont | D20: tCO2éq./an | E20: 0 | F20: ='Portée 3 - Combustibles'!G10 -> 0 | G20: ='Portée 3 - Combustibles'!H10 -> 0 | H20: ='Portée 3 - Combustibles'!I10 -> 0 | I20: ='Portée 3 - Combustibles'!J10 -> 0 | J20: ='Portée 3 - Combustibles'!L10 -> 0 | K20: ='Portée 3 - Combustibles'!M10 -> 0 | L20: ='Portée 3 - Combustibles'!N10 -> 0 | M20: ='Portée 3 - Combustibles'!O10 -> 0 | N20: ='Portée 3 - Combustibles'!K10 -> 0 | O20: ='Portée 3 - Combustibles'!P10 -> 0 | P20: ='Portée 3 - Combustibles'!Q10 -> 0
C21: Mazout en amont | D21: tCO2éq./an | E21: 0 | F21: ='Portée 3 - Combustibles'!G19 -> 0 | G21: ='Portée 3 - Combustibles'!H19 -> 0 | H21: ='Portée 3 - Combustibles'!I19 -> 0 | I21: ='Portée 3 - Combustibles'!J19 -> 0 | J21: ='Portée 3 - Combustibles'!L19 -> 0 | K21: ='Portée 3 - Combustibles'!M19 -> 0 | L21: ='Portée 3 - Combustibles'!N19 -> 0 | M21: ='Portée 3 - Combustibles'!O19 -> 0 | N21: ='Portée 3 - Combustibles'!K19 -> 0 | O21: ='Portée 3 - Combustibles'!P19 -> 0 | P21: ='Portée 3 - Combustibles'!Q19 -> 0
C22: Diesel en amont | D22: tCO2éq./an | E22: 0 | F22: ='Portée 3 - Combustibles'!G28 -> 0 | G22: ='Portée 3 - Combustibles'!H28 -> 0 | H22: ='Portée 3 - Combustibles'!I28 -> 0 | I22: ='Portée 3 - Combustibles'!J28 -> 0 | J22: ='Portée 3 - Combustibles'!L28 -> 0 | K22: ='Portée 3 - Combustibles'!M28 -> 0 | L22: ='Portée 3 - Combustibles'!N28 -> 0 | M22: ='Portée 3 - Combustibles'!O28 -> 0 | N22: ='Portée 3 - Combustibles'!K28 -> 0 | O22: ='Portée 3 - Combustibles'!P28 -> 0 | P22: ='Portée 3 - Combustibles'!Q28 -> 0
C23: Combustion du propane | D23: tCO2éq./an | E23: 0 | F23: ='Portée 3 - Combustibles'!G37 -> 0 | G23: ='Portée 3 - Combustibles'!H37 -> 0 | H23: ='Portée 3 - Combustibles'!I37 -> 0 | I23: ='Portée 3 - Combustibles'!J37 -> 0 | J23: ='Portée 3 - Combustibles'!L37 -> 0 | K23: ='Portée 3 - Combustibles'!M37 -> 0 | L23: ='Portée 3 - Combustibles'!N37 -> 0 | M23: ='Portée 3 - Combustibles'!O37 -> 0 | N23: ='Portée 3 - Combustibles'!K37 -> 0 | O23: ='Portée 3 - Combustibles'!P37 -> 0 | P23: ='Portée 3 - Combustibles'!Q37 -> 0
C24: Carburant de la flotte de véhicules en amont | D24: tCO2éq./an | E24: 0 | P24: ='Portée 3 - Combustibles'!Q54 -> 0
C25: Production chimique | D25: tCO2éq./an | E25: 0 | F25: ='Portée 3 - Produits chimiques'!G72 -> 0 | G25: ='Portée 3 - Produits chimiques'!H72 -> 0 | H25: ='Portée 3 - Produits chimiques'!I72 -> 0 | I25: ='Portée 3 - Produits chimiques'!J72 -> 0 | J25: ='Portée 3 - Produits chimiques'!L72 -> 0 | K25: ='Portée 3 - Produits chimiques'!M72 -> 0 | L25: ='Portée 3 - Produits chimiques'!N72 -> 0 | M25: ='Portée 3 - Produits chimiques'!O72 -> 0 | N25: ='Portée 3 - Produits chimiques'!K72 -> 0 | O25: ='Portée 3 - Produits chimiques'!P72 -> 0 | P25: ='Portée 3 - Produits chimiques'!Q72 -> 0
C26: Transport de produits chimiques | D26: tCO2éq./an | E26: 0 | F26: ='Portée 3 - Produits chimiques'!G166 -> 0 | G26: ='Portée 3 - Produits chimiques'!H166 -> 0 | H26: ='Portée 3 - Produits chimiques'!I166 -> 0 | I26: ='Portée 3 - Produits chimiques'!J166 -> 0 | J26: ='Portée 3 - Produits chimiques'!L166 -> 0 | K26: ='Portée 3 - Produits chimiques'!M166 -> 0 | L26: ='Portée 3 - Produits chimiques'!N166 -> 0 | M26: ='Portée 3 - Produits chimiques'!O166 -> 0 | N26: ='Portée 3 - Produits chimiques'!K166 -> 0 | O26: ='Portée 3 - Produits chimiques'!P166 -> 0 | P26: ='Portée 3 - Produits chimiques'!Q166 -> 0
C27: Gestion des biosolides | D27: tCO2éq./an | E27: =SUM(F27:P27) -> 0 | F27: ='Portée 3 - Biosolides'!G22 -> 0 | G27: ='Portée 3 - Biosolides'!H22 -> 0 | H27: ='Portée 3 - Biosolides'!I22 -> 0 | I27: ='Portée 3 - Biosolides'!J22 -> 0
C28: Émissions de GES de la Portée 3 | E28: =SUM(E19:E27) -> 0 | F28: =SUM(F19:F27) -> 0 | G28: 0 | H28: 0 | I28: 0 | J28: =SUM(J19:J27) -> 0 | K28: =SUM(K19:K27) -> 0 | L28: =SUM(L19:L27) -> 0 | M28: =SUM(M19:M27) -> 0 | N28: =SUM(N19:N27) -> 0 | O28: 0 | P28: 0
B29: Émissions totales de GES | D29: tCO2éq./an | E29: =SUM(E28,E18,E16) -> 0 | F29: 0 | G29: 0 | H29: 0 | I29: 0 | J29: =SUM(J28,J18,J16) -> 0 | K29: =SUM(K28,K18,K16) -> 0 | L29: =SUM(L28,L18,L16) -> 0 | M29: =SUM(M28,M18,M16) -> 0 | N29: =SUM(N28,N18,N16) -> 0 | O29: 0 | P29: 0
B31: Répartition par source d’émission | D31: Unité | E31: TOTAL | F31: =IF(WWTP1="","",WWTP1) -> STEU1 | G31: =IF(WWTP2="","",WWTP2) -> STEU2 | H31: =IF(WWTP3="","",WWTP3) -> STEU3 | I31: =IF(WWTP4="","",WWTP4) -> STEU4 | J31: =IF(WTP1_="","",WTP1_) -> STE1 | K31: =IF(WTP2_="","",WTP2_) -> STE2 | L31: =IF(WTP3_="","",WTP3_) -> STE3 | M31: =IF(WTP4_="","",WTP4_) -> STE4 | N31: =IF(WWCollection="","",WWCollection) -> Collecte | O31: =IF(WDistr="","",WDistr) -> Distribution | P31: =IF(SuppFac="","",SuppFac) -> Inst. sout.
C32: Combustion du biogaz dans le digesteur | D32: tCO2éq./an | E32: =SUM(F32:P32) -> 0 | F32: =F4 -> 0 | G32: 0 | H32: 0 | I32: 0 | J32: =J4 -> 0 | K32: 0 | L32: 0 | M32: 0 | N32: =N4 -> 0 | O32: 0 | P32: 0
C33: Incinération des boues de biosolides | D33: tCO2éq./an | E33: 0 | F33: =F5 ->  | J33: 0 | K33: 0 | L33: 0 | M33: 0 | N33: =N5 -> 0 | O33: 0 | P33: 0
C34: N2O de procédé et fugitif | D34: tCO2éq./an | E34: 0 | F34: =F6+F8 -> 0 | G34: 0 | H34: 0 | I34: 0 | J34: =J6+J8 -> 0 | K34: =K6+K8 -> 0 | L34: =L6+L8 -> 0 | M34: =M6+M8 -> 0 | N34: =N6+N8 -> 0 | O34: 0 | P34: 0
C35: CH4 de procédé et fugitif | D35: tCO2éq./an | E35: 0 | F35: =F7+F9+F10 -> 0 | G35: 0 | H35: 0 | I35: 0 | J35: =J7+J9+J10 -> 0 | K35: =K7+K9+K10 -> 0 | L35: =L7+L9+L10 -> 0 | M35: =M7+M9+M10 -> 0 | N35: =N7+N9+N10 -> 0 | O35: 0 | P35: 0
C36: Combustion de combustibles fossiles (Portée 1+3) | D36: tCO2éq./an | E36: =SUM(F36:P36) -> 0 | F36: =SUM(F11:F14)+SUM(F20:F23) -> 0 | G36: 0 | H36: 0 | I36: 0 | J36: =SUM(J11:J14)+SUM(J20:J23) -> 0 | K36: =SUM(K11:K14)+SUM(K20:K23) -> 0 | L36: =SUM(L11:L14)+SUM(L20:L23) -> 0 | M36: =SUM(M11:M14)+SUM(M20:M23) -> 0 | N36: =SUM(N11:N14)+SUM(N20:N23) -> 0 | O36: 0 | P36: 0
C37: Flotte de véhicules (Portée 1+3) | D37: tCO2éq./an | E37: 0 | F37: =F15+F24 -> 0 | G37: 0 | H37: 0 | I37: 0 | J37: =J15+J24 -> 0 | K37: =K15+K24 -> 0 | L37: =L15+L24 -> 0 | M37: =M15+M24 -> 0 | N37: =N15+N24 -> 0 | O37: 0 | P37: 0
C38: Électricité (Portée 2+3) | D38: tCO2éq./an | E38: 0 | F38: =F17+F19 -> 0 | G38: 0 | H38: 0 | I38: 0 | J38: =J17+J19 -> 0 | K38: =K17+K19 -> 0 | L38: =L17+L19 -> 0 | M38: =M17+M19 -> 0 | N38: =N17+N19 -> 0 | O38: 0 | P38: 0
C39: Production et transport de produits chimiques | D39: tCO2éq./an | E39: 0 | F39: =F25+F26 -> 0 | G39: 0 | H39: 0 | I39: 0 | J39: =J25+J26 -> 0 | K39: =K25+K26 -> 0 | L39: =L25+L26 -> 0 | M39: =M25+M26 -> 0 | N39: =N25+N26 -> 0 | O39: 0 | P39: 0
C40: Gestion des biosolides | D40: tCO2éq./an | E40: 0 | F40: =SUM(F27:F27) -> 0 | G40: 0 | H40: 0 | I40: 0 | J40: =SUM(J27:J27) -> 0 | K40: =SUM(K27:K27) -> 0 | L40: =SUM(L27:L27) -> 0 | M40: =SUM(M27:M27) -> 0 | N40: =SUM(N27:N27) -> 0 | O40: 0 | P40: 0
B41: Émissions totales de GES | D41: tCO2éq./an | E41: =SUM(E32:E40) -> 0 | F41: 0 | G41: 0 | H41: 0 | I41: 0 | J41: =SUM(J32:J40) -> 0 | K41: =SUM(K32:K40) -> 0 | L41: =SUM(L32:L40) -> 0 | M41: =SUM(M32:M40) -> 0 | N41: =SUM(N32:N40) -> 0 | O41: 0 | P41: 0
C43: BILAN | F43: TRAITEMENT DES EAUX USÉES | J43: APPROVISIONNEMENT EN EAU | N43: COLLECTE DES EAUX USÉES | O43: DISTRIBUTION D’EAU | P43: SYSTÈMES DE SOUTIEN
C44: Nom de l’installation/du système | D44: Unité | F44: =IF(WWTP1="","",WWTP1) -> STEU1 | G44: =IF(WWTP2="","",WWTP2) -> STEU2 | H44: =IF(WWTP3="","",WWTP3) -> STEU3 | I44: =IF(WWTP4="","",WWTP4) -> STEU4 | J44: =IF(WTP1_="","",WTP1_) -> STE1 | K44: =IF(WTP2_="","",WTP2_) -> STE2 | L44: =IF(WTP3_="","",WTP3_) -> STE3 | M44: =IF(WTP4_="","",WTP4_) -> STE4 | N44: =WWCollection -> Collecte | O44: =WDistr -> Distribution | P44: =SuppFac -> Inst. sout.
C45: Émissions annuelles de GES par installation | D45: tCO2éq./an | F45: =+F29 -> 0 | G45: =+G29 -> 0 | H45: =+H29 -> 0 | I45: 0 | J45: =+J29 -> 0 | K45: =+K29 -> 0 | L45: =+L29 -> 0 | M45: =+M29 -> 0 | N45: =+N29 -> 0 | O45: =+O29 -> 0 | P45: =P29 -> 0 | S45: =OR(E45,F45,G45,H45,I45,J45,K45,L45,M45,N45,O45,P45) -> FALSE
C46: Émissions annuelles de GES par type de système | D46: tCO2éq./an | F46: =SUM(F45:I45) -> 0 | J46: =SUM(J45:M45) -> 0 | N46: =SUM(N45:P45) -> 0
C47: Part des émissions par système | D47: % | I47: =IF(S45=TRUE,+F46/SUM(F45:P45),0) -> 0 | M47: =IF(S45=TRUE,+J46/SUM(F45:P45),0) -> 0 | P47: =IF(S45=TRUE,+N46/SUM(F45:P45),0) -> 0
C48: Population | F48: =Entrées!$D$12 -> 0
C49: Débit annuel | D49: m3/an | F49: =+Entrées!E23*365 -> 0 | G49: =+Entrées!F23*365 -> 0 | H49: =+Entrées!G23*365 -> 0 | I49: =+Entrées!H23*365 -> 0 | J49: =+Entrées!J20*365 -> 0 | K49: =+Entrées!K20*365 -> 0 | L49: =+Entrées!L20*365 -> 0 | M49: =+Entrées!M20*365 -> 0
C50: Intensité d’émission par installation | D50: gCO2éq./m3 | F50: =IF(F45=0,0,(IF(F49=0,0,+F45*10^6/F49))) -> 0 | G50: =IF(G45=0,0,(IF(G49=0,0,+G45*10^6/G49))) -> 0 | H50: =IF(H45=0,0,(IF(H49=0,0,+H45*10^6/H49))) -> 0 | I50: =IF(I45=0,0,(IF(I49=0,0,+I45*10^6/I49))) -> 0 | J50: =IF(J45=0,0,(IF(J49=0,0,+J45*10^6/J49))) -> 0 | K50: =IF(K45=0,0,(IF(K49=0,0,+K45*10^6/K49))) -> 0 | L50: 0 | M50: 0 | S50: =OR(E49,F49,G49,H49,E50,F50,G50,H50,I49,I50) -> FALSE | T50: =OR(J49,K49,L49,M49,J50,K50,L50,M50) -> FALSE
C51: Intensité d’émission par système | D51: gCO2éq./m3 | F51: =IF(S50=TRUE,(F50*F49+G50*G49+H50*H49+I50*I49)/SUM(F49:I49),0) -> 0 | J51: =IF(T50=TRUE,(J50*J49+K50*K49+L50*L49+M50*M49)/SUM(J49:M49),0) -> 0
C52: Intensité d’émission par population desservie | D52: tCO2éq./an/personne | F52: =IF(F48=0,0,(IF(F46=0,0,F46/F48))) -> 0 | J52: =IF(F48=0,0,(IF(J46=0,0,J46/F48))) -> 0 | N52: =IF(F48=0,0,(IF(N46=0,0,N46/F48))) -> 0
C92: Émissions par type de traitement ou par système de soutien | E92: Émissions GES | F92: Distribution des émissions | I92: Émissions GES | J92: Distribution des émissions
D93: Traitement des eaux useés | E93: =+SUM(F29:I29) -> 0 | F93: =+E93/SUM(E93:E95) ->  | H93: Portée 1 | I93: =E16 -> 0 | J93: =+I93/SUM(I93:I95) -> 
D94: Approvisionnement en eau | E94: =+SUM(J29:M29) -> 0 | F94: =+E94/SUM(E93:E95) ->  | H94: Portée 2 | I94: =E18 -> 0 | J94: =+I94/SUM(I93:I95) -> 
D95: Collection, distribution, et systèmes de soutien | E95: =+SUM(N29,O29,P29) -> 0 | F95: =+E95/SUM(E93:E95) ->  | H95: Portée 3 | I95: =E28 -> 0 | J95: =+I95/SUM(I93:I95) -> 

Sheet Portée 1 - Procédés
B1: Portée 1 – Émissions de GES associées aux processus de traitement | M1: NE PAS SUPPRIMER OU MODIFIER LES CELLULES DANS LES COLONNES AU-DELÀ DE LA COLONNE VERTE. ELLES SONT UTILISÉES COMME CALCULS INTERNES POUR LE FORMATAGE ET LES LISTES.
M2: LES COLONNES AU-DELÀ DE LA COLONNE VERTE NE DOIVENT PAS ÊTRE IMPRIMÉES POUR LES SORTIES.
B3: POTENTIEL DE RÉCHAUFFEMENT PLANÉTAIRE
D4: PRP du CH4 biogénique (horizon de 100 ans) | E4: - | G4: =Entrées!$E$212 -> 27 | H4: =Entrées!$E$212 -> 27 | I4: =Entrées!$E$212 -> 27 | J4: =Entrées!$E$212 -> 27 | K4: =Entrées!$I$212 -> AR4: IPCC 2007, Tableau 2.14, AR5: IPCC 2013, Tableau 8.7, AR6: IPCC 2021, Tableau 7.15
D5: PRP du N2O (horizon de 100 ans) | E5: - | G5: =Entrées!$E$214 -> 273 | H5: =Entrées!$E$214 -> 273 | I5: =Entrées!$E$214 -> 273 | J5: =Entrées!$E$214 -> 273 | K5: =Entrées!$I$214 -> AR4: IPCC 2007, Tableau 2.14, AR5: IPCC 2013, Tableau 8.7, AR6: IPCC 2021, Tableau 7.17
B7: ÉMISSIONS DE MÉTHANE PROVENANT DES EAUX USÉES DOMESTIQUES
B8: Méthodologie : Les cinq étapes suivantes ont été adaptées à partir du document 2019 Refinement of the IPCC Guidelines, volume 5, chapitres 4 et 6.
B10: Étape 1 – | C10: Estimer la quantité de matières organiques en kg de DBO/an dans l’influent des eaux usées, la dérivation et les effluents rejetés dans l’environnement aquatique
C11: Total des matières organiques de l’effluent de l’usine
C12: TOWin = Fin*C BOD in | E12: Unité | G12: =IF(WWTP1="","",WWTP1) -> STEU1 | H12: =IF(WWTP2="","",WWTP2) -> STEU2 | I12: =IF(WWTP3="","",WWTP3) -> STEU3 | J12: =IF(WWTP4="","",WWTP4) -> STEU4 | K12: Notes/références de l’utilisateur
C13: Fin | D13: Débit moyen annuel de l’influent de la station | E13: m3/jour | G13: =+Entrées!E23 -> 0 | H13: =+Entrées!F23 -> 0 | I13: =+Entrées!G23 -> 0 | J13: =+Entrées!H23 -> 0 | K13: =Entrées!$Q$23 -> 0
C14: CBOD in | D14: Concentration de demande biochimique en oxygène (DBO5 dans les formules) dans l’influent de l’usine | E14: mgDBO/L | G14: =+Entrées!E32 -> 0 | H14: =+Entrées!F32 -> 0 | I14: =+Entrées!G32 -> 0 | J14: =+Entrées!H32 -> 0 | K14: =Entrées!$Q$32 -> 0
C15: TOWin | D15: Total de matières organiques de l’influent | E15: kgDBO/an | G15: =+G13*G14*365/1000 -> 0 | H15: =+H13*H14*365/1000 -> 0 | I15: 0 | J15: 0
C17: Total de matières organiques de l’influent du traitement secondaire
C18: TOWin = Fin,sec*C BOD eff,prim | G18: =IF(WWTP1="","",WWTP1) -> STEU1 | H18: =IF(WWTP2="","",WWTP2) -> STEU2 | I18: =IF(WWTP3="","",WWTP3) -> STEU3 | J18: =IF(WWTP4="","",WWTP4) -> STEU4
C19: Fin,sec | D19: Débit moyen annuel de l’influent secondaire | E19: m3/jour | G19: =+Entrées!E23 -> 0 | H19: =+Entrées!F23 -> 0 | I19: =+Entrées!G23 -> 0 | J19: =+Entrées!H23 -> 0 | K19: =Entrées!$Q$23 -> 0
C20: CBOD eff,prim | D20: Concentration de DBO5 dans l’influent secondaire | E20: mgDBO/L | G20: =+Entrées!E33 -> 0 | H20: =+Entrées!F33 -> 0 | I20: =+Entrées!G33 -> 0 | J20: =+Entrées!H33 -> 0 | K20: =Entrées!$Q$33 -> 0
C21: TOWin,sec | D21: Total de matières organiques de l’influent secondaire | E21: kgDBO/an | G21: =+G19*G20*365/1000 -> 0 | H21: =+H19*H20*365/1000 -> 0 | I21: 0 | J21: 0
C23: Total des matières organiques de l’influent de l'étang
C24: TOWin,lagoon = Fin,lagoon*C BOD in,lagoon | G24: =IF(WWTP1="","",WWTP1) -> STEU1 | H24: =IF(WWTP2="","",WWTP2) -> STEU2 | I24: =IF(WWTP3="","",WWTP3) -> STEU3 | J24: =IF(WWTP4="","",WWTP4) -> STEU4
C25: Flag,ANA,in | D25: Volume annuel dans les étangs anaérobies | E25: m3/an | G25: =Entrées!E27 -> 0 | H25: =Entrées!F27 -> 0 | I25: =Entrées!G27 -> 0 | J25: =Entrées!H27 -> 0 | K25: =Entrées!$Q$27 -> 0
C26: Flag,AERin | D26: Volume annuel dans les étangs aérobies/aérés | E26: m3/an | G26: =Entrées!E28 -> 0 | H26: =Entrées!F28 -> 0 | I26: =Entrées!G28 -> 0 | J26: =Entrées!H28 -> 0 | K26: =Entrées!$Q$28 -> 0
C27: Flag,FAC,in | D27: Volume annuel dans les étangs facultatifs ou non spécifiés | E27: m3/an | G27: =Entrées!E29 -> 0 | H27: =Entrées!F29 -> 0 | I27: =Entrées!G29 -> 0 | J27: =Entrées!H29 -> 0 | K27: =Entrées!$Q$29 -> 0
C28: CBOD lag,ANA,in | D28: Concentration de DBO5 dans l’influent des étangs secondaires | E28: mgDBO/L | G28: =Entrées!E36 -> 0 | H28: =Entrées!F36 -> 0 | I28: =Entrées!G36 -> 0 | J28: =Entrées!H36 -> 0 | K28: =Entrées!$Q$36 -> 0
C29: CBOD lag,AER,in | D29: Concentration de DBO5 dans l’influent des étangs aérobies/aérés secondaires | E29: mgDBO/L | G29: =Entrées!E37 -> 0 | H29: =Entrées!F37 -> 0 | I29: =Entrées!G37 -> 0 | J29: =Entrées!H37 -> 0 | K29: =Entrées!$Q$38 -> 0
C30: CBOD lag,FAC,in | D30: Concentration de DBO5 dans l’influent des étangs facultatifs ou non spécifiés | E30: mgDBO/L | G30: =Entrées!E40 -> 0 | H30: =Entrées!F40 -> 0 | I30: =Entrées!G40 -> 0 | J30: =Entrées!H40 -> 0 | K30: =Entrées!$Q$40 -> 0
C31: TOWlag,ANA,in | D31: Totale de matières organiques de l’influent entrant dans les étangs anaérobies | E31: kgDBO/an | G31: =G28/1000*G25 -> 0 | H31: =H28/1000*H25 -> 0 | I31: 0 | J31: 0
C32: TOWlag,AER,in | D32: Total des matières organiques entrantes dans les étangs aérobies/aérés | E32: kgDBO/an | G32: =G29/1000*G26 -> 0 | H32: 0 | I32: 0 | J32: 0
C33: TOWlag,FAC,in | D33: Total des matières organiques de l’influent vers les étangs d’épuration ou les étangs non spécifiés | E33: kgDBO/an | G33: 0 | H33: 0 | I33: 0 | J33: 0
C35: Total des matières organiques de l’influent secondaire d’eaux usées
C36: TOWeff = Feff*C BOD eff | G36: =IF(WWTP1="","",WWTP1) -> STEU1 | H36: =IF(WWTP2="","",WWTP2) -> STEU2 | I36: =IF(WWTP3="","",WWTP3) -> STEU3 | J36: =IF(WWTP4="","",WWTP4) -> STEU4
C37: FEff | D37: Moyenne annuelle du débit de l’effluent du traitement secondaire | E37: m3/jour | G37: =+Entrées!E26 -> 0 | H37: =+Entrées!F26 -> 0 | I37: =+Entrées!G26 -> 0 | J37: =+Entrées!H26 -> 0 | K37: =Entrées!$Q$26 -> 0
C38: CBOD eff | D38: Concentration de DBO5 dans l’effluent secondaire | E38: mgDBO/L | G38: =+Entrées!E34 -> 0 | H38: =+Entrées!F34 -> 0 | I38: =+Entrées!G34 -> 0 | J38: =+Entrées!H34 -> 0 | K38: =Entrées!$Q$34 -> 0
C39: TOWeff | D39: Total de matière organique de l’effluent secondaire | E39: kgDBO/an | G39: =+G37*G38*365/1000 -> 0 | H39: =+H37*H38*365/1000 -> 0 | I39: 0 | J39: 0
C41: Total de matière organique de dérivation des eaux usées
C42: TOWbypass = Fbypass*C BOD bypass | G42: =IF(WWTP1="","",WWTP1) -> STEU1 | H42: =IF(WWTP2="","",WWTP2) -> STEU2 | I42: =IF(WWTP3="","",WWTP3) -> STEU3 | J42: =IF(WWTP4="","",WWTP4) -> STEU4
C43: Fbypass | D43: Moyenne annuelle du débit de dérivation du traitement secondaire | E43: m3/jour | G43: =+Entrées!E25 -> 0 | H43: =+Entrées!F25 -> 0 | I43: =+Entrées!G25 -> 0 | J43: =+Entrées!H25 -> 0 | K43: =Entrées!$Q$25 -> 0
C44: CBOD bypass | D44: Concentration de DBO5 de dérivation secondaire | E44: mgDBO/L | G44: =+Entrées!E35 -> 0 | H44: =+Entrées!F35 -> 0 | I44: =+Entrées!G35 -> 0 | J44: =+Entrées!H35 -> 0 | K44: =Entrées!$Q$35 -> 0
C45: TOWbypass | D45: Total de matière organique de dérivation secondaire | E45: kgDBO/an | G45: =+G43*G44*365/1000 -> 0 | H45: =+H43*H44*365/1000 -> 0 | I45: 0 | J45: 0
B47: Étape 2 – | C47: Estimate emissions from treatment
C48: Q CH4_tretment =ΣtTOWt,in(1 - erem,t*αt) *EFt | K48: Rapport d’inventaire national du Canada, 2021, Partie 2
F49: TOTAL | G49: =IF(WWTP1="","",WWTP1) -> STEU1 | H49: =IF(WWTP2="","",WWTP2) -> STEU2 | I49: =IF(WWTP3="","",WWTP3) -> STEU3 | J49: =IF(WWTP4="","",WWTP4) -> STEU4
C50: TOWprim,in | D50: Total de matière organique de l’influent | E50: kgDBO/an | G50: =+G15 -> 0 | H50: =+H15 -> 0 | I50: =+I15 -> 0 | J50: =+J15 -> 0
C51: TOWsec,in | D51: Total de matières organiques de l’influent secondaire | E51: kgDBO/an | G51: =+G21 -> 0 | H51: =+H21 -> 0 | I51: =+I21 -> 0 | J51: =+J21 -> 0
C52: TOWlag,ANA,in | D52: Total des matières organiques de l’influent d'étang anaérobie | E52: kgDBO/an | G52: =G31 -> 0 | H52: =H31 -> 0 | I52: 0 | J52: 0
C53: TOWlag,AER,in | D53: Total des matières organiques de l’influent d'étang aérobie/aéré | E53: kgDBO/an | G53: =G32 -> 0 | H53: 0 | I53: 0 | J53: 0
C54: TOWlag,FAC,in | D54: Total des matières organiques de l’influent d'étang facultatif | E54: kgDBO/an | G54: 0 | H54: 0 | I54: 0 | J54: 0
C55: erem,prim | D55: Pourcentage d’enlèvement de DBO5 du traitement primaire | E55: % DBO retirée | G55: =Entrées!E56 -> 0.33 | H55: =Entrées!F56 -> 0.33 | I55: =Entrées!G56 -> 0.33 | J55: =Entrées!H56 -> 0.33 | K55: =Entrées!$P$56 -> Metcalf & Eddy, Wastewater Engineering, Treatment and Reuse, 4th Edition, 2003
C56: erem,sec | D56: Pourcentage d’enlèvement de DBO5 du traitement secondaire | E56: % DBO retirée | G56: =Entrées!E57 -> 0.95 | H56: =Entrées!F57 -> 0.95 | I56: =Entrées!G57 -> 0.95 | J56: =Entrées!H57 -> 0.95 | K56: =Entrées!$P$56 -> Metcalf & Eddy, Wastewater Engineering, Treatment and Reuse, 4th Edition, 2003
C57: erem,lag,ANA | D57: Pourcentage d’enlèvement de DBO5 des étangs anaérobies | E57: % DBO retirée | G57: =Entrées!E58 -> 0.85 | H57: =Entrées!F58 -> 0.85 | I57: =Entrées!G58 -> 0.85 | J57: =Entrées!H58 -> 0.85 | K57: =Entrées!$P$58 -> NIR2024, Partie 2, Tableau A3.6-14
C58: erem,lag,AER | D58: Pourcentage d’enlèvement de DBO5 des étangs aérobies/aérés | E58: % DBO retirée | G58: =Entrées!E59 -> 0.85 | H58: =Entrées!F59 -> 0.85 | I58: =Entrées!G59 -> 0.85 | J58: =Entrées!H59 -> 0.85 | K58: =Entrées!$P$59 -> NIR2024, Partie 2, Tableau A3.6-14
C59: erem,lag,FAC | D59: Pourcentage d’enlèvement de DBO5 des étangs facultatifs ou non spécifiés | E59: % DBO retirée | G59: =Entrées!E60 -> 0.85 | H59: =Entrées!F60 -> 0.85 | I59: =Entrées!G60 -> 0.85 | J59: =Entrées!H60 -> 0.85 | K59: =Entrées!$P$60 -> NIR2024, Partie 2, Tableau A3.6-14
C60: αt prim | D60: Facteur de traitement primaire pour la quantité de DBO5 éliminée | E60: DBOboue/DBOeauxusées | G60: =Entrées!$E$218 -> 1 | H60: =Entrées!$E$218 -> 1 | I60: =Entrées!$E$218 -> 1 | J60: =Entrées!$E$218 -> 1 | K60: =Entrées!$P$56 -> Metcalf & Eddy, Wastewater Engineering, Treatment and Reuse, 4th Edition, 2003
C61: αt,sec | D61: Facteur de traitement secondaire pour la quantité de DBO5 éliminée | E61: DBOboue/DBOeauxusées | G61: =Entrées!$E$219 -> 0.46 | H61: =Entrées!$E$219 -> 0.46 | I61: =Entrées!$E$219 -> 0.46 | J61: =Entrées!$E$219 -> 0.46 | K61: =Entrées!$P$56 -> Metcalf & Eddy, Wastewater Engineering, Treatment and Reuse, 4th Edition, 2003
C62: αt,lag,ANA | D62: Facteur de boue d'étang anaérobie par quantité de DBO5 retirée | E62: BoueDBO/EauxuséesDBO | G62: =Entrées!$E$220 -> 0.02 | H62: =Entrées!$E$220 -> 0.02 | I62: =Entrées!$E$220 -> 0.02 | J62: =Entrées!$E$220 -> 0.02 | K62: =Entrées!$G$220 -> NIR 2024, Partie 2, Tableau A3.6-14
C63: αt,lag,AER | D63: Facteur de boue d'étang aérobie/aéré par quantité de DBO5 retirée | E63: BoueDBO/EauxuséesDBO | G63: =Entrées!$E$221 -> 0.01 | H63: =Entrées!$E$221 -> 0.01 | I63: =Entrées!$E$221 -> 0.01 | J63: =Entrées!$E$221 -> 0.01 | K63: =Entrées!$G$221 -> NIR 2024, Partie 2, Tableau A3.6-14
C64: αt,lag,FAC | D64: Facteur de boue d'étang facultatif ou non spécifié par quantité de DBO5 retirée | E64: BoueDBO/EauxuséesDBO | G64: =Entrées!$E$222 -> 0.01 | H64: =Entrées!$E$222 -> 0.01 | I64: =Entrées!$E$222 -> 0.01 | J64: =Entrées!$E$222 -> 0.01 | K64: =Entrées!$G$222 -> NIR 2024, Partie 2, Tableau A3.6-14
C65: EFaerobic,prim | D65: CE pour le traitement primaire | E65: kgCH4/kgDBO | G65: =+Entrées!$E$223 -> 0.0036 | H65: =+Entrées!$E$223 -> 0.0036 | I65: =+Entrées!$E$223 -> 0.0036 | J65: =+Entrées!$E$223 -> 0.0036 | K65: =Entrées!$G$223 -> NIR 2024, Partie 2, Tableau A3.6-14
C66: EFaerobic,sec | D66: CE pour le traitement secondaire | E66: kgCH4/kgDBO | G66: =+Entrées!$E$224 -> 0.0036 | H66: =+Entrées!$E$224 -> 0.0036 | I66: =+Entrées!$E$224 -> 0.0036 | J66: =+Entrées!$E$224 -> 0.0036 | K66: =Entrées!$G$224 -> NIR 2024, Partie 2, Tableau A3.6-14
C67: EFlag,ANA,sec | D67: CE pour le traitement par étang anaérobie | E67: kgCH4/kgDBO | G67: =Entrées!$E$225 -> 0.288 | H67: =Entrées!$E$225 -> 0.288 | I67: =Entrées!$E$225 -> 0.288 | J67: =Entrées!$E$225 -> 0.288 | K67: =Entrées!$G$225 -> NIR 2024, Partie 2, Tableau A3.6-14
C68: EFlag,AER,sec | D68: CE pour le traitement de étang aérobie/aéré | E68: kgCH4/kgDBO | G68: =Entrées!$E$226 -> 0 | H68: =Entrées!$E$226 -> 0 | I68: =Entrées!$E$226 -> 0 | J68: =Entrées!$E$226 -> 0 | K68: =Entrées!$G$226 -> NIR 2024, Partie 2, Tableau A3.6-14
C69: EFlag,FAC,sec | D69: CE pour le traitement de étang facultatif ou non spécifié | E69: kgCH4/kgDBO | G69: =Entrées!$E$227 -> 0.072 | H69: =Entrées!$E$227 -> 0.072 | I69: =Entrées!$E$227 -> 0.072 | J69: =Entrées!$E$227 -> 0.072 | K69: =Entrées!$G$227 -> NIR 2024, Partie 2, Tableau A3.6-14
C70: QCH4_prim | D70: Émissions de CH4 provenant du traitement primaire | E70: kgCH4/an | G70: =+G50*(1-G55*G60)*G65 -> 0 | H70: =+H50*(1-H55*H60)*H65 -> 0 | I70: 0 | J70: 0
C71: QCH4_sec | D71: Émissions de CH4 provenant du traitement secondaire | E71: kgCH4/an | G71: =G51*(1-G56*G61)*G66 -> 0 | H71: =H51*(1-H56*H61)*H66 -> 0 | I71: 0 | J71: 0
C72: QCH4_lagANA | D72: Émissions de CH4 provenant du traitement des étangs anaérobies | E72: kgCH4/an | G72: =G52*(1-G57*G62)*G67 -> 0 | H72: 0 | I72: 0 | J72: 0
C73: QCH4_lagAER | D73: Émissions de CH4 provenant du traitement des étangs aérobies/aérés | E73: kgCH4/an | G73: =G53*(1-G58*G63)*G68 -> 0 | H73: 0 | I73: 0 | J73: 0
C74: QCH4_lagFAC | D74: Émissions de CH4 provenant du traitement des étangs facultatifs ou non spécifiés | E74: kgCH4/an | G74: =G54*(1-G59*G64)*G69 -> 0 | H74: 0 | I74: 0 | J74: 0
C75: QCH4_treatment | D75: Émissions de CH4 provenant du traitement | E75: kgCH4/an | F75: =SUM(G75:J75) -> 0 | G75: =SUM(G70:G74) -> 0 | H75: =SUM(H70:H74) -> 0 | I75: 0 | J75: 0
E76: tCO2éq./an | F76: =SUM(G76:J76) -> 0 | G76: =G75*G4/1000 -> 0 | H76: =H75*H4/1000 -> 0 | I76: =I75*I4/1000 -> 0 | J76: =J75*J4/1000 -> 0
B78: Étape 3 – | C78: Estimer les émissions provenant des effluents traités et des rejets de dérivation (eaux usées non traitées) dans l’environnement aquatique
C79: Q CH4 _discharge =(TOWeff + TOWbyp) * EF discharge | K79: Adapté de l'équation 6.1, IPCC 2019, Volume 5, Chap 6
F80: TOTAL | G80: =IF(WWTP1="","",WWTP1) -> STEU1 | H80: =IF(WWTP2="","",WWTP2) -> STEU2 | I80: =IF(WWTP3="","",WWTP3) -> STEU3 | J80: =IF(WWTP4="","",WWTP4) -> STEU4
C81: TOWeff | D81: Total de matière organique de l’effluent secondaire | E81: kgDBO/an | G81: =+G39 -> 0 | H81: =+H39 -> 0 | I81: =+I39 -> 0 | J81: =+J39 -> 0
C82: TOWbypass | D82: Total de matière organique de dérivation secondaire | E82: kgDBO/an | G82: =+G45 -> 0 | H82: =+H45 -> 0 | I82: =+I45 -> 0 | J82: =+J45 -> 0
C83: EFdischarge | D83: CE pour le rejet d’effluents | E83: kgCH4/kgDBO | G83: =IF(Entrées!$E$61=Entrées!$U$61,Entrées!$E$228,IF(Entrées!$E$61=Entrées!$U$62,Entrées!$E$229,IF(Entrées!$E$61=Entrées!$U$63,Entrées!$E$230))) -> 0.068 | H83: =IF(Entrées!$F$61=Entrées!$U$61,Entrées!$E$228,IF(Entrées!$F$61=Entrées!$U$62,Entrées!$E$229,IF(Entrées!$F$61=Entrées!$U$63,Entrées!$E$230))) -> 0.068 | I83: =IF(Entrées!$G$61=Entrées!$U$61,Entrées!$E$228,IF(Entrées!$G$61=Entrées!$U$62,Entrées!$E$229,IF(Entrées!$G$61=Entrées!$U$63,Entrées!$E$230))) -> 0.068 | J83: =IF(Entrées!$H$61=Entrées!$U$61,Entrées!$E$228,IF(Entrées!$H$61=Entrées!$U$62,Entrées!$E$229,IF(Entrées!$H$61=Entrées!$U$63,Entrées!$E$230))) -> 0.068 | K83: =Entrées!G228 -> IPCC 2019, Tableau 6.3
C84: QCH4_discharge | D84: Émissions de CH4 provenant du rejet d’effluents | E84: kgCH4/an | F84: =SUM(G84:J84) -> 0 | G84: =(G82+G81)*G83 -> 0 | H84: =(H82+H81)*H83 -> 0 | I84: 0 | J84: 0
E85: tCO2éq./an | F85: =SUM(G85:J85) -> 0 | G85: =G84*G4/1000 -> 0 | H85: =H84*H4/1000 -> 0 | I85: =I84*I4/1000 -> 0 | J85: =J84*J4/1000 -> 0
B87: Étape 4 – | C87: Estimer les émissions provenant de la digestion anaérobie des boues
C88: Remarque : Les deux méthodes sont offertes pour calculer ces émissions, l’une utilise la masse des déchets organiques et l’autre le volume de gaz de digestion produit et suppose des émissions fugitives de 2,1 % selon le RIN (la valeur par défaut du GIEC est de 5 %, mais sa fourchette est de 0 à 10 %).
C89: Le GIEC fournit des valeurs mondiales, alors que le RIN devrait en théorie fournir des estimations plus précises pour les installations canadiennes. Les deux sont incluses pour donner aux utilisateurs un choix basé sur les données dont ils disposent.
C91: Choisir une méthode d’inventaire pour les émissions fugitives des digesteurs anaérobies | G91: Méthode 2 - NIR Canada | N91: Méthode 1 - GIEC
N92: Méthode 2 - NIR Canada
B93: Méthode 1 – GIEC | C93: Q CH4 fugitive = (Mslud_org x EF anaerobic) x 10-3 | K93: =N91 -> Méthode 1 - GIEC
F94: TOTAL | G94: =IF(WWTP1="","",WWTP1) -> STEU1 | H94: =IF(WWTP2="","",WWTP2) -> STEU2 | I94: =IF(WWTP3="","",WWTP3) -> STEU3 | J94: =IF(WWTP4="","",WWTP4) -> STEU4
D95: Masse sèche de solides volatils primaires à la digestion | E95: kg de boues sèches/an | G95: =+Entrées!E49 -> 0 | H95: =+Entrées!F49 -> 0 | I95: =+Entrées!G49 -> 0 | J95: =+Entrées!H49 -> 0
D96: Masse sèche de solides volatils secondaires à la digestion | E96: kg de boues sèches/an | G96: =Entrées!E51 -> 0 | H96: =Entrées!F51 -> 0 | I96: =Entrées!G51 -> 0 | J96: =Entrées!H51 -> 0
C97: Mslud_org | D97: Masse sèche de solides volatils primaires et secondaires à la digestion | E97: kg de boues sèches/an | G97: =G95+G96 -> 0 | H97: =H95+H96 -> 0 | I97: 0 | J97: 0
C98: EFanaerobic | D98: CE pour la digestion anaérobie | E98: kgCH4/kgdéchetstraités | G98: =+Entrées!$E$231 -> 2 | H98: =+Entrées!$E$231 -> 2 | I98: =+Entrées!$E$231 -> 2 | J98: =+Entrées!$E$231 -> 2 | K98: =Entrées!$G$231 -> IPCC 2006, Vol 5, Chap 4, Tableau 4.1
C99: QCH4 fugitive | D99: Émissions fugitives de CH4 du digesteur anaérobie (méthode 1) | E99: kgCH4/an | F99: =SUM(G99:J99) -> 0 | G99: =+G97*G98*10^-3 -> 0 | H99: =+H97*H98*10^-3 -> 0 | I99: 0 | J99: 0
E100: tCO2éq./an | F100: =SUM(G100:J100) -> 0 | G100: =G99*G4/1000 -> 0 | H100: =H99*H4/1000 -> 0 | I100: =I99*I4/1000 -> 0 | J100: =J99*J4/1000 -> 0
C102: Q CH4 fugitive = p * Vcap / (1-p) * CCH4 | K102: =N92 -> Méthode 2 - NIR Canada
B103: Méthode 2 – RIN du Canada | F103: TOTAL | G103: =IF(WWTP1="","",WWTP1) -> STEU1 | H103: =IF(WWTP2="","",WWTP2) -> STEU2 | I103: =IF(WWTP3="","",WWTP3) -> STEU3 | J103: =IF(WWTP4="","",WWTP4) -> STEU4
C104: p | D104: Pourcentage d’émissions fugitives du digesteur | E104: % | G104: =+Entrées!E70 -> 0.021 | H104: =+Entrées!F70 -> 0.021 | I104: =+Entrées!G70 -> 0.021 | J104: =+Entrées!H70 -> 0.021 | K104: =Entrées!$P$70 -> NIR2024, Partie 2, section A3.6.2.2.1
C105: Vcap | D105: Volume journalier moyen de gaz de digesteur mesuré ou capté | E105: m3/jour | G105: =+Entrées!E64 -> 0 | H105: =+Entrées!F64 -> 0 | I105: =+Entrées!G64 -> 0 | J105: =+Entrées!H64 -> 0 | K105: =Entrées!$Q$64 -> 0
C106: VDG | D106: Volume total annuel de gaz de digestion produit (avant les pertes fugitives) | E106: m3/an | G106: =+G105/(1-G104)*365 -> 0 | H106: =+H105/(1-H104)*365 -> 0 | I106: =+I105/(1-I104)*365 -> 0 | J106: =+J105/(1-J104)*365 -> 0
C107: CCH4 | D107: Concentration de CH4 dans le gaz de digesteur | E107: kgCH4/L | G107: =+Entrées!E69 -> 0.00042835 | H107: =+Entrées!F69 -> 0.00042835 | I107: =+Entrées!G69 -> 0.00042835 | J107: =+Entrées!H69 -> 0.00042835 | K107: =Entrées!$P$68 -> Metcalf & Eddy, Wastewater Engineering, Treatment and Reuse, 4th Edition, 2003 and professional judgement
C108: QCH4 fugitive | D108: Émissions fugitives de CH4 du digesteur anaérobie (méthode 2) | E108: kgCH4/an | F108: =SUM(G108:J108) -> 0 | G108: =+(G106*1000)*G107*G104 -> 0 | H108: =+(H106*1000)*H107*H104 -> 0 | I108: 0 | J108: 0
E109: tCO2éq./an | F109: =SUM(G109:J109) -> 0 | G109: =G108*G4/1000 -> 0 | H109: =H108*H4/1000 -> 0 | I109: =I108*I4/1000 -> 0 | J109: =J108*J4/1000 -> 0
C111: QCH4 fugitive | D111: ="Émissions fugitives de CH4 du digesteur anaérobie (méthode choisie = "&G91&")" -> Émissions fugitives de CH4 du digesteur anaérobie (méthode choisie = Méthode 2 - NIR Canada) | E111: kgCH4/an | F111: =SUM(G111:J111) -> 0 | G111: =IF($G$91=$K$93,G99,G108) -> 0 | H111: 0 | I111: 0 | J111: 0
E112: tCO2éq./an | F112: =SUM(G112:J112) -> 0 | G112: 0 | H112: 0 | I112: 0 | J112: 0
D114: Émissions totales de méthane (en tant que méthane) | E114: kgCH4/an | F114: =SUM(G114:J114) -> 0 | G114: =G111+G84+G75 -> 0 | H114: =H111+H84+H75 -> 0 | I114: 0 | J114: 0
D115: Émissions totales de méthane (en CO2-éq.) | E115: tCO2éq./an | F115: =SUM(G115:J115) -> 0 | G115: =G112+G85+G76 -> 0 | H115: =H112+H85+H76 -> 0 | I115: 0 | J115: 0 | K115: ="Utilisation de la "&G91&" pour les émissions de digestion anaérobique." -> Utilisation de la Méthode 2 - NIR Canada pour les émissions de digestion anaérobique.
B117: ÉMISSIONS D’OXYDE NITREUX PROVENANT DES EAUX USÉES DOMESTIQUES
B118: Étape 1 – | C118: Estimer la quantité total d’azote en kgN/an dans l’influent des eaux usées et dans les effluents rejetés dans l’environnement aquatique
C119: Azote total dans l’influent des eaux usées
C120: TNin = Fin*C N in | E120: Unité | G120: =IF(WWTP1="","",WWTP1) -> STEU1 | H120: =IF(WWTP2="","",WWTP2) -> STEU2 | I120: =IF(WWTP3="","",WWTP3) -> STEU3 | J120: =IF(WWTP4="","",WWTP4) -> STEU4 | K120: User Notes/References
C121: Fin | D121: Débit moyen annuel de l’influent de la station | E121: m3/jour | G121: =+Entrées!E23 -> 0 | H121: =+Entrées!F23 -> 0 | I121: =+Entrées!G23 -> 0 | J121: =+Entrées!H23 -> 0 | K121: =Entrées!$Q$23 -> 0
C122: CN in | D122: Concentration moyenne d’azote total dans l’effluent d’eaux usées | E122: mgN/L | G122: =+Entrées!E53 -> 0 | H122: =+Entrées!F53 -> 0 | I122: =+Entrées!G53 -> 0 | J122: =+Entrées!H53 -> 0 | K122: =Entrées!$Q$53 -> 0
C123: TNin | D123: Azote total de l’influent | E123: kgN/an | G123: =+G121*G122*365/1000 -> 0 | H123: =+H121*H122*365/1000 -> 0 | I123: 0 | J123: 0
C125: Azote total dans l’effluent d’eaux usées traitées rejeté dans l’environnement aquatique
C126: TNeff = Feff*C N eff | G126: =IF(WWTP1="","",WWTP1) -> STEU1 | H126: =IF(WWTP2="","",WWTP2) -> STEU2 | I126: =IF(WWTP3="","",WWTP3) -> STEU3 | J126: =IF(WWTP4="","",WWTP4) -> STEU4
C127: FEff | D127: Moyenne annuelle du débit de l’effluent du traitement secondaire | E127: m3/jour | G127: =+Entrées!E26 -> 0 | H127: =+Entrées!F26 -> 0 | I127: =+Entrées!G26 -> 0 | J127: =+Entrées!H26 -> 0 | K127: =Entrées!$Q$26 -> 0
C128: CN eff_treat | D128: Concentration moyenne d’azote total dans l’effluent du traitement secondaire | E128: mgN/L | G128: =+Entrées!E54 -> 0 | H128: =+Entrées!F54 -> 0 | I128: =+Entrées!G54 -> 0 | J128: =+Entrées!H54 -> 0 | K128: =Entrées!$Q$54 -> 0
C129: TN eff_treat | D129: Total de l’azote du traitement secondaire | E129: kgN/an | G129: =+G127*G128*365/1000 -> 0 | H129: =+H127*H128*365/1000 -> 0 | I129: 0 | J129: 0
C131: Azote total dans l’effluent d’eaux usées non traitées (ou dérivées) rejeté dans l’environnement aquatique
C132: TN eff_bypass = Fbypass* CN eff_bypass | G132: =IF(WWTP1="","",WWTP1) -> STEU1 | H132: =IF(WWTP2="","",WWTP2) -> STEU2 | I132: =IF(WWTP3="","",WWTP3) -> STEU3 | J132: =IF(WWTP4="","",WWTP4) -> STEU4
C133: Fbypass | D133: Moyenne annuelle du débit de dérivation du traitement secondaire | E133: m3/jour | G133: =+Entrées!E25 -> 0 | H133: =+Entrées!F25 -> 0 | I133: =+Entrées!G25 -> 0 | J133: =+Entrées!H25 -> 0 | K133: =Entrées!$Q$25 -> 0
C134: CN eff_bypass | D134: Concentration moyenne d’azote total dans la dérivation du traitement secondaire | E134: mgN/L | G134: =+Entrées!E55 -> 0 | H134: =+Entrées!F55 -> 0 | I134: =+Entrées!G55 -> 0 | J134: =+Entrées!H55 -> 0 | K134: =Entrées!$Q$55 -> 0
C135: TNeff_bypass | D135: Total de l’azote de dérivation secondaire | E135: kgN/an | G135: =+G133*G134*365/1000 -> 0 | H135: =+H133*H134*365/1000 -> 0 | I135: 0 | J135: 0
B137: Étape 2 – | C137: Estimation des émissions du traitement
C138: Émissions de N2O provenant des stations d’épuration des eaux usées domestiques
C139: QN2O treatment = TNin* EFt*(kg N2O/kg N2O-N) | K139: IPCC 2019, Volume 5, Chap 6,
F140: TOTAL | G140: =IF(WWTP1="","",WWTP1) -> STEU1 | H140: =IF(WWTP2="","",WWTP2) -> STEU2 | I140: =IF(WWTP3="","",WWTP3) -> STEU3 | J140: =IF(WWTP4="","",WWTP4) -> STEU4
C141: TNin | D141: Azote total de l’influent | E141: kgN/an | G141: =+G123 -> 0 | H141: =+H123 -> 0 | I141: =+I123 -> 0 | J141: =+J123 -> 0
C142: EFaerobic | D142: CE pour une station d’épuration aérobie centralisée | E142: kgN2O-N/kgN | G142: =+Entrées!$E$234 -> 0.0161 | H142: =+Entrées!$E$234 -> 0.0161 | I142: =+Entrées!$E$234 -> 0.0161 | J142: =+Entrées!$E$234 -> 0.0161 | K142: =Entrées!$G$234 -> IPCC 2019 Vol 5 Chap 6 Tableau 6.8A
C143: QN2O treatment | D143: Émissions de N2O provenant du traitement | E143: kgN2O/an | F143: =SUM(G143:J143) -> 0 | G143: =+G141*G142*44/28 -> 0 | H143: =+H141*H142*44/28 -> 0 | I143: =+I141*I142*44/28 -> 0 | J143: =+J141*J142*44/28 -> 0
E144: tCO2éq./an | F144: =SUM(G144:J144) -> 0 | G144: =G143*G5/1000 -> 0 | H144: =H143*H5/1000 -> 0 | I144: =I143*I5/1000 -> 0 | J144: =J143*J5/1000 -> 0
B146: Étape 3 – | C146: Estimer les émissions de N2O provenant des effluents traités et des rejets de dérivation (eaux usées non traitées) dans l’environnement aquatique
C147: Q N2O_discharge= ( TNeff_treat + TNeff_bypass) * EFeff_dischargeN2O *(kg N2O/kg N2O-N) | K147: Adapté de l'équation 6.7, IPCC 2019, Volume 5, Chap 6
F148: TOTAL | G148: =IF(WWTP1="","",WWTP1) -> STEU1 | H148: =IF(WWTP2="","",WWTP2) -> STEU2 | I148: =IF(WWTP3="","",WWTP3) -> STEU3 | J148: =IF(WWTP4="","",WWTP4) -> STEU4
C149: TNeff_treat | D149: Total de l’azote du traitement secondaire | G149: =+G129 -> 0 | H149: =+H129 -> 0 | I149: =+I129 -> 0 | J149: =+J129 -> 0
C150: TNeff_bypass | D150: Total de l’azote de dérivation secondaire | E150: kgN/an | G150: =+G135 -> 0 | H150: =+H135 -> 0 | I150: =+I135 -> 0 | J150: =+J135 -> 0
C151: EFeff_dischargeN2O | D151: CE pour le rejet d’effluents traités | E151: kgN2O-N/kgN | G151: =+Entrées!$E$235 -> 0.005 | H151: =+Entrées!$E$235 -> 0.005 | I151: =+Entrées!$E$235 -> 0.005 | J151: =+Entrées!$E$235 -> 0.005 | K151: =Entrées!$G$235 -> IPCC 2019 Vol 5 Chap 6 Tableau 6.8A
C152: Q N2O_discharge | D152: Émissions de N2O provenant du rejet d’effluent | E152: kgN2O/an | F152: =SUM(G152:J152) -> 0 | G152: =(G149+G150)*G151*44/28 -> 0 | H152: =(H149+H150)*H151*44/28 -> 0 | I152: 0 | J152: 0
E153: tCO2éq./an | F153: =SUM(G153:J153) -> 0 | G153: =G152*G5/1000 -> 0 | H153: =H152*H5/1000 -> 0 | I153: =I152*I5/1000 -> 0 | J153: =J152*J5/1000 -> 0
D155: Total des émissions d’oxyde nitreux | E155: kgN2O/an | F155: =SUM(G155:J155) -> 0 | G155: =G152+G143 -> 0 | H155: 0 | I155: 0 | J155: 0
E156: tCO2éq./an | F156: =SUM(G156:J156) -> 0 | G156: 0 | H156: 0 | I156: 0 | J156: 0

Sheet Portée 1 - Combustion
B1: Portée 1 – Émissions de GES associées à la combustion
B3: POTENTIEL DE RÉCHAUFFEMENT PLANÉTAIRE
D4: PRP du CH4 biogénique (horizon de 100 ans) | E4: - | G4: =Entrées!$E$212 -> 27 | H4: =Entrées!$E$212 -> 27 | I4: =Entrées!$E$212 -> 27 | J4: =Entrées!$E$212 -> 27 | K4: =Entrées!$I$212 -> AR4: IPCC 2007, Tableau 2.14, AR5: IPCC 2013, Tableau 8.7, AR6: IPCC 2021, Tableau 7.15
D5: PRP du N2O (horizon de 100 ans) | E5: - | G5: =Entrées!$E$214 -> 273 | H5: =Entrées!$E$214 -> 273 | I5: =Entrées!$E$214 -> 273 | J5: =Entrées!$E$214 -> 273 | K5: =Entrées!$I$214 -> AR4: IPCC 2007, Tableau 2.14, AR5: IPCC 2013, Tableau 8.7, AR6: IPCC 2021, Tableau 7.17
B7: ÉMISSIONS DE COMBUSTION DU BIOGAZ DU DIGESTEUR
B8: Étape 1 – | C8: Estimation des émissions de la combustion du gaz de digesteur dans les chaudières | K8: Notes/références de l’utilisateur
C9: EDG,boiler = ((1-εCH4 )* fCH4 * dboiler * VDG)*GWPCH4 + (EFN2O * dboiler * VDG)*GWPN2O | K9: Adapté de Méthodologie du modèle ACV des combustibles du Canada 2020, Annexe B, Étape clé 2, Annex D (pg. 295 du PDF)
E10: Unité | F10: TOTAL | G10: =IF(WWTP1="","",WWTP1) -> STEU1 | H10: =IF(WWTP2="","",WWTP2) -> STEU2 | I10: =IF(WWTP3="","",WWTP3) -> STEU3 | J10: =IF(WWTP4="","",WWTP4) -> STEU4
C11: εCH4,boiler | D11: Efficacité de la combustion pour les chaudières – Taux de conversion du CH4 en CO2 | E11: % | G11: =Entrées!$E$244 -> 0.98 | H11: =Entrées!$E$244 -> 0.98 | I11: =Entrées!$E$244 -> 0.98 | J11: =Entrées!$E$244 -> 0.98 | K11: =Entrées!G244 -> Canada GHG Requirements 2023, Équation 2-19 (p. 45 du PDF)
C12: CCH4 | D12: Concentration de CH4 dans le gaz de digesteur | E12: kgCH4/L | G12: =Entrées!E69 -> 0.00042835 | H12: =Entrées!F69 -> 0.00042835 | I12: =Entrées!G69 -> 0.00042835 | J12: =Entrées!H69 -> 0.00042835 | K12: =Entrées!$P$68 -> Metcalf & Eddy, Wastewater Engineering, Treatment and Reuse, 4th Edition, 2003 and professional judgement
C13: fCH4 | D13: Fraction de CH4 dans le gaz de digesteur | E13: g/m3 | G13: =G12*1000000 -> 428.35 | H13: =H12*1000000 -> 428.35 | I13: 428.35 | J13: 428.35
C14: EFN2O | D14: CE de N2O pour la combustion des gaz de digesteur | E14: Gaz de digesteur kgN2O/m3 | G14: =Entrées!$E$243 -> 1.552524455e-05 | H14: =Entrées!$E$243 -> 1.552524455e-05 | I14: =Entrées!$E$243 -> 1.552524455e-05 | J14: =Entrées!$E$243 -> 1.552524455e-05 | K14: =Entrées!$G$242 -> EPA Direct Emissions, 2016, Table A-4 (https://www.epa.gov/sites/production/files/2016-03/documents/stationaryemissions_3_2016.pdf)
C15: dboiler | D15: Pourcentage de gaz de digesteur brûlé dans des chaudières | E15: % | G15: =Entrées!E65 -> 0 | H15: =Entrées!F65 -> 0 | I15: =Entrées!G65 -> 0 | J15: =Entrées!H65 -> 0 | K15: =Entrées!Q65 -> 0
C16: VDG | D16: Volume moyen annuel de gaz de digesteur produit | E16: m3/jour | G16: =Entrées!E64 -> 0 | H16: =Entrées!F64 -> 0 | I16: =Entrées!G64 -> 0 | J16: =Entrées!H64 -> 0 | K16: =Entrées!Q64 -> 0
D17: Émissions de CH4 provenant de la combustion de gaz de digesteur dans les chaudières | E17: tCH4/an | G17: =+(1-G11)*G13/(1*10^6)*(G15*365)*G16 -> 0 | H17: =+(1-H11)*H13/(1*10^6)*(H15*365)*H16 -> 0 | I17: =+(1-I11)*I13/(1*10^6)*(I15*365)*I16 -> 0 | J17: =+(1-J11)*J13/(1*10^6)*(J15*365)*J16 -> 0
D18: Émissions de N2O provenant de la combustion de gaz de digesteur dans les chaudières | E18: tN2O/an | G18: =+G14*G15*(G16*365)/1000 -> 0 | H18: =+H14*H15*(H16*365)/1000 -> 0 | I18: =+I14*I15*(I16*365)/1000 -> 0 | J18: =+J14*J15*(J16*365)/1000 -> 0
C19: EDG,boiler | D19: Émissions de la combustion du gaz de digesteur dans la chaudière | E19: tCO2éq./an | F19: =SUM(G19:Q19) -> 0 | G19: =+(G17*G4)+(G18*G5) -> 0 | H19: =+(H17*H4)+(H18*H5) -> 0 | I19: =+(I17*I4)+(I18*I5) -> 0 | J19: =+(J17*J4)+(J18*J5) -> 0
B21: Étape 2 – | C21: Estimation des émissions de la combustion du gaz de digesteur des dispositifs de cogénération | K21: Notes/références de l’utilisateur
C22: EDG,cogen = ((1-εCH4) * fCH4 * dcogen * VDG)*GWPCH4 + (EFN2O * dcogen * VDG)*GWPN2O | K22: =K9 -> Adapté de Méthodologie du modèle ACV des combustibles du Canada 2020, Annexe B, Étape clé 2, Annex D (pg. 295 du PDF)
E23: Unité | F23: TOTAL | G23: =IF(WWTP1="","",WWTP1) -> STEU1 | H23: =IF(WWTP2="","",WWTP2) -> STEU2 | I23: =IF(WWTP3="","",WWTP3) -> STEU3 | J23: =IF(WWTP4="","",WWTP4) -> STEU4
C24: εCH4,cogen | D24: Rendement de combustion pour les dispositifs de cogénération | E24: % | G24: =Entrées!$E$245 -> 0.985 | H24: =Entrées!$E$245 -> 0.985 | I24: =Entrées!$E$245 -> 0.985 | J24: =Entrées!$E$245 -> 0.985 | K24: =Entrées!G245 -> Willis, J. (2017) GHG Methodologies for Sewer CH4, Methanol-Use CO2, and Biogas-Combustion CH4 and their Significance for Centralized Wastewater Treatment. Queensland.
C25: fCH4 | D25: Fraction de CH4 dans le gaz de digesteur | E25: g/m3 | G25: =G13 -> 428.35 | H25: =H13 -> 428.35 | I25: =I13 -> 428.35 | J25: =J13 -> 428.35
C26: dcogen | D26: Gaz de digestion brûlé dans des dispositifs de cogénération | E26: % | G26: =Entrées!E66 -> 0 | H26: =Entrées!F66 -> 0 | I26: =Entrées!G66 -> 0 | J26: =Entrées!H66 -> 0 | K26: =Entrées!Q66 -> 0
C27: VDG | D27: Volume moyen annuel de gaz de digesteur produit | E27: m3/jour | G27: =Entrées!E64 -> 0 | H27: =Entrées!F64 -> 0 | I27: =Entrées!G64 -> 0 | J27: =Entrées!H64 -> 0
C28: EFN2O | D28: CE de N2O pour la combustion des gaz de digesteur | E28: Gaz de digesteur kgN2O/m3 | G28: =Entrées!$E$243 -> 1.552524455e-05 | H28: =Entrées!$E$243 -> 1.552524455e-05 | I28: =Entrées!$E$243 -> 1.552524455e-05 | J28: =Entrées!$E$243 -> 1.552524455e-05 | K28: =Entrées!$G$242 -> EPA Direct Emissions, 2016, Table A-4 (https://www.epa.gov/sites/production/files/2016-03/documents/stationaryemissions_3_2016.pdf)
D29: Émissions de CH4 provenant de la combustion de gaz de dispositifs de cogénération | E29: tCH4/an | G29: =+(1-G24)*G25/(1*10^6)*(G26*365)*G27 -> 0 | H29: =+(1-H24)*H25/(1*10^6)*(H26*365)*H27 -> 0 | I29: 0 | J29: 0
D30: Émissions de N2O provenant de la combustion de gaz de digesteur des dispositifs de cogénération | E30: tN2O/an | G30: =+G28*G26*(G27*365)/1000 -> 0 | H30: =+H28*H26*(H27*365)/1000 -> 0 | I30: 0 | J30: 0
C31: EDG,cogen | D31: Émissions de combustion des gaz de digesteur dans les dispositifs de cogénération | E31: tCO2éq./an | F31: =SUM(G31:Q31) -> 0 | G31: =+(G29*G4)+(G30*G5) -> 0 | H31: =+(H29*H4)+(H30*H5) -> 0 | I31: =+(I29*I4)+(I30*I5) -> 0 | J31: =+(J29*J4)+(J30*J5) -> 0
B33: Étape 3 – | C33: Estimation des émissions de la combustion du gaz de digestion du torchage | K33: Notes/références de l’utilisateur
C34: EDG,flare = ((1-εCH4) * fCH4 * dflare * VDG)*GWPCH4 + (EFN2O * dflare * VDG)*GWPN2O | K34: =K9 -> Adapté de Méthodologie du modèle ACV des combustibles du Canada 2020, Annexe B, Étape clé 2, Annex D (pg. 295 du PDF)
E35: Unité | F35: TOTAL | G35: =IF(WWTP1="","",WWTP1) -> STEU1 | H35: =IF(WWTP2="","",WWTP2) -> STEU2 | I35: =IF(WWTP3="","",WWTP3) -> STEU3 | J35: =IF(WWTP4="","",WWTP4) -> STEU4
C36: εCH4,fl | D36: Efficacité de la combustion pour le torchage | E36: % | G36: =Entrées!$E$246 -> 0.98 | H36: =Entrées!$E$246 -> 0.98 | I36: =Entrées!$E$246 -> 0.98 | J36: =Entrées!$E$246 -> 0.98 | K36: =Entrées!G246 -> US EPA AP-42, Chapter 13.5
C37: fCH4 | D37: Fraction de CH4 dans le gaz de digesteur | E37: g/m3 | G37: =G13 -> 428.35 | H37: =H13 -> 428.35 | I37: =I13 -> 428.35 | J37: =J13 -> 428.35
C38: dflare | D38: % de gaz de digestion torché | E38: % | G38: =Entrées!E67 -> 1 | H38: =Entrées!F67 -> 1 | I38: =Entrées!G67 -> 1 | J38: =Entrées!H67 -> 1 | K38: =Entrées!Q67 -> 0
C39: VDG | D39: Volume moyen annuel de gaz de digesteur produit | E39: m3/jour | G39: =+Entrées!E64 -> 0 | H39: =+Entrées!F64 -> 0 | I39: =+Entrées!G64 -> 0 | J39: =+Entrées!H64 -> 0
C40: EFN2O | D40: CE de N2O pour la combustion des gaz de digesteur | E40: Gaz de digesteur kgN2O/m3 | G40: =Entrées!$E$243 -> 1.552524455e-05 | H40: =Entrées!$E$243 -> 1.552524455e-05 | I40: =Entrées!$E$243 -> 1.552524455e-05 | J40: =Entrées!$E$243 -> 1.552524455e-05 | K40: =Entrées!$G$242 -> EPA Direct Emissions, 2016, Table A-4 (https://www.epa.gov/sites/production/files/2016-03/documents/stationaryemissions_3_2016.pdf)
D41: Émissions de CH4 provenant de la combustion de gaz de digesteur de torchage | E41: tCH4/an | G41: =+(1-G36)*G37/(1*10^6)*(G38*365)*G39 -> 0 | H41: =+(1-H36)*H37/(1*10^6)*(H38*365)*H39 -> 0 | I41: 0 | J41: 0
D42: Émissions de N2O provenant de la combustion de gaz de digesteur de torchage | E42: tN2O/an | G42: =+G40*(G38*365)*G39/1000 -> 0 | H42: =+H40*(H38*365)*H39/1000 -> 0 | I42: 0 | J42: 0
C43: EDG,flare | D43: Émissions de combustion des gaz de digesteur de torchage | E43: tCO2éq./an | F43: =SUM(G43:Q43) -> 0 | G43: =(G41*G4)+(G5*G42) -> 0 | H43: =(H41*H4)+(H5*H42) -> 0 | I43: =(I41*I4)+(I5*I42) -> 0 | J43: =(J41*J4)+(J5*J42) -> 0
B45: Étape 4 – | C45: Estimation des émissions de la combustion du gaz de digesteur
E46: Unité | F46: TOTAL | G46: =IF(WWTP1="","",WWTP1) -> STEU1 | H46: =IF(WWTP2="","",WWTP2) -> STEU2 | I46: =IF(WWTP3="","",WWTP3) -> STEU3 | J46: =IF(WWTP4="","",WWTP4) -> STEU4
D47: Total des émissions de combustion des gaz de digesteur | E47: tCO2éq./an | F47: =SUM(G47:Q47) -> 0 | G47: =+G19+G31+G43 -> 0 | H47: =+H19+H31+H43 -> 0 | I47: =+I19+I31+I43 -> 0 | J47: =+J19+J31+J43 -> 0
B49: INCINÉRATION DES BOUES
B50: Étape 1 – | C50: Estimation des émissions de méthane pour l’incinération des boues de biosolides | K50: Notes/références de l’utilisateur
C51: QCH4,inc = EFCH4 * Wwet,sludge | K51: IPCC 2006 Volume 5, Chapter 5
E52: Unité | F52: TOTAL | G52: =IF(WWTP1="","",WWTP1) -> STEU1 | H52: =IF(WWTP2="","",WWTP2) -> STEU2 | I52: =IF(WWTP3="","",WWTP3) -> STEU3 | J52: =IF(WWTP4="","",WWTP4) -> STEU4
C53: EFCH4 | D53: CE du CH4, incinération continue de boues de DSM | E53: gCH4/tbouehumide | G53: =Entrées!$E$249 -> 9.7 | H53: =Entrées!$E$249 -> 9.7 | I53: =Entrées!$E$249 -> 9.7 | J53: =Entrées!$E$249 -> 9.7 | K53: =Entrées!G249 -> IPCC 2006, Vol 5 Chap 5 Section 5.4.2
D54: Quantité de biosolides secs incinérés | E54: tbouesèche/an | G54: =IF(Entrées!E73="","",Entrées!E73) ->  | H54: =IF(Entrées!F73="","",Entrées!F73) ->  | I54: =IF(Entrées!G73="","",Entrées!G73) ->  | J54: =IF(Entrées!H73="","",Entrées!H73) ->  | K54: =Entrées!Q73 -> 0
D55: Pourcentage du total des solides de gâteau de biosolides | E55: % | G55: =IF(Entrées!E74="","",Entrées!E74) ->  | H55: =IF(Entrées!F74="","",Entrées!F74) ->  | I55: =IF(Entrées!G74="","",Entrées!G74) ->  | J55: =IF(Entrées!H74="","",Entrées!H74) ->  | K55: =Entrées!Q74 -> 0
C56: Wwet,sludge | D56: Poids humide des biosolides incinérés | E56: tBouehumide/an | G56: =IF(OR(G55="",G54=""),"",G54/G55) ->  | H56: =IF(OR(H55="",H54=""),"",H54/H55) -> 
C57: QCH4,inc | D57: Émissions de CH4 provenant de l’incinération des boues | E57: tCH4/an | F57: =SUM(G57:P57) -> 0 | G57: =IF(G56="","",G56*G53/1000000) ->  | H57: =IF(H56="","",H56*H53/1000000) -> 
B59: Étape 2 – | C59: Estimation des émissions d’oxyde nitreux pour l’incinération des boues de biosolides | K59: Notes/références de l’utilisateur
C60: QN2O,inc = EFN2O * Wwet, sludge | K60: IPCC 2006 Volume 5, Chapter 5
E61: Unité | F61: TOTAL | G61: =IF(WWTP1="","",WWTP1) -> STEU1 | H61: =IF(WWTP2="","",WWTP2) -> STEU2 | I61: =IF(WWTP3="","",WWTP3) -> STEU3 | J61: =IF(WWTP4="","",WWTP4) -> STEU4
C62: EFN2O,wet | D62: CE du N2O, incinération continue des boues de DSM | E62: gN2O/tBouehumide | G62: =Entrées!$E$250 -> 900 | H62: =Entrées!$E$250 -> 900 | I62: =Entrées!$E$250 -> 900 | J62: =Entrées!$E$250 -> 900 | K62: =Entrées!G250 -> IPCC 2006, Vol 5 Chap 5 Tableau 5.5
C63: Wwet,sludge | D63: Poids humide des biosolides incinérés | E63: tBouehumide/an | G63: =G56 ->  | H63: =H56 ->  | I63: =I56 -> 
C64: QN2O,inc | D64: Émissions de N2O provenant de l’incinération des boues | E64: tN2O/an | F64: =SUM(G64:P64) -> 0 | G64: =IF(G63="","",G63*G62/1000000) ->  | H64: =IF(H63="","",H63*H62/1000000) ->  | I64: =IF(I63="","",I63*I62/1000000) -> 
B66: Étape 3 – | C66: Estimation des émissions d’oxyde nitreux pour l’incinération des boues de biosolides
E67: Unité | F67: TOTAL | G67: =IF(WWTP1="","",WWTP1) -> STEU1 | H67: =IF(WWTP2="","",WWTP2) -> STEU2 | I67: =IF(WWTP3="","",WWTP3) -> STEU3 | J67: =IF(WWTP4="","",WWTP4) -> STEU4
D68: Total des émissions de l’incinération des boues de biosolides | E68: tCO2éq./an | F68: =SUM(G68:Q68) -> 0 | G68: =IF(OR(G64="",G57=""),"",(G57*G4)+(G5*G64)) ->  | H68: =IF(OR(H64="",H57=""),"",(H57*H4)+(H5*H64)) ->  | I68: =IF(OR(I64="",I57=""),"",(I57*I4)+(I5*I64)) ->  | J68: =IF(OR(J64="",J57=""),"",(J57*J4)+(J5*J64)) -> 
B70: ÉMISSIONS DE LA COMBUSTION DU GAZ NATUREL
B71: Étape 1 – | C71: Estimation des émissions de la combustion du gaz naturel sur le site | F71: Référence
C72: C NG = EFc * HHV * VNG | F72: Guideline for Greenhouse Gas Emissions Reporting, Ministry of the Environment and Climate Change, 2015
E73: Unité | F73: TOTAL | G73: =IF(WWTP1="","",WWTP1) -> STEU1 | H73: =IF(WWTP2="","",WWTP2) -> STEU2 | I73: =IF(WWTP3="","",WWTP3) -> STEU3 | J73: =IF(WWTP4="","",WWTP4) -> STEU4 | K73: =IF(WWCollection="","",WWCollection) -> Collecte | L73: =IF(WTP1_="","",WTP1_) -> STE1 | M73: =IF(WTP2_="","",WTP2_) -> STE2 | N73: =IF(WTP3_="","",WTP3_) -> STE3 | O73: =IF(WTP4_="","",WTP4_) -> STE4 | P73: =IF(WDistr="","",WDistr) -> Distribution | Q73: =IF(SuppFac="","",SuppFac) -> Inst. sout. | R73: Notes/références de l’utilisateur
C74: HHVNG | D74: Pouvoir calorifique supérieur du gaz naturel | E74: GJ/m3 | G74: =Entrées!$E$254 -> 0.038 | H74: =Entrées!$E$254 -> 0.038 | I74: =Entrées!$E$254 -> 0.038 | J74: =Entrées!$E$254 -> 0.038 | K74: =Entrées!$E$254 -> 0.038 | L74: =Entrées!$E$254 -> 0.038 | M74: =Entrées!$E$254 -> 0.038 | N74: =Entrées!$E$254 -> 0.038 | O74: =Entrées!$E$254 -> 0.038 | P74: =Entrées!$E$254 -> 0.038 | Q74: =Entrées!$E$254 -> 0.038 | R74: =Entrées!G254 -> MECP ON.20, 2019, Table 20-1, page 96
C75: CICTCG,natural gas | D75: Intensité carbone du gaz naturel – du berceau au consommateur (CTCG) | E75: gCO2éq/MJ | G75: =Entrées!$E$255 -> 15 | H75: =Entrées!$E$255 -> 15 | I75: =Entrées!$E$255 -> 15 | J75: =Entrées!$E$255 -> 15 | K75: =Entrées!$E$255 -> 15 | L75: =Entrées!$E$255 -> 15 | M75: =Entrées!$E$255 -> 15 | N75: =Entrées!$E$255 -> 15 | O75: =Entrées!$E$255 -> 15 | P75: =Entrées!$E$255 -> 15 | Q75: =Entrées!$E$255 -> 15 | R75: =Entrées!G255 -> Canada Fuel LCA Methodology 2020, Annexe B, Tableau 1 (p.129 du PDF)
C76: CICTC,natural gas | D76: Intensité carbone du gaz naturel – du berceau à la combustion (CTC) | E76: gCO2éq/MJ | G76: =Entrées!$E$256 -> 65 | H76: =Entrées!$E$256 -> 65 | I76: =Entrées!$E$256 -> 65 | J76: =Entrées!$E$256 -> 65 | K76: =Entrées!$E$256 -> 65 | L76: =Entrées!$E$256 -> 65 | M76: =Entrées!$E$256 -> 65 | N76: =Entrées!$E$256 -> 65 | O76: =Entrées!$E$256 -> 65 | P76: =Entrées!$E$256 -> 65 | Q76: =Entrées!$E$256 -> 65 | R76: =Entrées!G256 -> Canada Fuel LCA Methodology 2020, Annexe B, Tableau 1 (p.129 du PDF)
C77: EFc | D77: CE de la combustion du gaz naturel | E77: gCO2éq/MJ | G77: =G76-G75 -> 50 | H77: 50 | I77: 50 | J77: 50 | K77: 50 | L77: 50 | M77: 50 | N77: 50 | O77: 50 | P77: 50 | Q77: 50
C78: VNG | D78: Consommation annuelle de gaz naturel | E78: m3/an | G78: =Entrées!E78 -> 0 | H78: =Entrées!F78 -> 0 | I78: =Entrées!G78 -> 0 | J78: =Entrées!H78 -> 0 | K78: =Entrées!I78 -> 0 | L78: =Entrées!J78 -> 0 | M78: =Entrées!K78 -> 0 | N78: =Entrées!L78 -> 0 | O78: =Entrées!M78 -> 0 | P78: =Entrées!N78 -> 0 | Q78: =Entrées!O78 -> 0 | R78: =Entrées!Q78 -> 0
C79: CNG | D79: Émissions de la combustion du gaz naturel | E79: tCO2éq./an | F79: =SUM(G79:Q79) -> 0 | G79: =G74*G78*G77/1000 -> 0 | H79: =H74*H78*H77/1000 -> 0 | I79: 0 | J79: 0 | K79: 0 | L79: 0 | M79: 0 | N79: 0 | O79: 0 | P79: 0 | Q79: 0
B81: ÉMISSIONS DE COMBUSTION DU MAZOUT - No. 2 (LFO)
B82: Étape 1 – | C82: Estimation des émissions de la combustion du mazout sur le site | F82: Référence
C83: C LFO = EFc * HHV * VFO | F83: Guideline for Greenhouse Gas Emissions Reporting, Ministry of the Environment and Climate Change, 2015
E84: Unité | F84: TOTAL | G84: =IF(WWTP1="","",WWTP1) -> STEU1 | H84: =IF(WWTP2="","",WWTP2) -> STEU2 | I84: =IF(WWTP3="","",WWTP3) -> STEU3 | J84: =IF(WWTP4="","",WWTP4) -> STEU4 | K84: =IF(WWCollection="","",WWCollection) -> Collecte | L84: =IF(WTP1_="","",WTP1_) -> STE1 | M84: =IF(WTP2_="","",WTP2_) -> STE2 | N84: =IF(WTP3_="","",WTP3_) -> STE3 | O84: =IF(WTP4_="","",WTP4_) -> STE4 | P84: =IF(WDistr="","",WDistr) -> Distribution | Q84: =IF(SuppFac="","",SuppFac) -> Inst. sout. | R84: Notes/références de l’utilisateur
C85: HHVLFO | D85: Pouvoir calorifique supérieur du mazout | E85: GJ/m3 | G85: =Entrées!$E$258 -> 38.8 | H85: =Entrées!$E$258 -> 38.8 | I85: =Entrées!$E$258 -> 38.8 | J85: =Entrées!$E$258 -> 38.8 | K85: =Entrées!$E$258 -> 38.8 | L85: =Entrées!$E$258 -> 38.8 | M85: =Entrées!$E$258 -> 38.8 | N85: =Entrées!$E$258 -> 38.8 | O85: =Entrées!$E$258 -> 38.8 | P85: =Entrées!$E$258 -> 38.8 | Q85: =Entrées!$E$258 -> 38.8 | R85: =Entrées!G258 -> MECP ON.20, 2019, Table 20-1, page 96
C86: CICTCG,LFO | D86: Intensité carbone du mazout – du berceau au consommateur (CTCG) | E86: gCO2éq/MJ | G86: =Entrées!$E$259 -> 24 | H86: =Entrées!$E$259 -> 24 | I86: =Entrées!$E$259 -> 24 | J86: =Entrées!$E$259 -> 24 | K86: =Entrées!$E$259 -> 24 | L86: =Entrées!$E$259 -> 24 | M86: =Entrées!$E$259 -> 24 | N86: =Entrées!$E$259 -> 24 | O86: =Entrées!$E$259 -> 24 | P86: =Entrées!$E$259 -> 24 | Q86: =Entrées!$E$259 -> 24 | R86: =Entrées!G259 -> Canada Fuel LCA Methodology 2020, Annexe B, Tableau 1 (p.129 du PDF)
C87: CICTC,LFO | D87: Intensité carbone du mazout – du berceau à la combustion (CTC) | E87: gCO2éq/MJ | G87: =Entrées!$E$260 -> 95 | H87: =Entrées!$E$260 -> 95 | I87: =Entrées!$E$260 -> 95 | J87: =Entrées!$E$260 -> 95 | K87: =Entrées!$E$260 -> 95 | L87: =Entrées!$E$260 -> 95 | M87: =Entrées!$E$260 -> 95 | N87: =Entrées!$E$260 -> 95 | O87: =Entrées!$E$260 -> 95 | P87: =Entrées!$E$260 -> 95 | Q87: =Entrées!$E$260 -> 95 | R87: =Entrées!G260 -> Canada Fuel LCA Methodology 2020, Annexe B, Tableau 1 (p.129 du PDF)
C88: EFc | D88: CE de la combustion de mazout | E88: gCO2éq/MJ | G88: =G87-G86 -> 71 | H88: 71 | I88: 71 | J88: 71 | K88: 71 | L88: 71 | M88: 71 | N88: 71 | O88: 71 | P88: 71 | Q88: 71
C89: VLFO | D89: Consommation annuelle de mazout léger (n° 2) | E89: L/an | G89: =Entrées!E79 -> 0 | H89: =Entrées!F79 -> 0 | I89: =Entrées!G79 -> 0 | J89: =Entrées!H79 -> 0 | K89: =Entrées!I79 -> 0 | L89: =Entrées!J79 -> 0 | M89: =Entrées!K79 -> 0 | N89: =Entrées!L79 -> 0 | O89: =Entrées!M79 -> 0 | P89: =Entrées!N79 -> 0 | Q89: =Entrées!O79 -> 0 | R89: =Entrées!Q79 -> 0
C90: CLFO | D90: Émissions de combustion du mazout léger | E90: tCO2éq./an | F90: =SUM(G90:Q90) -> 0 | G90: =G85*G89*G88/1000000 -> 0 | H90: 0 | I90: 0 | J90: =J85*J89*J88/1000000 -> 0 | K90: =K85*K89*K88/1000000 -> 0 | L90: =L85*L89*L88/1000000 -> 0 | M90: =M85*M89*M88/1000000 -> 0 | N90: 0 | O90: =O85*O89*O88/1000000 -> 0 | P90: =P85*P89*P88/1000000 -> 0 | Q90: =Q85*Q89*Q88/1000000 -> 0
B92: ÉMISSIONS DE COMBUSTION DU DIESEL
B93: Étape 1 – | C93: Estimation des émissions de la combustion du diesel sur site | F93: Référence | R93: Notes/références de l’utilisateur
C94: C fleet = EFc * HHV * Vfacility, diesel | F94: Guideline for Greenhouse Gas Emissions Reporting, Ministry of the Environment and Climate Change, 2015
E95: Unité | F95: TOTAL | G95: =IF(WWTP1="","",WWTP1) -> STEU1 | H95: =IF(WWTP2="","",WWTP2) -> STEU2 | I95: =IF(WWTP3="","",WWTP3) -> STEU3 | J95: =IF(WWTP4="","",WWTP4) -> STEU4 | K95: =IF(WWCollection="","",WWCollection) -> Collecte | L95: =IF(WTP1_="","",WTP1_) -> STE1 | M95: =IF(WTP2_="","",WTP2_) -> STE2 | N95: =IF(WTP3_="","",WTP3_) -> STE3 | O95: =IF(WTP4_="","",WTP4_) -> STE4 | P95: =IF(WDistr="","",WDistr) -> Distribution | Q95: =IF(SuppFac="","",SuppFac) -> Inst. sout.
C96: HHVdiesel | D96: Pouvoir calorifique supérieur du diesel | E96: GJ/m3 | G96: =Entrées!$E$262 -> 38.3 | H96: =Entrées!$E$262 -> 38.3 | I96: =Entrées!$E$262 -> 38.3 | J96: =Entrées!$E$262 -> 38.3 | K96: =Entrées!$E$262 -> 38.3 | L96: =Entrées!$E$262 -> 38.3 | M96: =Entrées!$E$262 -> 38.3 | N96: =Entrées!$E$262 -> 38.3 | O96: =Entrées!$E$262 -> 38.3 | P96: =Entrées!$E$262 -> 38.3 | Q96: =Entrées!$E$262 -> 38.3 | R96: =Entrées!G262 -> MECP ON.20, 2019, Table 20-1, page 96
C97: CICTCG | D97: Intensité carbone du diesel – du berceau au consommateur (CTCG) | E97: gCO2éq/MJ | G97: =Entrées!$E$263 -> 25 | H97: =Entrées!$E$263 -> 25 | I97: =Entrées!$E$263 -> 25 | J97: =Entrées!$E$263 -> 25 | K97: =Entrées!$E$263 -> 25 | L97: =Entrées!$E$263 -> 25 | M97: =Entrées!$E$263 -> 25 | N97: =Entrées!$E$263 -> 25 | O97: =Entrées!$E$263 -> 25 | P97: =Entrées!$E$263 -> 25 | Q97: =Entrées!$E$263 -> 25 | R97: =Entrées!G263 -> Canada Fuel LCA Methodology 2020, Annexe B, Tableau 1 (p.129 du PDF)
C98: CICTC | D98: Intensité carbone du diesel – du berceau à la combustion (CTC) | E98: gCO2éq/MJ | G98: =Entrées!$E$264 -> 96 | H98: =Entrées!$E$264 -> 96 | I98: =Entrées!$E$264 -> 96 | J98: =Entrées!$E$264 -> 96 | K98: =Entrées!$E$264 -> 96 | L98: =Entrées!$E$264 -> 96 | M98: =Entrées!$E$264 -> 96 | N98: =Entrées!$E$264 -> 96 | O98: =Entrées!$E$264 -> 96 | P98: =Entrées!$E$264 -> 96 | Q98: =Entrées!$E$264 -> 96 | R98: =Entrées!G264 -> Canada Fuel LCA Methodology 2020, Annexe B, Tableau 1 (p.129 du PDF)
C99: EFc | D99: CE de la combustion de diesel | E99: gCO2éq/MJ | G99: =G98-G97 -> 71 | H99: =H98-H97 -> 71 | I99: 71 | J99: 71 | K99: 71 | L99: 71 | M99: 71 | N99: 71 | O99: 71 | P99: 71 | Q99: 71
C100: Vfacility, diesel | D100: Volume de diesel livré à l’installation | E100: L/an | G100: =Entrées!E80 -> 0 | H100: =Entrées!F80 -> 0 | I100: =Entrées!G80 -> 0 | J100: =Entrées!H80 -> 0 | K100: =Entrées!I80 -> 0 | L100: =Entrées!J80 -> 0 | M100: =Entrées!K80 -> 0 | N100: =Entrées!L80 -> 0 | O100: =Entrées!M80 -> 0 | P100: =Entrées!N80 -> 0 | Q100: =Entrées!O80 -> 0 | R100: =Entrées!Q80 -> 0
C101: Cdiesel | D101: Émissions de combustion du diesel | E101: tCO2éq./an | F101: =SUM(G101:Q101) -> 0 | G101: =G96*G100*G99/1000000 -> 0 | H101: 0 | I101: 0 | J101: 0 | K101: 0 | L101: 0 | M101: 0 | N101: 0 | O101: 0 | P101: 0 | Q101: 0
B103: ÉMISSIONS DE COMBUSTION DU PROPANE
B104: Étape 1 – | C104: Estimation des émissions de la combustion du propane sur site | F104: Référence
C105: C fleet = EFc * HHV * Vfacility, propane | F105: Guideline for Greenhouse Gas Emissions Reporting, Ministry of the Environment and Climate Change, 2015
E106: Unité | F106: TOTAL | G106: =IF(WWTP1="","",WWTP1) -> STEU1 | H106: =IF(WWTP2="","",WWTP2) -> STEU2 | I106: =IF(WWTP3="","",WWTP3) -> STEU3 | J106: =IF(WWTP4="","",WWTP4) -> STEU4 | K106: =IF(WWCollection="","",WWCollection) -> Collecte | L106: =IF(WTP1_="","",WTP1_) -> STE1 | M106: =IF(WTP2_="","",WTP2_) -> STE2 | N106: =IF(WTP3_="","",WTP3_) -> STE3 | O106: =IF(WTP4_="","",WTP4_) -> STE4 | P106: =IF(WDistr="","",WDistr) -> Distribution | Q106: =IF(SuppFac="","",SuppFac) -> Inst. sout. | R106: Notes/références de l’utilisateur
C107: HHVpropane | D107: Pouvoir calorifique supérieur du propane | E107: GJ/m3 | G107: =Entrées!$E$266 -> 25.48 | H107: =Entrées!$E$266 -> 25.48 | I107: =Entrées!$E$266 -> 25.48 | J107: =Entrées!$E$266 -> 25.48 | K107: =Entrées!$E$266 -> 25.48 | L107: =Entrées!$E$266 -> 25.48 | M107: =Entrées!$E$266 -> 25.48 | N107: =Entrées!$E$266 -> 25.48 | O107: =Entrées!$E$266 -> 25.48 | P107: =Entrées!$E$266 -> 25.48 | Q107: =Entrées!$E$266 -> 25.48 | R107: =Entrées!G266 -> MECP ON.20, 2019, Table 20-1a, page 97
C108: CICTCG | D108: Intensité carbone du propane – du berceau au consommateur (CTCG) | E108: gCO2éq/MJ | G108: =Entrées!$E$267 -> 16 | H108: =Entrées!$E$267 -> 16 | I108: =Entrées!$E$267 -> 16 | J108: =Entrées!$E$267 -> 16 | K108: =Entrées!$E$267 -> 16 | L108: =Entrées!$E$267 -> 16 | M108: =Entrées!$E$267 -> 16 | N108: =Entrées!$E$267 -> 16 | O108: =Entrées!$E$267 -> 16 | P108: =Entrées!$E$267 -> 16 | Q108: =Entrées!$E$267 -> 16 | R108: =Entrées!G267 -> Canada Fuel LCA Methodology 2020, Annexe B, Tableau 1 (p.129 du PDF)
C109: CICTC | D109: Intensité carbone du propane – du berceau à la combustion (CTC) | E109: gCO2éq/MJ | G109: =Entrées!$E$268 -> 75 | H109: =Entrées!$E$268 -> 75 | I109: =Entrées!$E$268 -> 75 | J109: =Entrées!$E$268 -> 75 | K109: =Entrées!$E$268 -> 75 | L109: =Entrées!$E$268 -> 75 | M109: =Entrées!$E$268 -> 75 | N109: =Entrées!$E$268 -> 75 | O109: =Entrées!$E$268 -> 75 | P109: =Entrées!$E$268 -> 75 | Q109: =Entrées!$E$268 -> 75 | R109: =Entrées!G268 -> Canada Fuel LCA Methodology 2020, Annexe B, Tableau 1 (p.129 du PDF)
C110: EFc | D110: CE de la combustion du propane | E110: gCO2éq/MJ | G110: =G109-G108 -> 59 | H110: =H109-H108 -> 59 | I110: 59 | J110: 59 | K110: 59 | L110: 59 | M110: 59 | N110: 59 | O110: 59 | P110: 59 | Q110: 59
C111: Vfacility, propane | D111: Volume de propane livré à l’installation | E111: L/an | G111: =Entrées!E81 -> 0 | H111: =Entrées!F81 -> 0 | I111: =Entrées!G81 -> 0 | J111: =Entrées!H81 -> 0 | K111: =Entrées!I81 -> 0 | L111: =Entrées!J81 -> 0 | M111: =Entrées!K81 -> 0 | N111: =Entrées!L81 -> 0 | O111: =Entrées!M81 -> 0 | P111: =Entrées!N81 -> 0 | Q111: =Entrées!O81 -> 0 | R111: =Entrées!Q81 -> 0
C112: Cpropane | D112: Émissions de combustion du propane | E112: tCO2éq./an | F112: =SUM(G112:Q112) -> 0 | G112: =G107*G111*G110/1000000 -> 0 | H112: 0 | I112: 0 | J112: 0 | K112: 0 | L112: 0 | M112: 0 | N112: 0 | O112: 0 | P112: 0 | Q112: 0
B114: ÉMISSIONS DE COMBUSTION DE LA FLOTTE DE VÉHICULES
B115: Étape 1 – | C115: Estimer les émissions de la combustion de carburant de la flotte de véhicules | I115: Référence/Source
C116: C fleet = EFc * HHV * Vfleet | I116: Guideline for Greenhouse Gas Emissions Reporting, Ministry of the Environment and Climate Change, 2015
E117: Unité | F117: Valeur de l’entrée
F118: DIESEL | G118: ESSENCE | H118: BIODIESEL
C119: HHV | D119: Pouvoir calorifique supérieur | E119: GJ/m3 | F119: =Entrées!E262 -> 38.3 | G119: =Entrées!E270 -> 34.87 | H119: =Entrées!E274 -> 32.06 | I119: =CONCATENATE(Entrées!G262,"; ",Entrées!G270,"; ",Entrées!G274) -> MECP ON.20, 2019, Table 20-1, page 96; MECP ON.20, 2019, Table 20-1a, page 96; MECP ON.20, 2019, Table 20-1, page 97
C120: CICTCG | D120: Intensité carbone du carburant – du berceau au consommateur (CTCG) | E120: gCO2éq/MJ | F120: =Entrées!E263 -> 25 | G120: =Entrées!E271 -> 24 | H120: =Entrées!E275 -> 26.6 | I120: =CONCATENATE(Entrées!G263,"; ",Entrées!G271,"; ",Entrées!G275) -> Canada Fuel LCA Methodology 2020, Annexe B, Tableau 1 (p.129 du PDF); Canada Fuel LCA Methodology 2020, Annexe B, Tableau 1 (p.129 du PDF); Canada Fuel LCA Methodology 2020, Annexe G, Tableau 37 - Biodiesel issu d’oléagineux (p.395 du PDF)
C121: CICTC | D121: Intensité carbone du carburant – du berceau à la combustion (CTC) | E121: gCO2éq/MJ | F121: =Entrées!E264 -> 96 | G121: =Entrées!E272 -> 96 | H121: =Entrées!E276 -> 31 | I121: =CONCATENATE(Entrées!G264,"; ",Entrées!G272,"; ",Entrées!G276) -> Canada Fuel LCA Methodology 2020, Annexe B, Tableau 1 (p.129 du PDF); Canada Fuel LCA Methodology 2020, Annexe B, Tableau 1 (p.129 du PDF); Canada Fuel LCA Methodology 2020, Annexe G, Tableau 37 - Biodiesel issu d’oléagineux (p.395 du PDF)
C122: EFc | D122: CE de la combustion de carburant | E122: gCO2éq/MJ | F122: =F121-F120 -> 71 | G122: =G121-G120 -> 72 | H122: =H121-H120 -> 4.4
D124: Volume annuel de carburant consommé par la flotte de véhicules | E124: Unité | F124: TOTAL | G124: =IF(WWTP1="","",WWTP1) -> STEU1 | H124: =IF(WWTP2="","",WWTP2) -> STEU2 | I124: =IF(WWTP3="","",WWTP3) -> STEU3 | J124: =IF(WWTP4="","",WWTP4) -> STEU4 | K124: =IF(WWCollection="","",WWCollection) -> Collecte | L124: =IF(WTP1_="","",WTP1_) -> STE1 | M124: =IF(WTP2_="","",WTP2_) -> STE2 | N124: =IF(WTP3_="","",WTP3_) -> STE3 | O124: =IF(WTP4_="","",WTP4_) -> STE4 | P124: =IF(WDistr="","",WDistr) -> Distribution | Q124: =IF(SuppFac="","",SuppFac) -> Inst. sout. | R124: Notes/références de l’utilisateur
C125: Vfleet, diesel | D125: Consommation annuelle de diesel de la flotte de véhicules | E125: L/an | Q125: =Entrées!O84 -> 0 | R125: =Entrées!Q84 -> 0
C126: Vfleet, gasoline | D126: Consommation annuelle d’essence de la flotte de véhicules | E126: L/an | Q126: =Entrées!O85 -> 0 | R126: =Entrées!Q85 -> 0
C127: Vfleet, biodiesel | D127: Consommation annuelle de biodiesel de la flotte de véhicules | E127: L/an | Q127: =Entrées!O86 -> 0 | R127: =Entrées!Q86 -> 0
C128: Cfleet | D128: Émissions de combustion du carburant de la flotte de véhicules | E128: tCO2éq./an | F128: =SUM(G128:Q128) -> 0 | Q128: =((Q125)/1000000*$F$119*$F$122)+(Q126/1000000*$G$119*$G$122)+(Q127/1000000*$H$119*$H$122) -> 0

Sheet Portée 2 - Électricité
B1: Portée 2 – Émissions de GES associées à la consommation d’électricité
B3: ÉMISSIONS DE LA CONSOMMATION D’ÉLECTRICITÉ
B4: Étape 1 – | C4: Estimer les émissions de la consommation d’électricité sur le site
C5: Eelec = EFelec * Velec
E6: Unit | F6: TOTAL | G6: =IF(WWTP1="","",WWTP1) -> STEU1 | H6: =IF(WWTP2="","",WWTP2) -> STEU2 | I6: =IF(WWTP3="","",WWTP3) -> STEU3 | J6: =IF(WWTP4="","",WWTP4) -> STEU4 | K6: =IF(WWCollection="","",WWCollection) -> Collecte | L6: =IF(WTP1_="","",WTP1_) -> STE1 | M6: =IF(WTP2_="","",WTP2_) -> STE2 | N6: =IF(WTP3_="","",WTP3_) -> STE3 | O6: =IF(WTP4_="","",WTP4_) -> STE4 | P6: =IF(WDistr="","",WDistr) -> Distribution | Q6: =IF(SuppFac="","",SuppFac) -> Inst. sout. | R6: Notes/références de l’utilisateur
C7: EFelec | D7: CE de la consommation d’électricité en Ontario | E7: gCO2éq/kWh | G7: =Entrées!$E$279 -> 35 | H7: =Entrées!$E$279 -> 35 | I7: =Entrées!$E$279 -> 35 | J7: =Entrées!$E$279 -> 35 | K7: =Entrées!$E$279 -> 35 | L7: =Entrées!$E$279 -> 35 | M7: =Entrées!$E$279 -> 35 | N7: =Entrées!$E$279 -> 35 | O7: =Entrées!$E$279 -> 35 | P7: =Entrées!$E$279 -> 35 | Q7: =Entrées!$E$279 -> 35 | R7: =Entrées!G279 -> NIR 2024, Partie 3, Tableau A13-7
C8: Velec | D8: Consommation annuelle d’électricité | E8: kWh/an | G8: =Entrées!E89 -> 0 | H8: =Entrées!F89 -> 0 | I8: =Entrées!G89 -> 0 | J8: =Entrées!H89 -> 0 | K8: =Entrées!I89 -> 0 | L8: =Entrées!J89 -> 0 | M8: =Entrées!K89 -> 0 | N8: =Entrées!L89 -> 0 | O8: =Entrées!M89 -> 0 | P8: =Entrées!N89 -> 0 | Q8: =Entrées!O89 -> 0 | R8: =Entrées!Q89 -> 0
C9: Eelec | D9: Émissions de la consommation d’électricité | E9: tCO2éq/an | F9: =SUM(G9:Q9) -> 0 | G9: =G8*G7/1000000 -> 0 | H9: 0 | I9: 0 | J9: 0 | K9: 0 | L9: 0 | M9: 0 | N9: 0 | O9: 0 | P9: 0 | Q9: 0

Sheet Portée 3 - Électricité
B1: Portée 3 – Émissions de GES associées à l’électricité
B3: ÉMISSIONS DE L’ÉLECTRICITÉ – PORTÉE 3 – Utilisation du modèle d’ACV du secteur de l’électricité – Inventaire national
B4: Étape 1 – | C4: Estimer les émissions de la Portée 3 associées à l’électricité
C5: Eup-elec = EFup-elec * Velec
E6: Unit | F6: TOTAL | G6: =IF(WWTP1="","",WWTP1) -> STEU1 | H6: =IF(WWTP2="","",WWTP2) -> STEU2 | I6: =IF(WWTP3="","",WWTP3) -> STEU3 | J6: =IF(WWTP4="","",WWTP4) -> STEU4 | K6: =IF(WWCollection="","",WWCollection) -> Collecte | L6: =IF(WTP1_="","",WTP1_) -> STE1 | M6: =IF(WTP2_="","",WTP2_) -> STE2 | N6: =IF(WTP3_="","",WTP3_) -> STE3 | O6: =IF(WTP4_="","",WTP4_) -> STE4 | P6: =IF(WDistr="","",WDistr) -> Distribution | Q6: =IF(SuppFac="","",SuppFac) -> Inst. sout. | R6: Notes/références de l’utilisateur
C7: EFelec | D7: CE de l’intensité de la production d’électricité en Ontario | E7: gCO2éq/kWh | G7: =Entrées!$E$279 -> 35 | H7: =Entrées!$E$279 -> 35 | I7: =Entrées!$E$279 -> 35 | J7: =Entrées!$E$279 -> 35 | K7: =Entrées!$E$279 -> 35 | L7: =Entrées!$E$279 -> 35 | M7: =Entrées!$E$279 -> 35 | N7: =Entrées!$E$279 -> 35 | O7: =Entrées!$E$279 -> 35 | P7: =Entrées!$E$279 -> 35 | Q7: =Entrées!$E$279 -> 35 | R7: =Entrées!G279 -> NIR 2024, Partie 3, Tableau A13-7
D8: CE du réseau basé sur l’ACV de l’Ontario | E8: gCO2éq/kWh | G8: =Entrées!$E$280 -> 42.28017 | H8: =Entrées!$E$280 -> 42.28017 | I8: =Entrées!$E$280 -> 42.28017 | J8: =Entrées!$E$280 -> 42.28017 | K8: =Entrées!$E$280 -> 42.28017 | L8: =Entrées!$E$280 -> 42.28017 | M8: =Entrées!$E$280 -> 42.28017 | N8: =Entrées!$E$280 -> 42.28017 | O8: =Entrées!$E$280 -> 42.28017 | P8: =Entrées!$E$280 -> 42.28017 | Q8: =Entrées!$E$280 -> 42.28017 | R8: =Entrées!G280 -> Canada Fuel LCA Model 2024
C9: EFup-elec | D9: CE de l’électricité de la Portée 3 de l’Ontario | E9: gCO2éq/kWh | G9: =G8-G7 -> 7.28017 | H9: 7.28017 | I9: 7.28017 | J9: 7.28017 | K9: 7.28017 | L9: 7.28017 | M9: 7.28017 | N9: 7.28017 | O9: 7.28017 | P9: 7.28017 | Q9: 7.28017
C10: Velec | D10: Consommation annuelle d’électricité | E10: kWh/an | G10: =Entrées!E89 -> 0 | H10: =Entrées!F89 -> 0 | I10: =Entrées!G89 -> 0 | J10: =Entrées!H89 -> 0 | K10: =Entrées!I89 -> 0 | L10: =Entrées!J89 -> 0 | M10: =Entrées!K89 -> 0 | N10: =Entrées!L89 -> 0 | O10: =Entrées!M89 -> 0 | P10: =Entrées!N89 -> 0 | Q10: =Entrées!O89 -> 0 | R10: =Entrées!Q89 -> 0
C11: Eup-elec | D11: Émissions de la Portée 3 provenant de la consommation d’électricité | E11: tCO2éq./an | F11: =SUM(G11:Q11) -> 0 | G11: =G10*G9/1000000 -> 0 | H11: 0 | I11: 0 | J11: 0 | K11: 0 | L11: 0 | M11: 0 | N11: =N10*N9/1000000 -> 0 | O11: 0 | P11: 0 | Q11: 0

Sheet Portée 3 - Combustibles
B1: Portée 3 – Émissions de GES en amont associées au combustible
B3: ÉMISSIONS EN AMONT DU GAZ NATUREL
B4: Étape 1 – | C4: Estimation des émissions en amont du gaz naturel | R4: Notes/références de l’utilisateur
C5: U NG = EFu * HHV * VNG | R5: Adapté de MECP ON.20
E6: Unité | F6: TOTAL | G6: =IF(WWTP1="","",WWTP1) -> STEU1 | H6: =IF(WWTP2="","",WWTP2) -> STEU2 | I6: =IF(WWTP3="","",WWTP3) -> STEU3 | J6: =IF(WWTP4="","",WWTP4) -> STEU4 | K6: =IF(WWCollection="","",WWCollection) -> Collecte | L6: =IF(WTP1_="","",WTP1_) -> STE1 | M6: =IF(WTP2_="","",WTP2_) -> STE2 | N6: =IF(WTP3_="","",WTP3_) -> STE3 | O6: =IF(WTP4_="","",WTP4_) -> STE4 | P6: =IF(WDistr="","",WDistr) -> Distribution | Q6: =IF(SuppFac="","",SuppFac) -> Inst. sout.
C7: HHVNG | D7: Pouvoir calorifique supérieur du gaz naturel | E7: GJ/m3 | G7: =Entrées!$E$254 -> 0.038 | H7: =Entrées!$E$254 -> 0.038 | I7: =Entrées!$E$254 -> 0.038 | J7: =Entrées!$E$254 -> 0.038 | K7: =Entrées!$E$254 -> 0.038 | L7: =Entrées!$E$254 -> 0.038 | M7: =Entrées!$E$254 -> 0.038 | N7: =Entrées!$E$254 -> 0.038 | O7: =Entrées!$E$254 -> 0.038 | P7: =Entrées!$E$254 -> 0.038 | Q7: =Entrées!$E$254 -> 0.038 | R7: =Entrées!G254 -> MECP ON.20, 2019, Table 20-1, page 96
C8: EFu | D8: Intensité carbone du gaz naturel – du berceau au consommateur (CTCG) | E8: gCO2éq/MJ | G8: =Entrées!$E$255 -> 15 | H8: =Entrées!$E$255 -> 15 | I8: =Entrées!$E$255 -> 15 | J8: =Entrées!$E$255 -> 15 | K8: =Entrées!$E$255 -> 15 | L8: =Entrées!$E$255 -> 15 | M8: =Entrées!$E$255 -> 15 | N8: =Entrées!$E$255 -> 15 | O8: =Entrées!$E$255 -> 15 | P8: =Entrées!$E$255 -> 15 | Q8: =Entrées!$E$255 -> 15 | R8: =Entrées!G255 -> Canada Fuel LCA Methodology 2020, Annexe B, Tableau 1 (p.129 du PDF)
C9: VNG | D9: Consommation annuelle de gaz naturel | E9: m3/an | G9: =Entrées!E78 -> 0 | H9: =Entrées!F78 -> 0 | I9: =Entrées!G78 -> 0 | J9: =Entrées!H78 -> 0 | K9: =Entrées!I78 -> 0 | L9: =Entrées!J78 -> 0 | M9: =Entrées!K78 -> 0 | N9: =Entrées!L78 -> 0 | O9: =Entrées!M78 -> 0 | P9: =Entrées!N78 -> 0 | Q9: =Entrées!O78 -> 0 | R9: =Entrées!Q78 -> 0
C10: UNG | D10: Émissions en amont du gaz naturel | E10: tCO2éq./an | F10: =SUM(G10:Q10) -> 0 | G10: =G7*G9*G8/1000 -> 0 | H10: =H7*H9*H8/1000 -> 0 | I10: 0 | J10: 0 | K10: 0 | L10: 0 | M10: 0 | N10: 0 | O10: 0 | P10: 0 | Q10: 0
B12: ÉMISSIONS EN AMONT DE MAZOUT N° 2 (LFO)
B13: Étape 1 – | C13: Estimation des émissions en amont de LFO
C14: U LFO = EFu * HHV * Vfleet
E15: Unité | F15: TOTAL | G15: =IF(WWTP1="","",WWTP1) -> STEU1 | H15: =IF(WWTP2="","",WWTP2) -> STEU2 | I15: =IF(WWTP3="","",WWTP3) -> STEU3 | J15: =IF(WWTP4="","",WWTP4) -> STEU4 | K15: =IF(WWCollection="","",WWCollection) -> Collecte | L15: =IF(WTP1_="","",WTP1_) -> STE1 | M15: =IF(WTP2_="","",WTP2_) -> STE2 | N15: =IF(WTP3_="","",WTP3_) -> STE3 | O15: =IF(WTP4_="","",WTP4_) -> STE4 | P15: =IF(WDistr="","",WDistr) -> Distribution | Q15: =IF(SuppFac="","",SuppFac) -> Inst. sout. | R15: Notes/références de l’utilisateur
C16: HHVLFO | D16: Pouvoir calorifique supérieur du mazout | E16: GJ/m3 | G16: =Entrées!$E$258 -> 38.8 | H16: =Entrées!$E$258 -> 38.8 | I16: =Entrées!$E$258 -> 38.8 | J16: =Entrées!$E$258 -> 38.8 | K16: =Entrées!$E$258 -> 38.8 | L16: =Entrées!$E$258 -> 38.8 | M16: =Entrées!$E$258 -> 38.8 | N16: =Entrées!$E$258 -> 38.8 | O16: =Entrées!$E$258 -> 38.8 | P16: =Entrées!$E$258 -> 38.8 | Q16: =Entrées!$E$258 -> 38.8 | R16: =Entrées!G258 -> MECP ON.20, 2019, Table 20-1, page 96
C17: EFu | D17: Intensité carbone du mazout – du berceau au consommateur (CTCG) | E17: gCO2éq/MJ | G17: =Entrées!$E$259 -> 24 | H17: =Entrées!$E$259 -> 24 | I17: =Entrées!$E$259 -> 24 | J17: =Entrées!$E$259 -> 24 | K17: =Entrées!$E$259 -> 24 | L17: =Entrées!$E$259 -> 24 | M17: =Entrées!$E$259 -> 24 | N17: =Entrées!$E$259 -> 24 | O17: =Entrées!$E$259 -> 24 | P17: =Entrées!$E$259 -> 24 | Q17: =Entrées!$E$259 -> 24 | R17: =Entrées!G259 -> Canada Fuel LCA Methodology 2020, Annexe B, Tableau 1 (p.129 du PDF)
C18: VLFO | D18: Consommation annuelle de mazout léger (n° 2) | E18: L/an | G18: =Entrées!E79 -> 0 | H18: =Entrées!F79 -> 0 | I18: =Entrées!G79 -> 0 | J18: =Entrées!H79 -> 0 | K18: =Entrées!I79 -> 0 | L18: =Entrées!J79 -> 0 | M18: =Entrées!K79 -> 0 | N18: =Entrées!L79 -> 0 | O18: =Entrées!M79 -> 0 | P18: =Entrées!N79 -> 0 | Q18: =Entrées!O79 -> 0 | R18: =Entrées!Q79 -> 0
C19: ULFO | D19: Émissions en amont de combustion du mazout léger | E19: tCO2éq./an | F19: =SUM(G19:Q19) -> 0 | G19: =G18/1000000*G16*G17 -> 0 | H19: =H18/1000000*H16*H17 -> 0 | I19: =I18/1000000*I16*I17 -> 0 | J19: =J18/1000000*J16*J17 -> 0 | K19: =K18/1000000*K16*K17 -> 0 | L19: 0 | M19: 0 | N19: 0 | O19: 0 | P19: 0 | Q19: 0
B21: ÉMISSIONS EN AMONT DES GÉNÉRATRICES DIESEL
B22: Étape 1 – | C22: Estimation des émissions en amont de diesel
C23: U fleet = EFu * HHV * Vfacility, diesel
E24: Unité | F24: TOTAL | G24: =IF(WWTP1="","",WWTP1) -> STEU1 | H24: =IF(WWTP2="","",WWTP2) -> STEU2 | I24: =IF(WWTP3="","",WWTP3) -> STEU3 | J24: =IF(WWTP4="","",WWTP4) -> STEU4 | K24: =IF(WWCollection="","",WWCollection) -> Collecte | L24: =IF(WTP1_="","",WTP1_) -> STE1 | M24: =IF(WTP2_="","",WTP2_) -> STE2 | N24: =IF(WTP3_="","",WTP3_) -> STE3 | O24: =IF(WTP4_="","",WTP4_) -> STE4 | P24: =IF(WDistr="","",WDistr) -> Distribution | Q24: =IF(SuppFac="","",SuppFac) -> Inst. sout. | R24: Notes/références de l’utilisateur
C25: HHVdiesel | D25: Pouvoir calorifique supérieur du diesel | E25: GJ/m3 | G25: =Entrées!$E$262 -> 38.3 | H25: =Entrées!$E$262 -> 38.3 | I25: =Entrées!$E$262 -> 38.3 | J25: =Entrées!$E$262 -> 38.3 | K25: =Entrées!$E$262 -> 38.3 | L25: =Entrées!$E$262 -> 38.3 | M25: =Entrées!$E$262 -> 38.3 | N25: =Entrées!$E$262 -> 38.3 | O25: =Entrées!$E$262 -> 38.3 | P25: =Entrées!$E$262 -> 38.3 | Q25: =Entrées!$E$262 -> 38.3 | R25: =Entrées!G262 -> MECP ON.20, 2019, Table 20-1, page 96
C26: EFu | D26: Intensité carbone du diesel – du berceau au consommateur (CTCG) | E26: gCO2éq/MJ | G26: =Entrées!$E$263 -> 25 | H26: =Entrées!$E$263 -> 25 | I26: =Entrées!$E$263 -> 25 | J26: =Entrées!$E$263 -> 25 | K26: =Entrées!$E$263 -> 25 | L26: =Entrées!$E$263 -> 25 | M26: =Entrées!$E$263 -> 25 | N26: =Entrées!$E$263 -> 25 | O26: =Entrées!$E$263 -> 25 | P26: =Entrées!$E$263 -> 25 | Q26: =Entrées!$E$263 -> 25 | R26: =Entrées!G263 -> Canada Fuel LCA Methodology 2020, Annexe B, Tableau 1 (p.129 du PDF)
C27: Vfacility, diesel | D27: Volume de diesel livré à l’installation | E27: L/an | G27: =Entrées!E80 -> 0 | H27: =Entrées!F80 -> 0 | I27: =Entrées!G80 -> 0 | J27: =Entrées!H80 -> 0 | K27: =Entrées!I80 -> 0 | L27: =Entrées!J80 -> 0 | M27: =Entrées!K80 -> 0 | N27: =Entrées!L80 -> 0 | O27: =Entrées!M80 -> 0 | P27: =Entrées!N80 -> 0 | Q27: =Entrées!O80 -> 0 | R27: =Entrées!Q80 -> 0
C28: Cdiesel | D28: Émissions en amont de combustion du diesel | E28: tCO2éq./an | F28: =SUM(G28:Q28) -> 0 | G28: =((G27)/1000000*G25*G26) -> 0 | H28: =((H27)/1000000*H25*H26) -> 0 | I28: 0 | J28: 0 | K28: 0 | L28: 0 | M28: 0 | N28: 0 | O28: 0 | P28: 0 | Q28: 0
B30: ÉMISSIONS EN AMONT DU PROPANE
B31: Étape 1 – | C31: Estimation des émissions en amont de propane
C32: U fleet = EFu * HHV * Vfacility, propane
E33: Unité | F33: TOTAL | G33: =IF(WWTP1="","",WWTP1) -> STEU1 | H33: =IF(WWTP2="","",WWTP2) -> STEU2 | I33: =IF(WWTP3="","",WWTP3) -> STEU3 | J33: =IF(WWTP4="","",WWTP4) -> STEU4 | K33: =IF(WWCollection="","",WWCollection) -> Collecte | L33: =IF(WTP1_="","",WTP1_) -> STE1 | M33: =IF(WTP2_="","",WTP2_) -> STE2 | N33: =IF(WTP3_="","",WTP3_) -> STE3 | O33: =IF(WTP4_="","",WTP4_) -> STE4 | P33: =IF(WDistr="","",WDistr) -> Distribution | Q33: =IF(SuppFac="","",SuppFac) -> Inst. sout. | R33: Notes/références de l’utilisateur
C34: HHVpropane | D34: Pouvoir calorifique supérieur du propane | E34: GJ/m3 | G34: =Entrées!$E$266 -> 25.48 | H34: =Entrées!$E$266 -> 25.48 | I34: =Entrées!$E$266 -> 25.48 | J34: =Entrées!$E$266 -> 25.48 | K34: =Entrées!$E$266 -> 25.48 | L34: =Entrées!$E$266 -> 25.48 | M34: =Entrées!$E$266 -> 25.48 | N34: =Entrées!$E$266 -> 25.48 | O34: =Entrées!$E$266 -> 25.48 | P34: =Entrées!$E$266 -> 25.48 | Q34: =Entrées!$E$266 -> 25.48 | R34: =Entrées!G266 -> MECP ON.20, 2019, Table 20-1a, page 97
C35: EFu | D35: Intensité carbone du propane – du berceau au consommateur (CTCG) | E35: gCO2éq/MJ | G35: =Entrées!$E$267 -> 16 | H35: =Entrées!$E$267 -> 16 | I35: =Entrées!$E$267 -> 16 | J35: =Entrées!$E$267 -> 16 | K35: =Entrées!$E$267 -> 16 | L35: =Entrées!$E$267 -> 16 | M35: =Entrées!$E$267 -> 16 | N35: =Entrées!$E$267 -> 16 | O35: =Entrées!$E$267 -> 16 | P35: =Entrées!$E$267 -> 16 | Q35: =Entrées!$E$267 -> 16 | R35: =Entrées!G267 -> Canada Fuel LCA Methodology 2020, Annexe B, Tableau 1 (p.129 du PDF)
C36: Vfacility, propane | D36: Volume de propane livré à l’installation | E36: L/an | G36: =Entrées!E81 -> 0 | H36: =Entrées!F81 -> 0 | I36: =Entrées!G81 -> 0 | J36: =Entrées!H81 -> 0 | K36: =Entrées!I81 -> 0 | L36: =Entrées!J81 -> 0 | M36: =Entrées!K81 -> 0 | N36: =Entrées!L81 -> 0 | O36: =Entrées!M81 -> 0 | P36: =Entrées!N81 -> 0 | Q36: =Entrées!O81 -> 0 | R36: =Entrées!Q81 -> 0
C37: Cpropane | D37: Émissions en amont de combustion du propane | E37: tCO2éq./an | F37: =SUM(G37:Q37) -> 0 | G37: =((G36)/1000000*G34*G35) -> 0 | H37: =((H36)/1000000*H34*H35) -> 0 | I37: =((I36)/1000000*I34*I35) -> 0 | J37: =((J36)/1000000*J34*J35) -> 0 | K37: =((K36)/1000000*K34*K35) -> 0 | L37: =((L36)/1000000*L34*L35) -> 0 | M37: =((M36)/1000000*M34*M35) -> 0 | N37: =((N36)/1000000*N34*N35) -> 0 | O37: =((O36)/1000000*O34*O35) -> 0 | P37: =((P36)/1000000*P34*P35) -> 0 | Q37: =((Q36)/1000000*Q34*Q35) -> 0
B39: ÉMISSIONS EN AMONT DE LA FLOTTE DE VÉHICULES
B40: Remarque : Un facteur d’émission générique pour le biodiesel a été fourni et il est approprié lorsqu’une faible proportion du carburant brûlé est du biodiesel.
C41: Il est important de noter que si l’on utilise une quantité importante de biodiesel, il convient de rechercher un CE basé sur le type de biodiesel brûlé, car les émissions du cycle de vie peuvent varier de manière significative entre les différentes matières premières du biodiesel.
B43: Étape 1 – | C43: Estimation des émissions en amont de la flotte de véhicules
C44: U fleet = EFu * HHV * Vfleet
F45: Valeur de l’entrée | I45: Référence/Source
F46: DIESEL | G46: ESSENCE | H46: BIODIESEL
C47: HHV | D47: Pouvoir calorifique supérieur | E47: GJ/m3 | F47: ='Portée 1 - Combustion'!F119 -> 38.3 | G47: ='Portée 1 - Combustion'!G119 -> 34.87 | H47: ='Portée 1 - Combustion'!H119 -> 32.06 | I47: =CONCATENATE(Entrées!G262,"; ",Entrées!G270,"; ",Entrées!G274) -> MECP ON.20, 2019, Table 20-1, page 96; MECP ON.20, 2019, Table 20-1a, page 96; MECP ON.20, 2019, Table 20-1, page 97
C48: EFu | D48: CE en amont du carburant | E48: gCO2eq/MJ | F48: ='Portée 1 - Combustion'!F120 -> 25 | G48: ='Portée 1 - Combustion'!G120 -> 24 | H48: ='Portée 1 - Combustion'!H120 -> 26.6 | I48: =CONCATENATE(Entrées!G263,"; ",Entrées!G271,"; ",Entrées!G275) -> Canada Fuel LCA Methodology 2020, Annexe B, Tableau 1 (p.129 du PDF); Canada Fuel LCA Methodology 2020, Annexe B, Tableau 1 (p.129 du PDF); Canada Fuel LCA Methodology 2020, Annexe G, Tableau 37 - Biodiesel issu d’oléagineux (p.395 du PDF)
D50: Volume annuel de carburant consommé par la flotte de véhicules | E50: Unité | F50: TOTAL | G50: =IF(WWTP1="","",WWTP1) -> STEU1 | H50: =IF(WWTP2="","",WWTP2) -> STEU2 | I50: =IF(WWTP3="","",WWTP3) -> STEU3 | J50: =IF(WWTP4="","",WWTP4) -> STEU4 | K50: =IF(WWCollection="","",WWCollection) -> Collecte | L50: =IF(WTP1_="","",WTP1_) -> STE1 | M50: =IF(WTP2_="","",WTP2_) -> STE2 | N50: =IF(WTP3_="","",WTP3_) -> STE3 | O50: =IF(WTP4_="","",WTP4_) -> STE4 | P50: =IF(WDistr="","",WDistr) -> Distribution | Q50: =IF(SuppFac="","",SuppFac) -> Inst. sout. | R50: Notes/références de l’utilisateur
C51: Vfleet, diesel | D51: Consommation annuelle de diesel de la flotte de véhicules | E51: L/an | Q51: =Entrées!O84 -> 0 | R51: =Entrées!Q84 -> 0
C52: Vfleet, gasoline | D52: Consommation annuelle d’essence de la flotte de véhicules | E52: L/an | Q52: =Entrées!O85 -> 0 | R52: =Entrées!Q85 -> 0
C53: Vfleet, biodiesel | D53: Consommation annuelle de biodiesel de la flotte de véhicules | E53: L/an | Q53: =Entrées!O86 -> 0 | R53: =Entrées!Q86 -> 0
C54: Cfleet | D54: Émissions en amont de la combustion du carburant de la flotte de véhicules | E54: tCO2éq./an | F54: =SUM(G54:Q54) -> 0 | Q54: =((Q51)/1000000*$F$48*$F$47)+(Q52/1000000*$G$47*$G$48)+(Q53/1000000*$H$47*$H$48) -> 0

Sheet Portée 3 - Biosolides
B1: Portée 3 – Émissions de GES associées à la gestion des biosolides
B3: ÉMISSIONS LIÉES À LA GESTION DES BIOSOLIDES HORS SITE
B4: Étape 1 – | C4: Choisir une méthode d’inventaire pour les biosolides
C5: Approche d’inventaire pour les biosolides | G5: =Entrées!$E$95 -> BEAM 2011
B7: Étape 2 – | C7: Estimer les émissions associées à la gestion des biosolides (BEAM)
D8: Unité de procédé | G8: =IF(WWTP1="","",WWTP1) -> STEU1 | H8: =IF(WWTP2="","",WWTP2) -> STEU2 | I8: =IF(WWTP3="","",WWTP3) -> STEU3 | J8: =IF(WWTP4="","",WWTP4) -> STEU4
D9: Stabilisation alcaline | E9: tCO2éq./an | G9: =IF($G$5=Entrées!$T$94,Entrées!E99,IF($G$5=Entrées!$T$95,Entrées!E108,"")) -> 0 | H9: =IF($G$5=Entrées!$T$94,Entrées!F99,IF($G$5=Entrées!$T$95,Entrées!F108,"")) -> 0 | I9: =IF($G$5=Entrées!$T$94,Entrées!G99,IF($G$5=Entrées!$T$95,Entrées!G108,"")) -> 0 | J9: =IF($G$5=Entrées!$T$94,Entrées!H99,IF($G$5=Entrées!$T$95,Entrées!H108,"")) -> 0
D10: Compostage | E10: tCO2éq./an | G10: =IF($G$5=Entrées!$T$94,Entrées!E100,IF($G$5=Entrées!$T$95,Entrées!E109,"")) -> 0 | H10: =IF($G$5=Entrées!$T$94,Entrées!F100,IF($G$5=Entrées!$T$95,Entrées!F109,"")) -> 0 | I10: =IF($G$5=Entrées!$T$94,Entrées!G100,IF($G$5=Entrées!$T$95,Entrées!G109,"")) -> 0 | J10: =IF($G$5=Entrées!$T$94,Entrées!H100,IF($G$5=Entrées!$T$95,Entrées!H109,"")) -> 0
D11: Compostage 2 | E11: tCO2éq./an | G11: =IF($G$5=Entrées!$T$95,Entrées!E110,"") ->  | H11: =IF($G$5=Entrées!$T$95,Entrées!F110,"") ->  | I11: =IF($G$5=Entrées!$T$95,Entrées!G110,"") ->  | J11: =IF($G$5=Entrées!$T$95,Entrées!H110,"") -> 
D12: Enfouissement – Typique | E12: tCO2éq./an | G12: =IF($G$5=Entrées!$T$94,Entrées!E101,IF($G$5=Entrées!$T$95,Entrées!E111,"")) -> 0 | H12: =IF($G$5=Entrées!$T$94,Entrées!F101,IF($G$5=Entrées!$T$95,Entrées!F111,"")) -> 0 | I12: =IF($G$5=Entrées!$T$94,Entrées!G101,IF($G$5=Entrées!$T$95,Entrées!G111,"")) -> 0 | J12: =IF($G$5=Entrées!$T$94,Entrées!H101,IF($G$5=Entrées!$T$95,Entrées!H111,"")) -> 0
D13: Enfouissement – Pire cas | E13: tCO2éq./an | G13: =IF($G$5=Entrées!$T$95,Entrées!E112,"") ->  | H13: =IF($G$5=Entrées!$T$95,Entrées!F112,"") ->  | I13: =IF($G$5=Entrées!$T$95,Entrées!G112,"") ->  | J13: =IF($G$5=Entrées!$T$95,Entrées!H112,"") -> 
D14: Enfouissement – Important | E14: tCO2éq./an | G14: =IF($G$5=Entrées!$T$95,Entrées!E113,"") ->  | H14: =IF($G$5=Entrées!$T$95,Entrées!F113,"") ->  | I14: =IF($G$5=Entrées!$T$95,Entrées!G113,"") ->  | J14: =IF($G$5=Entrées!$T$95,Entrées!H113,"") -> 
D15: Élimination des déchets – Réglementation CA | E15: tCO2éq./an | G15: =IF($G$5=Entrées!$T$95,Entrées!E114,"") ->  | H15: =IF($G$5=Entrées!$T$95,Entrées!F114,"") ->  | I15: =IF($G$5=Entrées!$T$95,Entrées!G114,"") ->  | J15: =IF($G$5=Entrées!$T$95,Entrées!H114,"") -> 
D16: Combustion | E16: tCO2éq./an | G16: =IF($G$5=Entrées!$T$94,Entrées!E102,IF($G$5=Entrées!$T$95,Entrées!E115,"")) -> 0 | H16: =IF($G$5=Entrées!$T$94,Entrées!F102,IF($G$5=Entrées!$T$95,Entrées!F115,"")) -> 0 | I16: =IF($G$5=Entrées!$T$94,Entrées!G102,IF($G$5=Entrées!$T$95,Entrées!G115,"")) -> 0 | J16: =IF($G$5=Entrées!$T$94,Entrées!H102,IF($G$5=Entrées!$T$95,Entrées!H115,"")) -> 0
D17: Pyrolyse | E17: tCO2éq./an | G17: =IF($G$5=Entrées!$T$95,Entrées!E116,"") ->  | H17: =IF($G$5=Entrées!$T$95,Entrées!F116,"") ->  | I17: =IF($G$5=Entrées!$T$95,Entrées!G116,"") ->  | J17: =IF($G$5=Entrées!$T$95,Entrées!H116,"") -> 
D18: Épandage | E18: tCO2éq./an | G18: =IF($G$5=Entrées!$T$94,Entrées!E103,IF($G$5=Entrées!$T$95,Entrées!E117,"")) -> 0 | H18: =IF($G$5=Entrées!$T$94,Entrées!F103,IF($G$5=Entrées!$T$95,Entrées!F117,"")) -> 0 | I18: =IF($G$5=Entrées!$T$94,Entrées!G103,IF($G$5=Entrées!$T$95,Entrées!G117,"")) -> 0 | J18: =IF($G$5=Entrées!$T$94,Entrées!H103,IF($G$5=Entrées!$T$95,Entrées!H117,"")) -> 0
D19: Épandage 2 | E19: tCO2éq./an | G19: =IF($G$5=Entrées!$T$95,Entrées!E118,"") ->  | H19: =IF($G$5=Entrées!$T$95,Entrées!F118,"") ->  | I19: =IF($G$5=Entrées!$T$95,Entrées!G118,"") ->  | J19: =IF($G$5=Entrées!$T$95,Entrées!H118,"") -> 
D20: Émissions diverses | E20: tCO2éq./an | G20: =IF($G$5=Entrées!$T$95,Entrées!E119,"") ->  | H20: =IF($G$5=Entrées!$T$95,Entrées!F119,"") ->  | I20: =IF($G$5=Entrées!$T$95,Entrées!G119,"") ->  | J20: =IF($G$5=Entrées!$T$95,Entrées!H119,"") -> 
D21: Transport | E21: tCO2éq./an | G21: =IF($G$5=Entrées!$T$94,Entrées!E104,IF($G$5=Entrées!$T$95,Entrées!E120,"")) -> 0 | H21: =IF($G$5=Entrées!$T$94,Entrées!F104,IF($G$5=Entrées!$T$95,Entrées!F120,"")) -> 0 | I21: =IF($G$5=Entrées!$T$94,Entrées!G104,IF($G$5=Entrées!$T$95,Entrées!G120,"")) -> 0 | J21: =IF($G$5=Entrées!$T$94,Entrées!H104,IF($G$5=Entrées!$T$95,Entrées!H120,"")) -> 0
D22: Total des émissions liées à la gestion des biosolides | E22: tCO2éq./an | F22: =SUM(G22:J22) -> 0 | G22: =SUM(G9:G21) -> 0 | H22: =SUM(H9:H21) -> 0 | I22: 0 | J22: 0

Sheet Portée 3 - Produits chimiques
B1: Portée 3 – Émissions de GES associées à la consommation de produits chimiques | S1: NE PAS SUPPRIMER OU MODIFIER LES CELLULES DANS LES COLONNES AU-DELÀ DE LA COLONNE BLEUE. ELLES SONT UTILISÉES COMME CALCULS INTERNES POUR LE FORMATAGE ET LES LISTES.
S2: LES COLONNES AU-DELÀ DE LA COLONNE BLEUE NE DOIVENT PAS ÊTRE IMPRIMÉES POUR LES SORTIES.
B3: Remarque : | C3: Veuillez vous référer au Guide de l’utilisateur pour obtenir des conseils sur les approches permettant d’estimer les émissions des produits chimiques.
B4: ÉMISSIONS DE LA CONSOMMATION DE PRODUITS CHIMIQUES
B5: Étape 1 – | C5: Estimer les émissions associées à la production de produits chimiques | S5: =TRUE -> TRUE
C6: Echem = EFchem * Mchem | S6: =TRUE -> TRUE
E7: Unité | F7: Valeur de l’entrée | G7: Notes/références de l’utilisateur | S7: =TRUE -> TRUE
C8: EFchem | D8: CE des émissions de produits chimiques
D9: =Entrées!C124 -> Produit chimique 1 | E9: kgCO2éq./kg | F9: =Entrées!E288 -> 0 | G9: =Entrées!G288 -> 0 | S9: =Entrées!T124 -> FALSE
D10: =Entrées!C125 -> Produit chimique 2 | E10: kgCO2éq./kg | F10: =Entrées!E289 -> 0 | G10: =Entrées!G289 -> 0 | S10: =Entrées!T125 -> FALSE
D11: =Entrées!C126 -> Produit chimique 3 | E11: kgCO2éq./kg | F11: =Entrées!E290 -> 0 | G11: =Entrées!G290 -> 0 | S11: =Entrées!T126 -> FALSE
D12: =Entrées!C127 -> Produit chimique 4 | E12: kgCO2éq./kg | F12: =Entrées!E291 -> 0 | G12: =Entrées!G291 -> 0 | S12: =Entrées!T127 -> FALSE
D13: =Entrées!C128 -> Produit chimique 5 | E13: kgCO2éq./kg | F13: =Entrées!E292 -> 0 | G13: =Entrées!G292 -> 0 | S13: =Entrées!T128 -> FALSE
D14: =Entrées!C129 -> Produit chimique 6 | E14: kgCO2éq./kg | F14: =Entrées!E293 -> 0 | G14: =Entrées!G293 -> 0 | S14: =Entrées!T129 -> FALSE
D15: =Entrées!C130 -> Produit chimique 7 | E15: kgCO2éq./kg | F15: =Entrées!E294 -> 0 | G15: =Entrées!G294 -> 0 | S15: =Entrées!T130 -> FALSE
D16: =Entrées!C131 -> Produit chimique 8 | E16: kgCO2éq./kg | F16: =Entrées!E295 -> 0 | G16: =Entrées!G295 -> 0 | S16: =Entrées!T131 -> FALSE
D17: =Entrées!C132 -> Produit chimique 9 | E17: kgCO2éq./kg | F17: =Entrées!E296 -> 0 | G17: =Entrées!G296 -> 0 | S17: =Entrées!T132 -> FALSE
D18: =Entrées!C133 -> Produit chimique 10 | E18: kgCO2éq./kg | F18: =Entrées!E297 -> 0 | G18: =Entrées!G297 -> 0 | S18: =Entrées!T133 -> FALSE
D19: =Entrées!C134 -> Produit chimique 11 | E19: kgCO2éq./kg | F19: =Entrées!E298 -> 0 | G19: =Entrées!G298 -> 0 | S19: =Entrées!T134 -> FALSE
D20: =Entrées!C135 -> Produit chimique 12 | E20: kgCO2éq./kg | F20: =Entrées!E299 -> 0 | G20: =Entrées!G299 -> 0 | S20: =Entrées!T135 -> FALSE
D21: =Entrées!C136 -> Produit chimique 13 | E21: kgCO2éq./kg | F21: =Entrées!E300 -> 0 | G21: =Entrées!G300 -> 0 | S21: =Entrées!T136 -> FALSE
D22: =Entrées!C137 -> Produit chimique 14 | E22: kgCO2éq./kg | F22: =Entrées!E301 -> 0 | G22: =Entrées!G301 -> 0 | S22: =Entrées!T137 -> FALSE
D23: =Entrées!C138 -> Produit chimique 15 | E23: kgCO2éq./kg | F23: =Entrées!E302 -> 0 | G23: =Entrées!G302 -> 0 | S23: =Entrées!T138 -> FALSE
D24: =Entrées!C139 -> Produit chimique 16 | E24: kgCO2éq./kg | F24: =Entrées!E303 -> 0 | G24: =Entrées!G303 -> 0 | S24: =Entrées!T139 -> FALSE
D25: =Entrées!C140 -> Produit chimique 17 | E25: kgCO2éq./kg | F25: =Entrées!E304 -> 0 | G25: =Entrées!G304 -> 0 | S25: =Entrées!T140 -> FALSE
D26: =Entrées!C141 -> Produit chimique 18 | E26: kgCO2éq./kg | F26: =Entrées!E305 -> 0 | G26: =Entrées!G305 -> 0 | S26: =Entrées!T141 -> FALSE
D27: =Entrées!C142 -> Produit chimique 19 | E27: kgCO2éq./kg | F27: =Entrées!E306 -> 0 | G27: =Entrées!G306 -> 0 | S27: =Entrées!T142 -> FALSE
D28: =Entrées!C143 -> Produit chimique 20 | E28: kgCO2éq./kg | F28: =Entrées!E307 -> 0 | G28: =Entrées!G307 -> 0 | S28: =Entrées!T143 -> FALSE
S29: =TRUE -> TRUE
C30: Mchem | D30: Masse annuelle de produits chimiques consommés | F30: TOTAL | G30: =IF(WWTP1="","",WWTP1) -> STEU1 | H30: =IF(WWTP2="","",WWTP2) -> STEU2 | I30: =IF(WWTP3="","",WWTP3) -> STEU3 | J30: =IF(WWTP4="","",WWTP4) -> STEU4 | K30: =IF(WWCollection="","",WWCollection) -> Collecte | L30: =IF(WTP1_="","",WTP1_) -> STE1 | M30: =IF(WTP2_="","",WTP2_) -> STE2 | N30: =IF(WTP3_="","",WTP3_) -> STE3 | O30: =IF(WTP4_="","",WTP4_) -> STE4 | P30: =IF(WDistr="","",WDistr) -> Distribution | Q30: =IF(SuppFac="","",SuppFac) -> Inst. sout. | S30: =TRUE -> TRUE
D31: =Entrées!C124 -> Produit chimique 1 | E31: kg/an | G31: =IF(Entrées!E124="","",Entrées!E124) ->  | H31: =IF(Entrées!F124="","",Entrées!F124) ->  | I31: =IF(Entrées!G124="","",Entrées!G124) ->  | J31: =IF(Entrées!H124="","",Entrées!H124) ->  | K31: =IF(Entrées!I124="","",Entrées!I124) ->  | L31: =IF(Entrées!J124="","",Entrées!J124) ->  | M31: =IF(Entrées!K124="","",Entrées!K124) ->  | N31: =IF(Entrées!L124="","",Entrées!L124) ->  | O31: =IF(Entrées!M124="","",Entrées!M124) ->  | P31: =IF(Entrées!N124="","",Entrées!N124) ->  | Q31: =IF(Entrées!O124="","",Entrées!O124) ->  | S31: =Entrées!T124 -> FALSE
D32: =Entrées!C125 -> Produit chimique 2 | E32: kg/an | G32: =IF(Entrées!E125="","",Entrées!E125) ->  | H32: =IF(Entrées!F125="","",Entrées!F125) ->  | I32: =IF(Entrées!G125="","",Entrées!G125) ->  | J32: =IF(Entrées!H125="","",Entrées!H125) ->  | K32: =IF(Entrées!I125="","",Entrées!I125) ->  | L32: =IF(Entrées!J125="","",Entrées!J125) ->  | M32: =IF(Entrées!K125="","",Entrées!K125) ->  | N32: =IF(Entrées!L125="","",Entrées!L125) ->  | O32: =IF(Entrées!M125="","",Entrées!M125) ->  | P32: =IF(Entrées!N125="","",Entrées!N125) ->  | Q32: =IF(Entrées!O125="","",Entrées!O125) ->  | S32: =Entrées!T125 -> FALSE
D33: =Entrées!C126 -> Produit chimique 3 | E33: kg/an | G33: =IF(Entrées!E126="","",Entrées!E126) ->  | H33: =IF(Entrées!F126="","",Entrées!F126) ->  | I33: =IF(Entrées!G126="","",Entrées!G126) ->  | J33: =IF(Entrées!H126="","",Entrées!H126) ->  | K33: =IF(Entrées!I126="","",Entrées!I126) ->  | L33: =IF(Entrées!J126="","",Entrées!J126) ->  | M33: =IF(Entrées!K126="","",Entrées!K126) ->  | N33: =IF(Entrées!L126="","",Entrées!L126) ->  | O33: =IF(Entrées!M126="","",Entrées!M126) ->  | P33: =IF(Entrées!N126="","",Entrées!N126) ->  | Q33: =IF(Entrées!O126="","",Entrées!O126) ->  | S33: =Entrées!T126 -> FALSE
D34: =Entrées!C127 -> Produit chimique 4 | E34: kg/an | G34: =IF(Entrées!E127="","",Entrées!E127) ->  | H34: =IF(Entrées!F127="","",Entrées!F127) ->  | I34: =IF(Entrées!G127="","",Entrées!G127) ->  | J34: =IF(Entrées!H127="","",Entrées!H127) ->  | K34: =IF(Entrées!I127="","",Entrées!I127) ->  | L34: =IF(Entrées!J127="","",Entrées!J127) ->  | M34: =IF(Entrées!K127="","",Entrées!K127) ->  | N34: =IF(Entrées!L127="","",Entrées!L127) ->  | O34: =IF(Entrées!M127="","",Entrées!M127) ->  | P34: =IF(Entrées!N127="","",Entrées!N127) ->  | Q34: =IF(Entrées!O127="","",Entrées!O127) ->  | S34: =Entrées!T127 -> FALSE
D35: =Entrées!C128 -> Produit chimique 5 | E35: kg/an | G35: =IF(Entrées!E128="","",Entrées!E128) ->  | H35: =IF(Entrées!F128="","",Entrées!F128) ->  | I35: =IF(Entrées!G128="","",Entrées!G128) ->  | J35: =IF(Entrées!H128="","",Entrées!H128) ->  | K35: =IF(Entrées!I128="","",Entrées!I128) ->  | L35: =IF(Entrées!J128="","",Entrées!J128) ->  | M35: =IF(Entrées!K128="","",Entrées!K128) ->  | N35: =IF(Entrées!L128="","",Entrées!L128) ->  | O35: =IF(Entrées!M128="","",Entrées!M128) ->  | P35: =IF(Entrées!N128="","",Entrées!N128) ->  | Q35: =IF(Entrées!O128="","",Entrées!O128) ->  | S35: =Entrées!T128 -> FALSE
D36: =Entrées!C129 -> Produit chimique 6 | E36: kg/an | G36: =IF(Entrées!E129="","",Entrées!E129) ->  | H36: =IF(Entrées!F129="","",Entrées!F129) ->  | I36: =IF(Entrées!G129="","",Entrées!G129) ->  | J36: =IF(Entrées!H129="","",Entrées!H129) ->  | K36: =IF(Entrées!I129="","",Entrées!I129) ->  | L36: =IF(Entrées!J129="","",Entrées!J129) ->  | M36: =IF(Entrées!K129="","",Entrées!K129) ->  | N36: =IF(Entrées!L129="","",Entrées!L129) ->  | O36: =IF(Entrées!M129="","",Entrées!M129) ->  | P36: =IF(Entrées!N129="","",Entrées!N129) ->  | Q36: =IF(Entrées!O129="","",Entrées!O129) ->  | S36: =Entrées!T129 -> FALSE
D37: =Entrées!C130 -> Produit chimique 7 | E37: kg/an | G37: =IF(Entrées!E130="","",Entrées!E130) ->  | H37: =IF(Entrées!F130="","",Entrées!F130) ->  | I37: =IF(Entrées!G130="","",Entrées!G130) ->  | J37: =IF(Entrées!H130="","",Entrées!H130) ->  | K37: =IF(Entrées!I130="","",Entrées!I130) ->  | L37: =IF(Entrées!J130="","",Entrées!J130) ->  | M37: =IF(Entrées!K130="","",Entrées!K130) ->  | N37: =IF(Entrées!L130="","",Entrées!L130) ->  | O37: =IF(Entrées!M130="","",Entrées!M130) ->  | P37: =IF(Entrées!N130="","",Entrées!N130) ->  | Q37: =IF(Entrées!O130="","",Entrées!O130) ->  | S37: =Entrées!T130 -> FALSE
D38: =Entrées!C131 -> Produit chimique 8 | E38: kg/an | G38: =IF(Entrées!E131="","",Entrées!E131) ->  | H38: =IF(Entrées!F131="","",Entrées!F131) ->  | I38: =IF(Entrées!G131="","",Entrées!G131) ->  | J38: =IF(Entrées!H131="","",Entrées!H131) ->  | K38: =IF(Entrées!I131="","",Entrées!I131) ->  | L38: =IF(Entrées!J131="","",Entrées!J131) ->  | M38: =IF(Entrées!K131="","",Entrées!K131) ->  | N38: =IF(Entrées!L131="","",Entrées!L131) ->  | O38: =IF(Entrées!M131="","",Entrées!M131) ->  | P38: =IF(Entrées!N131="","",Entrées!N131) ->  | Q38: =IF(Entrées!O131="","",Entrées!O131) ->  | S38: =Entrées!T131 -> FALSE
D39: =Entrées!C132 -> Produit chimique 9 | E39: kg/an | G39: =IF(Entrées!E132="","",Entrées!E132) ->  | H39: =IF(Entrées!F132="","",Entrées!F132) ->  | I39: =IF(Entrées!G132="","",Entrées!G132) ->  | J39: =IF(Entrées!H132="","",Entrées!H132) ->  | K39: =IF(Entrées!I132="","",Entrées!I132) ->  | L39: =IF(Entrées!J132="","",Entrées!J132) ->  | M39: =IF(Entrées!K132="","",Entrées!K132) ->  | N39: =IF(Entrées!L132="","",Entrées!L132) ->  | O39: =IF(Entrées!M132="","",Entrées!M132) ->  | P39: =IF(Entrées!N132="","",Entrées!N132) ->  | Q39: =IF(Entrées!O132="","",Entrées!O132) ->  | S39: =Entrées!T132 -> FALSE
D40: =Entrées!C133 -> Produit chimique 10 | E40: kg/an | G40: =IF(Entrées!E133="","",Entrées!E133) ->  | H40: =IF(Entrées!F133="","",Entrées!F133) ->  | I40: =IF(Entrées!G133="","",Entrées!G133) ->  | J40: =IF(Entrées!H133="","",Entrées!H133) ->  | K40: =IF(Entrées!I133="","",Entrées!I133) ->  | L40: =IF(Entrées!J133="","",Entrées!J133) ->  | M40: =IF(Entrées!K133="","",Entrées!K133) ->  | N40: =IF(Entrées!L133="","",Entrées!L133) ->  | O40: =IF(Entrées!M133="","",Entrées!M133) ->  | P40: =IF(Entrées!N133="","",Entrées!N133) ->  | Q40: =IF(Entrées!O133="","",Entrées!O133) ->  | S40: =Entrées!T133 -> FALSE
D41: =Entrées!C134 -> Produit chimique 11 | E41: kg/an | G41: =IF(Entrées!E134="","",Entrées!E134) ->  | H41: =IF(Entrées!F134="","",Entrées!F134) ->  | I41: =IF(Entrées!G134="","",Entrées!G134) ->  | J41: =IF(Entrées!H134="","",Entrées!H134) ->  | K41: =IF(Entrées!I134="","",Entrées!I134) ->  | L41: =IF(Entrées!J134="","",Entrées!J134) ->  | M41: =IF(Entrées!K134="","",Entrées!K134) ->  | N41: =IF(Entrées!L134="","",Entrées!L134) ->  | O41: =IF(Entrées!M134="","",Entrées!M134) ->  | P41: =IF(Entrées!N134="","",Entrées!N134) ->  | Q41: =IF(Entrées!O134="","",Entrées!O134) ->  | S41: =Entrées!T134 -> FALSE
D42: =Entrées!C135 -> Produit chimique 12 | E42: kg/an | G42: =IF(Entrées!E135="","",Entrées!E135) ->  | H42: =IF(Entrées!F135="","",Entrées!F135) ->  | I42: =IF(Entrées!G135="","",Entrées!G135) ->  | J42: =IF(Entrées!H135="","",Entrées!H135) ->  | K42: =IF(Entrées!I135="","",Entrées!I135) ->  | L42: =IF(Entrées!J135="","",Entrées!J135) ->  | M42: =IF(Entrées!K135="","",Entrées!K135) ->  | N42: =IF(Entrées!L135="","",Entrées!L135) ->  | O42: =IF(Entrées!M135="","",Entrées!M135) ->  | P42: =IF(Entrées!N135="","",Entrées!N135) ->  | Q42: =IF(Entrées!O135="","",Entrées!O135) ->  | S42: =Entrées!T135 -> FALSE
D43: =Entrées!C136 -> Produit chimique 13 | E43: kg/an | G43: =IF(Entrées!E136="","",Entrées!E136) ->  | H43: =IF(Entrées!F136="","",Entrées!F136) ->  | I43: =IF(Entrées!G136="","",Entrées!G136) ->  | J43: =IF(Entrées!H136="","",Entrées!H136) ->  | K43: =IF(Entrées!I136="","",Entrées!I136) ->  | L43: =IF(Entrées!J136="","",Entrées!J136) ->  | M43: =IF(Entrées!K136="","",Entrées!K136) ->  | N43: =IF(Entrées!L136="","",Entrées!L136) ->  | O43: =IF(Entrées!M136="","",Entrées!M136) ->  | P43: =IF(Entrées!N136="","",Entrées!N136) ->  | Q43: =IF(Entrées!O136="","",Entrées!O136) ->  | S43: =Entrées!T136 -> FALSE
D44: =Entrées!C137 -> Produit chimique 14 | E44: kg/an | G44: =IF(Entrées!E137="","",Entrées!E137) ->  | H44: =IF(Entrées!F137="","",Entrées!F137) ->  | I44: =IF(Entrées!G137="","",Entrées!G137) ->  | J44: =IF(Entrées!H137="","",Entrées!H137) ->  | K44: =IF(Entrées!I137="","",Entrées!I137) ->  | L44: =IF(Entrées!J137="","",Entrées!J137) ->  | M44: =IF(Entrées!K137="","",Entrées!K137) ->  | N44: =IF(Entrées!L137="","",Entrées!L137) ->  | O44: =IF(Entrées!M137="","",Entrées!M137) ->  | P44: =IF(Entrées!N137="","",Entrées!N137) ->  | Q44: =IF(Entrées!O137="","",Entrées!O137) ->  | S44: =Entrées!T137 -> FALSE
D45: =Entrées!C138 -> Produit chimique 15 | E45: kg/an | G45: =IF(Entrées!E138="","",Entrées!E138) ->  | H45: =IF(Entrées!F138="","",Entrées!F138) ->  | I45: =IF(Entrées!G138="","",Entrées!G138) ->  | J45: =IF(Entrées!H138="","",Entrées!H138) ->  | K45: =IF(Entrées!I138="","",Entrées!I138) ->  | L45: =IF(Entrées!J138="","",Entrées!J138) ->  | M45: =IF(Entrées!K138="","",Entrées!K138) ->  | N45: =IF(Entrées!L138="","",Entrées!L138) ->  | O45: =IF(Entrées!M138="","",Entrées!M138) ->  | P45: =IF(Entrées!N138="","",Entrées!N138) ->  | Q45: =IF(Entrées!O138="","",Entrées!O138) ->  | S45: =Entrées!T138 -> FALSE
D46: =Entrées!C139 -> Produit chimique 16 | E46: kg/an | G46: =IF(Entrées!E139="","",Entrées!E139) ->  | H46: =IF(Entrées!F139="","",Entrées!F139) ->  | I46: =IF(Entrées!G139="","",Entrées!G139) ->  | J46: =IF(Entrées!H139="","",Entrées!H139) ->  | K46: =IF(Entrées!I139="","",Entrées!I139) ->  | L46: =IF(Entrées!J139="","",Entrées!J139) ->  | M46: =IF(Entrées!K139="","",Entrées!K139) ->  | N46: =IF(Entrées!L139="","",Entrées!L139) ->  | O46: =IF(Entrées!M139="","",Entrées!M139) ->  | P46: =IF(Entrées!N139="","",Entrées!N139) ->  | Q46: =IF(Entrées!O139="","",Entrées!O139) ->  | S46: =Entrées!T139 -> FALSE
D47: =Entrées!C140 -> Produit chimique 17 | E47: kg/an | G47: =IF(Entrées!E140="","",Entrées!E140) ->  | H47: =IF(Entrées!F140="","",Entrées!F140) ->  | I47: =IF(Entrées!G140="","",Entrées!G140) ->  | J47: =IF(Entrées!H140="","",Entrées!H140) ->  | K47: =IF(Entrées!I140="","",Entrées!I140) ->  | L47: =IF(Entrées!J140="","",Entrées!J140) ->  | M47: =IF(Entrées!K140="","",Entrées!K140) ->  | N47: =IF(Entrées!L140="","",Entrées!L140) ->  | O47: =IF(Entrées!M140="","",Entrées!M140) ->  | P47: =IF(Entrées!N140="","",Entrées!N140) ->  | Q47: =IF(Entrées!O140="","",Entrées!O140) ->  | S47: =Entrées!T140 -> FALSE
D48: =Entrées!C141 -> Produit chimique 18 | E48: kg/an | G48: =IF(Entrées!E141="","",Entrées!E141) ->  | H48: =IF(Entrées!F141="","",Entrées!F141) ->  | I48: =IF(Entrées!G141="","",Entrées!G141) ->  | J48: =IF(Entrées!H141="","",Entrées!H141) ->  | K48: =IF(Entrées!I141="","",Entrées!I141) ->  | L48: =IF(Entrées!J141="","",Entrées!J141) ->  | M48: =IF(Entrées!K141="","",Entrées!K141) ->  | N48: =IF(Entrées!L141="","",Entrées!L141) ->  | O48: =IF(Entrées!M141="","",Entrées!M141) ->  | P48: =IF(Entrées!N141="","",Entrées!N141) ->  | Q48: =IF(Entrées!O141="","",Entrées!O141) ->  | S48: =Entrées!T141 -> FALSE
D49: =Entrées!C142 -> Produit chimique 19 | E49: kg/an | G49: =IF(Entrées!E142="","",Entrées!E142) ->  | H49: =IF(Entrées!F142="","",Entrées!F142) ->  | I49: =IF(Entrées!G142="","",Entrées!G142) ->  | J49: =IF(Entrées!H142="","",Entrées!H142) ->  | K49: =IF(Entrées!I142="","",Entrées!I142) ->  | L49: =IF(Entrées!J142="","",Entrées!J142) ->  | M49: =IF(Entrées!K142="","",Entrées!K142) ->  | N49: =IF(Entrées!L142="","",Entrées!L142) ->  | O49: =IF(Entrées!M142="","",Entrées!M142) ->  | P49: =IF(Entrées!N142="","",Entrées!N142) ->  | Q49: =IF(Entrées!O142="","",Entrées!O142) ->  | S49: =Entrées!T142 -> FALSE
D50: =Entrées!C143 -> Produit chimique 20 | E50: kg/an | G50: =IF(Entrées!E143="","",Entrées!E143) ->  | H50: =IF(Entrées!F143="","",Entrées!F143) ->  | I50: =IF(Entrées!G143="","",Entrées!G143) ->  | J50: =IF(Entrées!H143="","",Entrées!H143) ->  | K50: =IF(Entrées!I143="","",Entrées!I143) ->  | L50: =IF(Entrées!J143="","",Entrées!J143) ->  | M50: =IF(Entrées!K143="","",Entrées!K143) ->  | N50: =IF(Entrées!L143="","",Entrées!L143) ->  | O50: =IF(Entrées!M143="","",Entrées!M143) ->  | P50: =IF(Entrées!N143="","",Entrées!N143) ->  | Q50: =IF(Entrées!O143="","",Entrées!O143) ->  | S50: =Entrées!T143 -> FALSE
C51: Echem | D51: Émissions de la consommation de produits chimiques | S51: =TRUE -> TRUE
D52: =D31 -> Produit chimique 1 | E52: tCO2éq./an | G52: =IF(G31="","",G31*$F9/1000) ->  | H52: =IF(H31="","",H31*$F9/1000) ->  | S52: =Entrées!T124 -> FALSE
D53: =D32 -> Produit chimique 2 | E53: tCO2éq./an | G53: =IF(G32="","",G32*$F10/1000) ->  | S53: =Entrées!T125 -> FALSE
D54: Produit chimique 3 | E54: tCO2éq./an | S54: =Entrées!T126 -> FALSE
D55: Produit chimique 4 | E55: tCO2éq./an | S55: =Entrées!T127 -> FALSE
D56: Produit chimique 5 | E56: tCO2éq./an | S56: =Entrées!T128 -> FALSE
D57: Produit chimique 6 | E57: tCO2éq./an | S57: =Entrées!T129 -> FALSE
D58: Produit chimique 7 | E58: tCO2éq./an | S58: =Entrées!T130 -> FALSE
D59: Produit chimique 8 | E59: tCO2éq./an | S59: =Entrées!T131 -> FALSE
D60: Produit chimique 9 | E60: tCO2éq./an | S60: =Entrées!T132 -> FALSE
D61: Produit chimique 10 | E61: tCO2éq./an | S61: =Entrées!T133 -> FALSE
D62: Produit chimique 11 | E62: tCO2éq./an | S62: =Entrées!T134 -> FALSE
D63: Produit chimique 12 | E63: tCO2éq./an | S63: =Entrées!T135 -> FALSE
D64: Produit chimique 13 | E64: tCO2éq./an | S64: =Entrées!T136 -> FALSE
D65: Produit chimique 14 | E65: tCO2éq./an | S65: =Entrées!T137 -> FALSE
D66: Produit chimique 15 | E66: tCO2éq./an | S66: =Entrées!T138 -> FALSE
D67: Produit chimique 16 | E67: tCO2éq./an | S67: =Entrées!T139 -> FALSE
D68: Produit chimique 17 | E68: tCO2éq./an | S68: =Entrées!T140 -> FALSE
D69: Produit chimique 18 | E69: tCO2éq./an | S69: =Entrées!T141 -> FALSE
D70: Produit chimique 19 | E70: tCO2éq./an | S70: =Entrées!T142 -> FALSE
D71: Produit chimique 20 | E71: tCO2éq./an | S71: =Entrées!T143 -> FALSE
D72: Total des émissions de la consommation de produits chimiques | E72: tCO2éq./an | F72: =SUM(G72:Q72) -> 0 | G72: =SUM(G52:G71) -> 0 | H72: =SUM(H52:H71) -> 0 | I72: 0 | J72: 0 | K72: 0 | L72: 0 | M72: 0 | N72: 0 | O72: 0 | P72: 0 | Q72: 0 | S72: =TRUE -> TRUE
S73: =TRUE -> TRUE
B74: Étape 2 – | C74: Estimer les émissions associées au transport des produits chimiques jusqu’au site | S74: =TRUE -> TRUE
C75: Echem,t = EFtransport * Mchem * D | S75: =TRUE -> TRUE
E76: Unité | F76: Valeur de l’entrée | G76: Notes/références de l’utilisateur | S76: =TRUE -> TRUE
C77: EFtransport,truck | D77: CE du transport camion lourd, camion 25 tonnes métriques | E77: kgCO2éq/t*km | F77: =Entrées!E283 -> 0.08750895 | G77: =Entrées!G283 -> Canada Fuel LCA Model 2024 | S77: =TRUE -> TRUE
C78: EFtransport,train | D78: CE de train de marchandises diesel | E78: kgCO2éq/t*km | F78: =Entrées!E284 -> 0.01541546 | G78: =Entrées!G285 -> Canada Fuel LCA Model 2024 | S78: =TRUE -> TRUE
C79: EFtransport,ship | D79: Navire de fret maritime de marchandises en vrac | E79: kgCO2éq/t*km | F79: =Entrées!E285 -> 0.02467173 | G79: =Entrées!G284 -> Canada Fuel LCA Model 2024 | S79: =TRUE -> TRUE
S80: =TRUE -> TRUE
F81: TOTAL | G81: =IF(WWTP1="","",WWTP1) -> STEU1 | H81: =IF(WWTP2="","",WWTP2) -> STEU2 | I81: =IF(WWTP3="","",WWTP3) -> STEU3 | J81: =IF(WWTP4="","",WWTP4) -> STEU4 | K81: =IF(WWCollection="","",WWCollection) -> Collecte | L81: =IF(WTP1_="","",WTP1_) -> STE1 | M81: =IF(WTP2_="","",WTP2_) -> STE2 | N81: =IF(WTP3_="","",WTP3_) -> STE3 | O81: =IF(WTP4_="","",WTP4_) -> STE4 | P81: =IF(WDistr="","",WDistr) -> Distribution | Q81: =IF(SuppFac="","",SuppFac) -> Inst. sout. | S81: =TRUE -> TRUE
C82: Dtruck | D82: Distance parcourue par le camion entre le fournisseur et le site (trajet aller-retour) | S82: =TRUE -> TRUE
D83: =Entrées!C124 -> Produit chimique 1 | E83: km | G83: =IF(Entrées!E145="","",Entrées!E145) ->  | H83: =IF(Entrées!F145="","",Entrées!F145) ->  | I83: =IF(Entrées!G145="","",Entrées!G145) ->  | J83: =IF(Entrées!H145="","",Entrées!H145) ->  | K83: =IF(Entrées!I145="","",Entrées!I145) ->  | L83: =IF(Entrées!J145="","",Entrées!J145) ->  | M83: =IF(Entrées!K145="","",Entrées!K145) ->  | N83: =IF(Entrées!L145="","",Entrées!L145) ->  | O83: =IF(Entrées!M145="","",Entrées!M145) ->  | P83: =IF(Entrées!N145="","",Entrées!N145) ->  | Q83: =IF(Entrées!O145="","",Entrées!O145) ->  | S83: =Entrées!U145 -> FALSE
D84: =Entrées!C125 -> Produit chimique 2 | E84: km | G84: =IF(Entrées!E146="","",Entrées!E146) ->  | H84: =IF(Entrées!F146="","",Entrées!F146) ->  | I84: =IF(Entrées!G146="","",Entrées!G146) ->  | J84: =IF(Entrées!H146="","",Entrées!H146) ->  | K84: =IF(Entrées!I146="","",Entrées!I146) ->  | L84: =IF(Entrées!J146="","",Entrées!J146) ->  | M84: =IF(Entrées!K146="","",Entrées!K146) ->  | N84: =IF(Entrées!L146="","",Entrées!L146) ->  | O84: =IF(Entrées!M146="","",Entrées!M146) ->  | P84: =IF(Entrées!N146="","",Entrées!N146) ->  | Q84: =IF(Entrées!O146="","",Entrées!O146) ->  | S84: =Entrées!U146 -> FALSE
D85: =Entrées!C126 -> Produit chimique 3 | E85: km | G85: =IF(Entrées!E147="","",Entrées!E147) ->  | H85: =IF(Entrées!F147="","",Entrées!F147) ->  | I85: =IF(Entrées!G147="","",Entrées!G147) ->  | J85: =IF(Entrées!H147="","",Entrées!H147) ->  | K85: =IF(Entrées!I147="","",Entrées!I147) ->  | L85: =IF(Entrées!J147="","",Entrées!J147) ->  | M85: =IF(Entrées!K147="","",Entrées!K147) ->  | N85: =IF(Entrées!L147="","",Entrées!L147) ->  | O85: =IF(Entrées!M147="","",Entrées!M147) ->  | P85: =IF(Entrées!N147="","",Entrées!N147) ->  | Q85: =IF(Entrées!O147="","",Entrées!O147) ->  | S85: =Entrées!U147 -> FALSE
D86: =Entrées!C127 -> Produit chimique 4 | E86: km | G86: =IF(Entrées!E148="","",Entrées!E148) ->  | H86: =IF(Entrées!F148="","",Entrées!F148) ->  | I86: =IF(Entrées!G148="","",Entrées!G148) ->  | J86: =IF(Entrées!H148="","",Entrées!H148) ->  | K86: =IF(Entrées!I148="","",Entrées!I148) ->  | L86: =IF(Entrées!J148="","",Entrées!J148) ->  | M86: =IF(Entrées!K148="","",Entrées!K148) ->  | N86: =IF(Entrées!L148="","",Entrées!L148) ->  | O86: =IF(Entrées!M148="","",Entrées!M148) ->  | P86: =IF(Entrées!N148="","",Entrées!N148) ->  | Q86: =IF(Entrées!O148="","",Entrées!O148) ->  | S86: =Entrées!U148 -> FALSE
D87: =Entrées!C128 -> Produit chimique 5 | E87: km | G87: =IF(Entrées!E149="","",Entrées!E149) ->  | H87: =IF(Entrées!F149="","",Entrées!F149) ->  | I87: =IF(Entrées!G149="","",Entrées!G149) ->  | J87: =IF(Entrées!H149="","",Entrées!H149) ->  | K87: =IF(Entrées!I149="","",Entrées!I149) ->  | L87: =IF(Entrées!J149="","",Entrées!J149) ->  | M87: =IF(Entrées!K149="","",Entrées!K149) ->  | N87: =IF(Entrées!L149="","",Entrées!L149) ->  | O87: =IF(Entrées!M149="","",Entrées!M149) ->  | P87: =IF(Entrées!N149="","",Entrées!N149) ->  | Q87: =IF(Entrées!O149="","",Entrées!O149) ->  | S87: =Entrées!U149 -> FALSE
D88: =Entrées!C129 -> Produit chimique 6 | E88: km | G88: =IF(Entrées!E150="","",Entrées!E150) ->  | H88: =IF(Entrées!F150="","",Entrées!F150) ->  | I88: =IF(Entrées!G150="","",Entrées!G150) ->  | J88: =IF(Entrées!H150="","",Entrées!H150) ->  | K88: =IF(Entrées!I150="","",Entrées!I150) ->  | L88: =IF(Entrées!J150="","",Entrées!J150) ->  | M88: =IF(Entrées!K150="","",Entrées!K150) ->  | N88: =IF(Entrées!L150="","",Entrées!L150) ->  | O88: =IF(Entrées!M150="","",Entrées!M150) ->  | P88: =IF(Entrées!N150="","",Entrées!N150) ->  | Q88: =IF(Entrées!O150="","",Entrées!O150) ->  | S88: =Entrées!U150 -> FALSE
D89: =Entrées!C130 -> Produit chimique 7 | E89: km | G89: =IF(Entrées!E151="","",Entrées!E151) ->  | H89: =IF(Entrées!F151="","",Entrées!F151) ->  | I89: =IF(Entrées!G151="","",Entrées!G151) ->  | J89: =IF(Entrées!H151="","",Entrées!H151) ->  | K89: =IF(Entrées!I151="","",Entrées!I151) ->  | L89: =IF(Entrées!J151="","",Entrées!J151) ->  | M89: =IF(Entrées!K151="","",Entrées!K151) ->  | N89: =IF(Entrées!L151="","",Entrées!L151) ->  | O89: =IF(Entrées!M151="","",Entrées!M151) ->  | P89: =IF(Entrées!N151="","",Entrées!N151) ->  | Q89: =IF(Entrées!O151="","",Entrées!O151) ->  | S89: =Entrées!U151 -> FALSE
D90: =Entrées!C131 -> Produit chimique 8 | E90: km | G90: =IF(Entrées!E152="","",Entrées!E152) ->  | H90: =IF(Entrées!F152="","",Entrées!F152) ->  | I90: =IF(Entrées!G152="","",Entrées!G152) ->  | J90: =IF(Entrées!H152="","",Entrées!H152) ->  | K90: =IF(Entrées!I152="","",Entrées!I152) ->  | L90: =IF(Entrées!J152="","",Entrées!J152) ->  | M90: =IF(Entrées!K152="","",Entrées!K152) ->  | N90: =IF(Entrées!L152="","",Entrées!L152) ->  | O90: =IF(Entrées!M152="","",Entrées!M152) ->  | P90: =IF(Entrées!N152="","",Entrées!N152) ->  | Q90: =IF(Entrées!O152="","",Entrées!O152) ->  | S90: =Entrées!U152 -> FALSE
D91: =Entrées!C132 -> Produit chimique 9 | E91: km | G91: =IF(Entrées!E153="","",Entrées!E153) ->  | H91: =IF(Entrées!F153="","",Entrées!F153) ->  | I91: =IF(Entrées!G153="","",Entrées!G153) ->  | J91: =IF(Entrées!H153="","",Entrées!H153) ->  | K91: =IF(Entrées!I153="","",Entrées!I153) ->  | L91: =IF(Entrées!J153="","",Entrées!J153) ->  | M91: =IF(Entrées!K153="","",Entrées!K153) ->  | N91: =IF(Entrées!L153="","",Entrées!L153) ->  | O91: =IF(Entrées!M153="","",Entrées!M153) ->  | P91: =IF(Entrées!N153="","",Entrées!N153) ->  | Q91: =IF(Entrées!O153="","",Entrées!O153) ->  | S91: =Entrées!U153 -> FALSE
D92: =Entrées!C133 -> Produit chimique 10 | E92: km | G92: =IF(Entrées!E154="","",Entrées!E154) ->  | H92: =IF(Entrées!F154="","",Entrées!F154) ->  | I92: =IF(Entrées!G154="","",Entrées!G154) ->  | J92: =IF(Entrées!H154="","",Entrées!H154) ->  | K92: =IF(Entrées!I154="","",Entrées!I154) ->  | L92: =IF(Entrées!J154="","",Entrées!J154) ->  | M92: =IF(Entrées!K154="","",Entrées!K154) ->  | N92: =IF(Entrées!L154="","",Entrées!L154) ->  | O92: =IF(Entrées!M154="","",Entrées!M154) ->  | P92: =IF(Entrées!N154="","",Entrées!N154) ->  | Q92: =IF(Entrées!O154="","",Entrées!O154) ->  | S92: =Entrées!U154 -> FALSE
D93: =Entrées!C134 -> Produit chimique 11 | E93: km | G93: =IF(Entrées!E155="","",Entrées!E155) ->  | H93: =IF(Entrées!F155="","",Entrées!F155) ->  | I93: =IF(Entrées!G155="","",Entrées!G155) ->  | J93: =IF(Entrées!H155="","",Entrées!H155) ->  | K93: =IF(Entrées!I155="","",Entrées!I155) ->  | L93: =IF(Entrées!J155="","",Entrées!J155) ->  | M93: =IF(Entrées!K155="","",Entrées!K155) ->  | N93: =IF(Entrées!L155="","",Entrées!L155) ->  | O93: =IF(Entrées!M155="","",Entrées!M155) ->  | P93: =IF(Entrées!N155="","",Entrées!N155) ->  | Q93: =IF(Entrées!O155="","",Entrées!O155) ->  | S93: =Entrées!U155 -> FALSE
D94: =Entrées!C135 -> Produit chimique 12 | E94: km | G94: =IF(Entrées!E156="","",Entrées!E156) ->  | H94: =IF(Entrées!F156="","",Entrées!F156) ->  | I94: =IF(Entrées!G156="","",Entrées!G156) ->  | J94: =IF(Entrées!H156="","",Entrées!H156) ->  | K94: =IF(Entrées!I156="","",Entrées!I156) ->  | L94: =IF(Entrées!J156="","",Entrées!J156) ->  | M94: =IF(Entrées!K156="","",Entrées!K156) ->  | N94: =IF(Entrées!L156="","",Entrées!L156) ->  | O94: =IF(Entrées!M156="","",Entrées!M156) ->  | P94: =IF(Entrées!N156="","",Entrées!N156) ->  | Q94: =IF(Entrées!O156="","",Entrées!O156) ->  | S94: =Entrées!U156 -> FALSE
D95: =Entrées!C136 -> Produit chimique 13 | E95: km | G95: =IF(Entrées!E157="","",Entrées!E157) ->  | H95: =IF(Entrées!F157="","",Entrées!F157) ->  | I95: =IF(Entrées!G157="","",Entrées!G157) ->  | J95: =IF(Entrées!H157="","",Entrées!H157) ->  | K95: =IF(Entrées!I157="","",Entrées!I157) ->  | L95: =IF(Entrées!J157="","",Entrées!J157) ->  | M95: =IF(Entrées!K157="","",Entrées!K157) ->  | N95: =IF(Entrées!L157="","",Entrées!L157) ->  | O95: =IF(Entrées!M157="","",Entrées!M157) ->  | P95: =IF(Entrées!N157="","",Entrées!N157) ->  | Q95: =IF(Entrées!O157="","",Entrées!O157) ->  | S95: =Entrées!U157 -> FALSE
D96: =Entrées!C137 -> Produit chimique 14 | E96: km | G96: =IF(Entrées!E158="","",Entrées!E158) ->  | H96: =IF(Entrées!F158="","",Entrées!F158) ->  | I96: =IF(Entrées!G158="","",Entrées!G158) ->  | J96: =IF(Entrées!H158="","",Entrées!H158) ->  | K96: =IF(Entrées!I158="","",Entrées!I158) ->  | L96: =IF(Entrées!J158="","",Entrées!J158) ->  | M96: =IF(Entrées!K158="","",Entrées!K158) ->  | N96: =IF(Entrées!L158="","",Entrées!L158) ->  | O96: =IF(Entrées!M158="","",Entrées!M158) ->  | P96: =IF(Entrées!N158="","",Entrées!N158) ->  | Q96: =IF(Entrées!O158="","",Entrées!O158) ->  | S96: =Entrées!U158 -> FALSE
D97: =Entrées!C138 -> Produit chimique 15 | E97: km | G97: =IF(Entrées!E159="","",Entrées!E159) ->  | H97: =IF(Entrées!F159="","",Entrées!F159) ->  | I97: =IF(Entrées!G159="","",Entrées!G159) ->  | J97: =IF(Entrées!H159="","",Entrées!H159) ->  | K97: =IF(Entrées!I159="","",Entrées!I159) ->  | L97: =IF(Entrées!J159="","",Entrées!J159) ->  | M97: =IF(Entrées!K159="","",Entrées!K159) ->  | N97: =IF(Entrées!L159="","",Entrées!L159) ->  | O97: =IF(Entrées!M159="","",Entrées!M159) ->  | P97: =IF(Entrées!N159="","",Entrées!N159) ->  | Q97: =IF(Entrées!O159="","",Entrées!O159) ->  | S97: =Entrées!U159 -> FALSE
D98: =Entrées!C139 -> Produit chimique 16 | E98: km | G98: =IF(Entrées!E160="","",Entrées!E160) ->  | H98: =IF(Entrées!F160="","",Entrées!F160) ->  | I98: =IF(Entrées!G160="","",Entrées!G160) ->  | J98: =IF(Entrées!H160="","",Entrées!H160) ->  | K98: =IF(Entrées!I160="","",Entrées!I160) ->  | L98: =IF(Entrées!J160="","",Entrées!J160) ->  | M98: =IF(Entrées!K160="","",Entrées!K160) ->  | N98: =IF(Entrées!L160="","",Entrées!L160) ->  | O98: =IF(Entrées!M160="","",Entrées!M160) ->  | P98: =IF(Entrées!N160="","",Entrées!N160) ->  | Q98: =IF(Entrées!O160="","",Entrées!O160) ->  | S98: =Entrées!U160 -> FALSE
D99: =Entrées!C140 -> Produit chimique 17 | E99: km | G99: =IF(Entrées!E161="","",Entrées!E161) ->  | H99: =IF(Entrées!F161="","",Entrées!F161) ->  | I99: =IF(Entrées!G161="","",Entrées!G161) ->  | J99: =IF(Entrées!H161="","",Entrées!H161) ->  | K99: =IF(Entrées!I161="","",Entrées!I161) ->  | L99: =IF(Entrées!J161="","",Entrées!J161) ->  | M99: =IF(Entrées!K161="","",Entrées!K161) ->  | N99: =IF(Entrées!L161="","",Entrées!L161) ->  | O99: =IF(Entrées!M161="","",Entrées!M161) ->  | P99: =IF(Entrées!N161="","",Entrées!N161) ->  | Q99: =IF(Entrées!O161="","",Entrées!O161) ->  | S99: =Entrées!U161 -> FALSE
D100: =Entrées!C141 -> Produit chimique 18 | E100: km | G100: =IF(Entrées!E162="","",Entrées!E162) ->  | H100: =IF(Entrées!F162="","",Entrées!F162) ->  | I100: =IF(Entrées!G162="","",Entrées!G162) ->  | J100: =IF(Entrées!H162="","",Entrées!H162) ->  | K100: =IF(Entrées!I162="","",Entrées!I162) ->  | L100: =IF(Entrées!J162="","",Entrées!J162) ->  | M100: =IF(Entrées!K162="","",Entrées!K162) ->  | N100: =IF(Entrées!L162="","",Entrées!L162) ->  | O100: =IF(Entrées!M162="","",Entrées!M162) ->  | P100: =IF(Entrées!N162="","",Entrées!N162) ->  | Q100: =IF(Entrées!O162="","",Entrées!O162) ->  | S100: =Entrées!U162 -> FALSE
D101: =Entrées!C142 -> Produit chimique 19 | E101: km | G101: =IF(Entrées!E163="","",Entrées!E163) ->  | H101: =IF(Entrées!F163="","",Entrées!F163) ->  | I101: =IF(Entrées!G163="","",Entrées!G163) ->  | J101: =IF(Entrées!H163="","",Entrées!H163) ->  | K101: =IF(Entrées!I163="","",Entrées!I163) ->  | L101: =IF(Entrées!J163="","",Entrées!J163) ->  | M101: =IF(Entrées!K163="","",Entrées!K163) ->  | N101: =IF(Entrées!L163="","",Entrées!L163) ->  | O101: =IF(Entrées!M163="","",Entrées!M163) ->  | P101: =IF(Entrées!N163="","",Entrées!N163) ->  | Q101: =IF(Entrées!O163="","",Entrées!O163) ->  | S101: =Entrées!U163 -> FALSE
D102: =Entrées!C143 -> Produit chimique 20 | E102: km | G102: =IF(Entrées!E164="","",Entrées!E164) ->  | H102: =IF(Entrées!F164="","",Entrées!F164) ->  | I102: =IF(Entrées!G164="","",Entrées!G164) ->  | J102: =IF(Entrées!H164="","",Entrées!H164) ->  | K102: =IF(Entrées!I164="","",Entrées!I164) ->  | L102: =IF(Entrées!J164="","",Entrées!J164) ->  | M102: =IF(Entrées!K164="","",Entrées!K164) ->  | N102: =IF(Entrées!L164="","",Entrées!L164) ->  | O102: =IF(Entrées!M164="","",Entrées!M164) ->  | P102: =IF(Entrées!N164="","",Entrées!N164) ->  | Q102: =IF(Entrées!O164="","",Entrées!O164) ->  | S102: =Entrées!U164 -> FALSE
C103: Dtrain | D103: Distance parcourue par le train entre le fournisseur et le site (trajet aller-retour) | S103: =TRUE -> TRUE
D104: =Entrées!C124 -> Produit chimique 1 | E104: km | G104: =IF(Entrées!E166="","",Entrées!E166) ->  | H104: =IF(Entrées!F166="","",Entrées!F166) ->  | I104: =IF(Entrées!G166="","",Entrées!G166) ->  | J104: =IF(Entrées!H166="","",Entrées!H166) ->  | K104: =IF(Entrées!I166="","",Entrées!I166) ->  | L104: =IF(Entrées!J166="","",Entrées!J166) ->  | M104: =IF(Entrées!K166="","",Entrées!K166) ->  | N104: =IF(Entrées!L166="","",Entrées!L166) ->  | O104: =IF(Entrées!M166="","",Entrées!M166) ->  | P104: =IF(Entrées!N166="","",Entrées!N166) ->  | Q104: =IF(Entrées!O166="","",Entrées!O166) ->  | S104: =Entrées!U166 -> FALSE
D105: =Entrées!C125 -> Produit chimique 2 | E105: km | G105: =IF(Entrées!E167="","",Entrées!E167) ->  | H105: =IF(Entrées!F167="","",Entrées!F167) ->  | I105: =IF(Entrées!G167="","",Entrées!G167) ->  | J105: =IF(Entrées!H167="","",Entrées!H167) ->  | K105: =IF(Entrées!I167="","",Entrées!I167) ->  | L105: =IF(Entrées!J167="","",Entrées!J167) ->  | M105: =IF(Entrées!K167="","",Entrées!K167) ->  | N105: =IF(Entrées!L167="","",Entrées!L167) ->  | O105: =IF(Entrées!M167="","",Entrées!M167) ->  | P105: =IF(Entrées!N167="","",Entrées!N167) ->  | Q105: =IF(Entrées!O167="","",Entrées!O167) ->  | S105: =Entrées!U167 -> FALSE
D106: =Entrées!C126 -> Produit chimique 3 | E106: km | G106: =IF(Entrées!E168="","",Entrées!E168) ->  | H106: =IF(Entrées!F168="","",Entrées!F168) ->  | I106: =IF(Entrées!G168="","",Entrées!G168) ->  | J106: =IF(Entrées!H168="","",Entrées!H168) ->  | K106: =IF(Entrées!I168="","",Entrées!I168) ->  | L106: =IF(Entrées!J168="","",Entrées!J168) ->  | M106: =IF(Entrées!K168="","",Entrées!K168) ->  | N106: =IF(Entrées!L168="","",Entrées!L168) ->  | O106: =IF(Entrées!M168="","",Entrées!M168) ->  | P106: =IF(Entrées!N168="","",Entrées!N168) ->  | Q106: =IF(Entrées!O168="","",Entrées!O168) ->  | S106: =Entrées!U168 -> FALSE
D107: =Entrées!C127 -> Produit chimique 4 | E107: km | G107: =IF(Entrées!E169="","",Entrées!E169) ->  | H107: =IF(Entrées!F169="","",Entrées!F169) ->  | I107: =IF(Entrées!G169="","",Entrées!G169) ->  | J107: =IF(Entrées!H169="","",Entrées!H169) ->  | K107: =IF(Entrées!I169="","",Entrées!I169) ->  | L107: =IF(Entrées!J169="","",Entrées!J169) ->  | M107: =IF(Entrées!K169="","",Entrées!K169) ->  | N107: =IF(Entrées!L169="","",Entrées!L169) ->  | O107: =IF(Entrées!M169="","",Entrées!M169) ->  | P107: =IF(Entrées!N169="","",Entrées!N169) ->  | Q107: =IF(Entrées!O169="","",Entrées!O169) ->  | S107: =Entrées!U169 -> FALSE
D108: =Entrées!C128 -> Produit chimique 5 | E108: km | G108: =IF(Entrées!E170="","",Entrées!E170) ->  | H108: =IF(Entrées!F170="","",Entrées!F170) ->  | I108: =IF(Entrées!G170="","",Entrées!G170) ->  | J108: =IF(Entrées!H170="","",Entrées!H170) ->  | K108: =IF(Entrées!I170="","",Entrées!I170) ->  | L108: =IF(Entrées!J170="","",Entrées!J170) ->  | M108: =IF(Entrées!K170="","",Entrées!K170) ->  | N108: =IF(Entrées!L170="","",Entrées!L170) ->  | O108: =IF(Entrées!M170="","",Entrées!M170) ->  | P108: =IF(Entrées!N170="","",Entrées!N170) ->  | Q108: =IF(Entrées!O170="","",Entrées!O170) ->  | S108: =Entrées!U170 -> FALSE
D109: =Entrées!C129 -> Produit chimique 6 | E109: km | G109: =IF(Entrées!E171="","",Entrées!E171) ->  | H109: =IF(Entrées!F171="","",Entrées!F171) ->  | I109: =IF(Entrées!G171="","",Entrées!G171) ->  | J109: =IF(Entrées!H171="","",Entrées!H171) ->  | K109: =IF(Entrées!I171="","",Entrées!I171) ->  | L109: =IF(Entrées!J171="","",Entrées!J171) ->  | M109: =IF(Entrées!K171="","",Entrées!K171) ->  | N109: =IF(Entrées!L171="","",Entrées!L171) ->  | O109: =IF(Entrées!M171="","",Entrées!M171) ->  | P109: =IF(Entrées!N171="","",Entrées!N171) ->  | Q109: =IF(Entrées!O171="","",Entrées!O171) ->  | S109: =Entrées!U171 -> FALSE
D110: =Entrées!C130 -> Produit chimique 7 | E110: km | G110: =IF(Entrées!E172="","",Entrées!E172) ->  | H110: =IF(Entrées!F172="","",Entrées!F172) ->  | I110: =IF(Entrées!G172="","",Entrées!G172) ->  | J110: =IF(Entrées!H172="","",Entrées!H172) ->  | K110: =IF(Entrées!I172="","",Entrées!I172) ->  | L110: =IF(Entrées!J172="","",Entrées!J172) ->  | M110: =IF(Entrées!K172="","",Entrées!K172) ->  | N110: =IF(Entrées!L172="","",Entrées!L172) ->  | O110: =IF(Entrées!M172="","",Entrées!M172) ->  | P110: =IF(Entrées!N172="","",Entrées!N172) ->  | Q110: =IF(Entrées!O172="","",Entrées!O172) ->  | S110: =Entrées!U172 -> FALSE
D111: =Entrées!C131 -> Produit chimique 8 | E111: km | G111: =IF(Entrées!E173="","",Entrées!E173) ->  | H111: =IF(Entrées!F173="","",Entrées!F173) ->  | I111: =IF(Entrées!G173="","",Entrées!G173) ->  | J111: =IF(Entrées!H173="","",Entrées!H173) ->  | K111: =IF(Entrées!I173="","",Entrées!I173) ->  | L111: =IF(Entrées!J173="","",Entrées!J173) ->  | M111: =IF(Entrées!K173="","",Entrées!K173) ->  | N111: =IF(Entrées!L173="","",Entrées!L173) ->  | O111: =IF(Entrées!M173="","",Entrées!M173) ->  | P111: =IF(Entrées!N173="","",Entrées!N173) ->  | Q111: =IF(Entrées!O173="","",Entrées!O173) ->  | S111: =Entrées!U173 -> FALSE
D112: =Entrées!C132 -> Produit chimique 9 | E112: km | G112: =IF(Entrées!E174="","",Entrées!E174) ->  | H112: =IF(Entrées!F174="","",Entrées!F174) ->  | I112: =IF(Entrées!G174="","",Entrées!G174) ->  | J112: =IF(Entrées!H174="","",Entrées!H174) ->  | K112: =IF(Entrées!I174="","",Entrées!I174) ->  | L112: =IF(Entrées!J174="","",Entrées!J174) ->  | M112: =IF(Entrées!K174="","",Entrées!K174) ->  | N112: =IF(Entrées!L174="","",Entrées!L174) ->  | O112: =IF(Entrées!M174="","",Entrées!M174) ->  | P112: =IF(Entrées!N174="","",Entrées!N174) ->  | Q112: =IF(Entrées!O174="","",Entrées!O174) ->  | S112: =Entrées!U174 -> FALSE
D113: =Entrées!C133 -> Produit chimique 10 | E113: km | G113: =IF(Entrées!E175="","",Entrées!E175) ->  | H113: =IF(Entrées!F175="","",Entrées!F175) ->  | I113: =IF(Entrées!G175="","",Entrées!G175) ->  | J113: =IF(Entrées!H175="","",Entrées!H175) ->  | K113: =IF(Entrées!I175="","",Entrées!I175) ->  | L113: =IF(Entrées!J175="","",Entrées!J175) ->  | M113: =IF(Entrées!K175="","",Entrées!K175) ->  | N113: =IF(Entrées!L175="","",Entrées!L175) ->  | O113: =IF(Entrées!M175="","",Entrées!M175) ->  | P113: =IF(Entrées!N175="","",Entrées!N175) ->  | Q113: =IF(Entrées!O175="","",Entrées!O175) ->  | S113: =Entrées!U175 -> FALSE
D114: =Entrées!C134 -> Produit chimique 11 | E114: km | G114: =IF(Entrées!E176="","",Entrées!E176) ->  | H114: =IF(Entrées!F176="","",Entrées!F176) ->  | I114: =IF(Entrées!G176="","",Entrées!G176) ->  | J114: =IF(Entrées!H176="","",Entrées!H176) ->  | K114: =IF(Entrées!I176="","",Entrées!I176) ->  | L114: =IF(Entrées!J176="","",Entrées!J176) ->  | M114: =IF(Entrées!K176="","",Entrées!K176) ->  | N114: =IF(Entrées!L176="","",Entrées!L176) ->  | O114: =IF(Entrées!M176="","",Entrées!M176) ->  | P114: =IF(Entrées!N176="","",Entrées!N176) ->  | Q114: =IF(Entrées!O176="","",Entrées!O176) ->  | S114: =Entrées!U176 -> FALSE
D115: =Entrées!C135 -> Produit chimique 12 | E115: km | G115: =IF(Entrées!E177="","",Entrées!E177) ->  | H115: =IF(Entrées!F177="","",Entrées!F177) ->  | I115: =IF(Entrées!G177="","",Entrées!G177) ->  | J115: =IF(Entrées!H177="","",Entrées!H177) ->  | K115: =IF(Entrées!I177="","",Entrées!I177) ->  | L115: =IF(Entrées!J177="","",Entrées!J177) ->  | M115: =IF(Entrées!K177="","",Entrées!K177) ->  | N115: =IF(Entrées!L177="","",Entrées!L177) ->  | O115: =IF(Entrées!M177="","",Entrées!M177) ->  | P115: =IF(Entrées!N177="","",Entrées!N177) ->  | Q115: =IF(Entrées!O177="","",Entrées!O177) ->  | S115: =Entrées!U177 -> FALSE
D116: =Entrées!C136 -> Produit chimique 13 | E116: km | G116: =IF(Entrées!E178="","",Entrées!E178) ->  | H116: =IF(Entrées!F178="","",Entrées!F178) ->  | I116: =IF(Entrées!G178="","",Entrées!G178) ->  | J116: =IF(Entrées!H178="","",Entrées!H178) ->  | K116: =IF(Entrées!I178="","",Entrées!I178) ->  | L116: =IF(Entrées!J178="","",Entrées!J178) ->  | M116: =IF(Entrées!K178="","",Entrées!K178) ->  | N116: =IF(Entrées!L178="","",Entrées!L178) ->  | O116: =IF(Entrées!M178="","",Entrées!M178) ->  | P116: =IF(Entrées!N178="","",Entrées!N178) ->  | Q116: =IF(Entrées!O178="","",Entrées!O178) ->  | S116: =Entrées!U178 -> FALSE
D117: =Entrées!C137 -> Produit chimique 14 | E117: km | G117: =IF(Entrées!E179="","",Entrées!E179) ->  | H117: =IF(Entrées!F179="","",Entrées!F179) ->  | I117: =IF(Entrées!G179="","",Entrées!G179) ->  | J117: =IF(Entrées!H179="","",Entrées!H179) ->  | K117: =IF(Entrées!I179="","",Entrées!I179) ->  | L117: =IF(Entrées!J179="","",Entrées!J179) ->  | M117: =IF(Entrées!K179="","",Entrées!K179) ->  | N117: =IF(Entrées!L179="","",Entrées!L179) ->  | O117: =IF(Entrées!M179="","",Entrées!M179) ->  | P117: =IF(Entrées!N179="","",Entrées!N179) ->  | Q117: =IF(Entrées!O179="","",Entrées!O179) ->  | S117: =Entrées!U179 -> FALSE
D118: =Entrées!C138 -> Produit chimique 15 | E118: km | G118: =IF(Entrées!E180="","",Entrées!E180) ->  | H118: =IF(Entrées!F180="","",Entrées!F180) ->  | I118: =IF(Entrées!G180="","",Entrées!G180) ->  | J118: =IF(Entrées!H180="","",Entrées!H180) ->  | K118: =IF(Entrées!I180="","",Entrées!I180) ->  | L118: =IF(Entrées!J180="","",Entrées!J180) ->  | M118: =IF(Entrées!K180="","",Entrées!K180) ->  | N118: =IF(Entrées!L180="","",Entrées!L180) ->  | O118: =IF(Entrées!M180="","",Entrées!M180) ->  | P118: =IF(Entrées!N180="","",Entrées!N180) ->  | Q118: =IF(Entrées!O180="","",Entrées!O180) ->  | S118: =Entrées!U180 -> FALSE
D119: =Entrées!C139 -> Produit chimique 16 | E119: km | G119: =IF(Entrées!E181="","",Entrées!E181) ->  | H119: =IF(Entrées!F181="","",Entrées!F181) ->  | I119: =IF(Entrées!G181="","",Entrées!G181) ->  | J119: =IF(Entrées!H181="","",Entrées!H181) ->  | K119: =IF(Entrées!I181="","",Entrées!I181) ->  | L119: =IF(Entrées!J181="","",Entrées!J181) ->  | M119: =IF(Entrées!K181="","",Entrées!K181) ->  | N119: =IF(Entrées!L181="","",Entrées!L181) ->  | O119: =IF(Entrées!M181="","",Entrées!M181) ->  | P119: =IF(Entrées!N181="","",Entrées!N181) ->  | Q119: =IF(Entrées!O181="","",Entrées!O181) ->  | S119: =Entrées!U181 -> FALSE
D120: =Entrées!C140 -> Produit chimique 17 | E120: km | G120: =IF(Entrées!E182="","",Entrées!E182) ->  | H120: =IF(Entrées!F182="","",Entrées!F182) ->  | I120: =IF(Entrées!G182="","",Entrées!G182) ->  | J120: =IF(Entrées!H182="","",Entrées!H182) ->  | K120: =IF(Entrées!I182="","",Entrées!I182) ->  | L120: =IF(Entrées!J182="","",Entrées!J182) ->  | M120: =IF(Entrées!K182="","",Entrées!K182) ->  | N120: =IF(Entrées!L182="","",Entrées!L182) ->  | O120: =IF(Entrées!M182="","",Entrées!M182) ->  | P120: =IF(Entrées!N182="","",Entrées!N182) ->  | Q120: =IF(Entrées!O182="","",Entrées!O182) ->  | S120: =Entrées!U182 -> FALSE
D121: =Entrées!C141 -> Produit chimique 18 | E121: km | G121: =IF(Entrées!E183="","",Entrées!E183) ->  | H121: =IF(Entrées!F183="","",Entrées!F183) ->  | I121: =IF(Entrées!G183="","",Entrées!G183) ->  | J121: =IF(Entrées!H183="","",Entrées!H183) ->  | K121: =IF(Entrées!I183="","",Entrées!I183) ->  | L121: =IF(Entrées!J183="","",Entrées!J183) ->  | M121: =IF(Entrées!K183="","",Entrées!K183) ->  | N121: =IF(Entrées!L183="","",Entrées!L183) ->  | O121: =IF(Entrées!M183="","",Entrées!M183) ->  | P121: =IF(Entrées!N183="","",Entrées!N183) ->  | Q121: =IF(Entrées!O183="","",Entrées!O183) ->  | S121: =Entrées!U183 -> FALSE
D122: =Entrées!C142 -> Produit chimique 19 | E122: km | G122: =IF(Entrées!E184="","",Entrées!E184) ->  | H122: =IF(Entrées!F184="","",Entrées!F184) ->  | I122: =IF(Entrées!G184="","",Entrées!G184) ->  | J122: =IF(Entrées!H184="","",Entrées!H184) ->  | K122: =IF(Entrées!I184="","",Entrées!I184) ->  | L122: =IF(Entrées!J184="","",Entrées!J184) ->  | M122: =IF(Entrées!K184="","",Entrées!K184) ->  | N122: =IF(Entrées!L184="","",Entrées!L184) ->  | O122: =IF(Entrées!M184="","",Entrées!M184) ->  | P122: =IF(Entrées!N184="","",Entrées!N184) ->  | Q122: =IF(Entrées!O184="","",Entrées!O184) ->  | S122: =Entrées!U184 -> FALSE
D123: =Entrées!C143 -> Produit chimique 20 | E123: km | G123: =IF(Entrées!E185="","",Entrées!E185) ->  | H123: =IF(Entrées!F185="","",Entrées!F185) ->  | I123: =IF(Entrées!G185="","",Entrées!G185) ->  | J123: =IF(Entrées!H185="","",Entrées!H185) ->  | K123: =IF(Entrées!I185="","",Entrées!I185) ->  | L123: =IF(Entrées!J185="","",Entrées!J185) ->  | M123: =IF(Entrées!K185="","",Entrées!K185) ->  | N123: =IF(Entrées!L185="","",Entrées!L185) ->  | O123: =IF(Entrées!M185="","",Entrées!M185) ->  | P123: =IF(Entrées!N185="","",Entrées!N185) ->  | Q123: =IF(Entrées!O185="","",Entrées!O185) ->  | S123: =Entrées!U185 -> FALSE
C124: Dsea | D124: Distance parcourue par fret maritime entre le fournisseur et le site (trajet aller-retour) | S124: =TRUE -> TRUE
D125: =Entrées!C124 -> Produit chimique 1 | E125: km | G125: =IF(Entrées!E187="","",Entrées!E187) ->  | H125: =IF(Entrées!F187="","",Entrées!F187) ->  | I125: =IF(Entrées!G187="","",Entrées!G187) ->  | J125: =IF(Entrées!H187="","",Entrées!H187) ->  | K125: =IF(Entrées!I187="","",Entrées!I187) ->  | L125: =IF(Entrées!J187="","",Entrées!J187) ->  | M125: =IF(Entrées!K187="","",Entrées!K187) ->  | N125: =IF(Entrées!L187="","",Entrées!L187) ->  | O125: =IF(Entrées!M187="","",Entrées!M187) ->  | P125: =IF(Entrées!N187="","",Entrées!N187) ->  | Q125: =IF(Entrées!O187="","",Entrées!O187) ->  | S125: =Entrées!U187 -> FALSE
D126: =Entrées!C125 -> Produit chimique 2 | E126: km | G126: =IF(Entrées!E188="","",Entrées!E188) ->  | H126: =IF(Entrées!F188="","",Entrées!F188) ->  | I126: =IF(Entrées!G188="","",Entrées!G188) ->  | J126: =IF(Entrées!H188="","",Entrées!H188) ->  | K126: =IF(Entrées!I188="","",Entrées!I188) ->  | L126: =IF(Entrées!J188="","",Entrées!J188) ->  | M126: =IF(Entrées!K188="","",Entrées!K188) ->  | N126: =IF(Entrées!L188="","",Entrées!L188) ->  | O126: =IF(Entrées!M188="","",Entrées!M188) ->  | P126: =IF(Entrées!N188="","",Entrées!N188) ->  | Q126: =IF(Entrées!O188="","",Entrées!O188) ->  | S126: =Entrées!U188 -> FALSE
D127: =Entrées!C126 -> Produit chimique 3 | E127: km | G127: =IF(Entrées!E189="","",Entrées!E189) ->  | H127: =IF(Entrées!F189="","",Entrées!F189) ->  | I127: =IF(Entrées!G189="","",Entrées!G189) ->  | J127: =IF(Entrées!H189="","",Entrées!H189) ->  | K127: =IF(Entrées!I189="","",Entrées!I189) ->  | L127: =IF(Entrées!J189="","",Entrées!J189) ->  | M127: =IF(Entrées!K189="","",Entrées!K189) ->  | N127: =IF(Entrées!L189="","",Entrées!L189) ->  | O127: =IF(Entrées!M189="","",Entrées!M189) ->  | P127: =IF(Entrées!N189="","",Entrées!N189) ->  | Q127: =IF(Entrées!O189="","",Entrées!O189) ->  | S127: =Entrées!U189 -> FALSE
D128: =Entrées!C127 -> Produit chimique 4 | E128: km | G128: =IF(Entrées!E190="","",Entrées!E190) ->  | H128: =IF(Entrées!F190="","",Entrées!F190) ->  | I128: =IF(Entrées!G190="","",Entrées!G190) ->  | J128: =IF(Entrées!H190="","",Entrées!H190) ->  | K128: =IF(Entrées!I190="","",Entrées!I190) ->  | L128: =IF(Entrées!J190="","",Entrées!J190) ->  | M128: =IF(Entrées!K190="","",Entrées!K190) ->  | N128: =IF(Entrées!L190="","",Entrées!L190) ->  | O128: =IF(Entrées!M190="","",Entrées!M190) ->  | P128: =IF(Entrées!N190="","",Entrées!N190) ->  | Q128: =IF(Entrées!O190="","",Entrées!O190) ->  | S128: =Entrées!U190 -> FALSE
D129: =Entrées!C128 -> Produit chimique 5 | E129: km | G129: =IF(Entrées!E191="","",Entrées!E191) ->  | H129: =IF(Entrées!F191="","",Entrées!F191) ->  | I129: =IF(Entrées!G191="","",Entrées!G191) ->  | J129: =IF(Entrées!H191="","",Entrées!H191) ->  | K129: =IF(Entrées!I191="","",Entrées!I191) ->  | L129: =IF(Entrées!J191="","",Entrées!J191) ->  | M129: =IF(Entrées!K191="","",Entrées!K191) ->  | N129: =IF(Entrées!L191="","",Entrées!L191) ->  | O129: =IF(Entrées!M191="","",Entrées!M191) ->  | P129: =IF(Entrées!N191="","",Entrées!N191) ->  | Q129: =IF(Entrées!O191="","",Entrées!O191) ->  | S129: =Entrées!U191 -> FALSE
D130: =Entrées!C129 -> Produit chimique 6 | E130: km | G130: =IF(Entrées!E192="","",Entrées!E192) ->  | H130: =IF(Entrées!F192="","",Entrées!F192) ->  | I130: =IF(Entrées!G192="","",Entrées!G192) ->  | J130: =IF(Entrées!H192="","",Entrées!H192) ->  | K130: =IF(Entrées!I192="","",Entrées!I192) ->  | L130: =IF(Entrées!J192="","",Entrées!J192) ->  | M130: =IF(Entrées!K192="","",Entrées!K192) ->  | N130: =IF(Entrées!L192="","",Entrées!L192) ->  | O130: =IF(Entrées!M192="","",Entrées!M192) ->  | P130: =IF(Entrées!N192="","",Entrées!N192) ->  | Q130: =IF(Entrées!O192="","",Entrées!O192) ->  | S130: =Entrées!U192 -> FALSE
D131: =Entrées!C130 -> Produit chimique 7 | E131: km | G131: =IF(Entrées!E193="","",Entrées!E193) ->  | H131: =IF(Entrées!F193="","",Entrées!F193) ->  | I131: =IF(Entrées!G193="","",Entrées!G193) ->  | J131: =IF(Entrées!H193="","",Entrées!H193) ->  | K131: =IF(Entrées!I193="","",Entrées!I193) ->  | L131: =IF(Entrées!J193="","",Entrées!J193) ->  | M131: =IF(Entrées!K193="","",Entrées!K193) ->  | N131: =IF(Entrées!L193="","",Entrées!L193) ->  | O131: =IF(Entrées!M193="","",Entrées!M193) ->  | P131: =IF(Entrées!N193="","",Entrées!N193) ->  | Q131: =IF(Entrées!O193="","",Entrées!O193) ->  | S131: =Entrées!U193 -> FALSE
D132: =Entrées!C131 -> Produit chimique 8 | E132: km | G132: =IF(Entrées!E194="","",Entrées!E194) ->  | H132: =IF(Entrées!F194="","",Entrées!F194) ->  | I132: =IF(Entrées!G194="","",Entrées!G194) ->  | J132: =IF(Entrées!H194="","",Entrées!H194) ->  | K132: =IF(Entrées!I194="","",Entrées!I194) ->  | L132: =IF(Entrées!J194="","",Entrées!J194) ->  | M132: =IF(Entrées!K194="","",Entrées!K194) ->  | N132: =IF(Entrées!L194="","",Entrées!L194) ->  | O132: =IF(Entrées!M194="","",Entrées!M194) ->  | P132: =IF(Entrées!N194="","",Entrées!N194) ->  | Q132: =IF(Entrées!O194="","",Entrées!O194) ->  | S132: =Entrées!U194 -> FALSE
D133: =Entrées!C132 -> Produit chimique 9 | E133: km | G133: =IF(Entrées!E195="","",Entrées!E195) ->  | H133: =IF(Entrées!F195="","",Entrées!F195) ->  | I133: =IF(Entrées!G195="","",Entrées!G195) ->  | J133: =IF(Entrées!H195="","",Entrées!H195) ->  | K133: =IF(Entrées!I195="","",Entrées!I195) ->  | L133: =IF(Entrées!J195="","",Entrées!J195) ->  | M133: =IF(Entrées!K195="","",Entrées!K195) ->  | N133: =IF(Entrées!L195="","",Entrées!L195) ->  | O133: =IF(Entrées!M195="","",Entrées!M195) ->  | P133: =IF(Entrées!N195="","",Entrées!N195) ->  | Q133: =IF(Entrées!O195="","",Entrées!O195) ->  | S133: =Entrées!U195 -> FALSE
D134: =Entrées!C133 -> Produit chimique 10 | E134: km | G134: =IF(Entrées!E196="","",Entrées!E196) ->  | H134: =IF(Entrées!F196="","",Entrées!F196) ->  | I134: =IF(Entrées!G196="","",Entrées!G196) ->  | J134: =IF(Entrées!H196="","",Entrées!H196) ->  | K134: =IF(Entrées!I196="","",Entrées!I196) ->  | L134: =IF(Entrées!J196="","",Entrées!J196) ->  | M134: =IF(Entrées!K196="","",Entrées!K196) ->  | N134: =IF(Entrées!L196="","",Entrées!L196) ->  | O134: =IF(Entrées!M196="","",Entrées!M196) ->  | P134: =IF(Entrées!N196="","",Entrées!N196) ->  | Q134: =IF(Entrées!O196="","",Entrées!O196) ->  | S134: =Entrées!U196 -> FALSE
D135: =Entrées!C134 -> Produit chimique 11 | E135: km | G135: =IF(Entrées!E197="","",Entrées!E197) ->  | H135: =IF(Entrées!F197="","",Entrées!F197) ->  | I135: =IF(Entrées!G197="","",Entrées!G197) ->  | J135: =IF(Entrées!H197="","",Entrées!H197) ->  | K135: =IF(Entrées!I197="","",Entrées!I197) ->  | L135: =IF(Entrées!J197="","",Entrées!J197) ->  | M135: =IF(Entrées!K197="","",Entrées!K197) ->  | N135: =IF(Entrées!L197="","",Entrées!L197) ->  | O135: =IF(Entrées!M197="","",Entrées!M197) ->  | P135: =IF(Entrées!N197="","",Entrées!N197) ->  | Q135: =IF(Entrées!O197="","",Entrées!O197) ->  | S135: =Entrées!U197 -> FALSE
D136: =Entrées!C135 -> Produit chimique 12 | E136: km | G136: =IF(Entrées!E198="","",Entrées!E198) ->  | H136: =IF(Entrées!F198="","",Entrées!F198) ->  | I136: =IF(Entrées!G198="","",Entrées!G198) ->  | J136: =IF(Entrées!H198="","",Entrées!H198) ->  | K136: =IF(Entrées!I198="","",Entrées!I198) ->  | L136: =IF(Entrées!J198="","",Entrées!J198) ->  | M136: =IF(Entrées!K198="","",Entrées!K198) ->  | N136: =IF(Entrées!L198="","",Entrées!L198) ->  | O136: =IF(Entrées!M198="","",Entrées!M198) ->  | P136: =IF(Entrées!N198="","",Entrées!N198) ->  | Q136: =IF(Entrées!O198="","",Entrées!O198) ->  | S136: =Entrées!U198 -> FALSE
D137: =Entrées!C136 -> Produit chimique 13 | E137: km | G137: =IF(Entrées!E199="","",Entrées!E199) ->  | H137: =IF(Entrées!F199="","",Entrées!F199) ->  | I137: =IF(Entrées!G199="","",Entrées!G199) ->  | J137: =IF(Entrées!H199="","",Entrées!H199) ->  | K137: =IF(Entrées!I199="","",Entrées!I199) ->  | L137: =IF(Entrées!J199="","",Entrées!J199) ->  | M137: =IF(Entrées!K199="","",Entrées!K199) ->  | N137: =IF(Entrées!L199="","",Entrées!L199) ->  | O137: =IF(Entrées!M199="","",Entrées!M199) ->  | P137: =IF(Entrées!N199="","",Entrées!N199) ->  | Q137: =IF(Entrées!O199="","",Entrées!O199) ->  | S137: =Entrées!U199 -> FALSE
D138: =Entrées!C137 -> Produit chimique 14 | E138: km | G138: =IF(Entrées!E200="","",Entrées!E200) ->  | H138: =IF(Entrées!F200="","",Entrées!F200) ->  | I138: =IF(Entrées!G200="","",Entrées!G200) ->  | J138: =IF(Entrées!H200="","",Entrées!H200) ->  | K138: =IF(Entrées!I200="","",Entrées!I200) ->  | L138: =IF(Entrées!J200="","",Entrées!J200) ->  | M138: =IF(Entrées!K200="","",Entrées!K200) ->  | N138: =IF(Entrées!L200="","",Entrées!L200) ->  | O138: =IF(Entrées!M200="","",Entrées!M200) ->  | P138: =IF(Entrées!N200="","",Entrées!N200) ->  | Q138: =IF(Entrées!O200="","",Entrées!O200) ->  | S138: =Entrées!U200 -> FALSE
D139: =Entrées!C138 -> Produit chimique 15 | E139: km | G139: =IF(Entrées!E201="","",Entrées!E201) ->  | H139: =IF(Entrées!F201="","",Entrées!F201) ->  | I139: =IF(Entrées!G201="","",Entrées!G201) ->  | J139: =IF(Entrées!H201="","",Entrées!H201) ->  | K139: =IF(Entrées!I201="","",Entrées!I201) ->  | L139: =IF(Entrées!J201="","",Entrées!J201) ->  | M139: =IF(Entrées!K201="","",Entrées!K201) ->  | N139: =IF(Entrées!L201="","",Entrées!L201) ->  | O139: =IF(Entrées!M201="","",Entrées!M201) ->  | P139: =IF(Entrées!N201="","",Entrées!N201) ->  | Q139: =IF(Entrées!O201="","",Entrées!O201) ->  | S139: =Entrées!U201 -> FALSE
D140: =Entrées!C139 -> Produit chimique 16 | E140: km | G140: =IF(Entrées!E202="","",Entrées!E202) ->  | H140: =IF(Entrées!F202="","",Entrées!F202) ->  | I140: =IF(Entrées!G202="","",Entrées!G202) ->  | J140: =IF(Entrées!H202="","",Entrées!H202) ->  | K140: =IF(Entrées!I202="","",Entrées!I202) ->  | L140: =IF(Entrées!J202="","",Entrées!J202) ->  | M140: =IF(Entrées!K202="","",Entrées!K202) ->  | N140: =IF(Entrées!L202="","",Entrées!L202) ->  | O140: =IF(Entrées!M202="","",Entrées!M202) ->  | P140: =IF(Entrées!N202="","",Entrées!N202) ->  | Q140: =IF(Entrées!O202="","",Entrées!O202) ->  | S140: =Entrées!U202 -> FALSE
D141: =Entrées!C140 -> Produit chimique 17 | E141: km | G141: =IF(Entrées!E203="","",Entrées!E203) ->  | H141: =IF(Entrées!F203="","",Entrées!F203) ->  | I141: =IF(Entrées!G203="","",Entrées!G203) ->  | J141: =IF(Entrées!H203="","",Entrées!H203) ->  | K141: =IF(Entrées!I203="","",Entrées!I203) ->  | L141: =IF(Entrées!J203="","",Entrées!J203) ->  | M141: =IF(Entrées!K203="","",Entrées!K203) ->  | N141: =IF(Entrées!L203="","",Entrées!L203) ->  | O141: =IF(Entrées!M203="","",Entrées!M203) ->  | P141: =IF(Entrées!N203="","",Entrées!N203) ->  | Q141: =IF(Entrées!O203="","",Entrées!O203) ->  | S141: =Entrées!U203 -> FALSE
D142: =Entrées!C141 -> Produit chimique 18 | E142: km | G142: =IF(Entrées!E204="","",Entrées!E204) ->  | H142: =IF(Entrées!F204="","",Entrées!F204) ->  | I142: =IF(Entrées!G204="","",Entrées!G204) ->  | J142: =IF(Entrées!H204="","",Entrées!H204) ->  | K142: =IF(Entrées!I204="","",Entrées!I204) ->  | L142: =IF(Entrées!J204="","",Entrées!J204) ->  | M142: =IF(Entrées!K204="","",Entrées!K204) ->  | N142: =IF(Entrées!L204="","",Entrées!L204) ->  | O142: =IF(Entrées!M204="","",Entrées!M204) ->  | P142: =IF(Entrées!N204="","",Entrées!N204) ->  | Q142: =IF(Entrées!O204="","",Entrées!O204) ->  | S142: =Entrées!U204 -> FALSE
D143: =Entrées!C142 -> Produit chimique 19 | E143: km | G143: =IF(Entrées!E205="","",Entrées!E205) ->  | H143: =IF(Entrées!F205="","",Entrées!F205) ->  | I143: =IF(Entrées!G205="","",Entrées!G205) ->  | J143: =IF(Entrées!H205="","",Entrées!H205) ->  | K143: =IF(Entrées!I205="","",Entrées!I205) ->  | L143: =IF(Entrées!J205="","",Entrées!J205) ->  | M143: =IF(Entrées!K205="","",Entrées!K205) ->  | N143: =IF(Entrées!L205="","",Entrées!L205) ->  | O143: =IF(Entrées!M205="","",Entrées!M205) ->  | P143: =IF(Entrées!N205="","",Entrées!N205) ->  | Q143: =IF(Entrées!O205="","",Entrées!O205) ->  | S143: =Entrées!U205 -> FALSE
D144: =Entrées!C143 -> Produit chimique 20 | E144: km | G144: =IF(Entrées!E206="","",Entrées!E206) ->  | H144: =IF(Entrées!F206="","",Entrées!F206) ->  | I144: =IF(Entrées!G206="","",Entrées!G206) ->  | J144: =IF(Entrées!H206="","",Entrées!H206) ->  | K144: =IF(Entrées!I206="","",Entrées!I206) ->  | L144: =IF(Entrées!J206="","",Entrées!J206) ->  | M144: =IF(Entrées!K206="","",Entrées!K206) ->  | N144: =IF(Entrées!L206="","",Entrées!L206) ->  | O144: =IF(Entrées!M206="","",Entrées!M206) ->  | P144: =IF(Entrées!N206="","",Entrées!N206) ->  | Q144: =IF(Entrées!O206="","",Entrées!O206) ->  | S144: =Entrées!U206 -> FALSE
C145: Echem,t | D145: Émissions du transport de produits chimiques | S145: =TRUE -> TRUE
D146: =Entrées!C124 -> Produit chimique 1 | E146: tCO2éq./an | G146: =IF(G83="",0,(G83*$F$77*G31/1000000))+IF(G125="",0,(G125*$F$79*G31/1000000))+IF(G104="",0,(G104*$F$78*G31/1000000)) -> 0 | H146: =IF(H83="",0,(H83*$F$77*H31/1000000))+IF(H125="",0,(H125*$F$79*H31/1000000))+IF(H104="",0,(H104*$F$78*H31/1000000)) -> 0 | I146: 0 | J146: 0 | K146: 0 | L146: 0 | M146: 0 | N146: 0 | O146: 0 | P146: 0 | Q146: 0 | S146: =Entrées!T124 -> FALSE
D147: =Entrées!C125 -> Produit chimique 2 | E147: tCO2éq./an | G147: =IF(G84="",0,(G84*$F$77*G32/1000000))+IF(G126="",0,(G126*$F$79*G32/1000000))+IF(G105="",0,(G105*$F$78*G32/1000000)) -> 0 | H147: 0 | I147: 0 | J147: 0 | K147: 0 | L147: 0 | M147: 0 | N147: 0 | O147: 0 | P147: 0 | Q147: 0 | S147: =Entrées!T125 -> FALSE
D148: =Entrées!C126 -> Produit chimique 3 | E148: tCO2éq./an | G148: 0 | H148: 0 | I148: 0 | J148: 0 | K148: 0 | L148: 0 | M148: 0 | N148: 0 | O148: 0 | P148: 0 | Q148: 0 | S148: =Entrées!T126 -> FALSE
D149: =Entrées!C127 -> Produit chimique 4 | E149: tCO2éq./an | G149: 0 | H149: 0 | I149: 0 | J149: 0 | K149: 0 | L149: 0 | M149: 0 | N149: 0 | O149: 0 | P149: 0 | Q149: 0 | S149: =Entrées!T127 -> FALSE
D150: =Entrées!C128 -> Produit chimique 5 | E150: tCO2éq./an | G150: 0 | H150: 0 | I150: 0 | J150: 0 | K150: 0 | L150: 0 | M150: 0 | N150: 0 | O150: 0 | P150: 0 | Q150: 0 | S150: =Entrées!T128 -> FALSE
D151: =Entrées!C129 -> Produit chimique 6 | E151: tCO2éq./an | G151: 0 | H151: 0 | I151: 0 | J151: 0 | K151: 0 | L151: 0 | M151: 0 | N151: 0 | O151: 0 | P151: 0 | Q151: 0 | S151: =Entrées!T129 -> FALSE
D152: =Entrées!C130 -> Produit chimique 7 | E152: tCO2éq./an | G152: 0 | H152: 0 | I152: 0 | J152: 0 | K152: 0 | L152: 0 | M152: 0 | N152: 0 | O152: 0 | P152: 0 | Q152: 0 | S152: =Entrées!T130 -> FALSE
D153: =Entrées!C131 -> Produit chimique 8 | E153: tCO2éq./an | G153: 0 | H153: 0 | I153: 0 | J153: 0 | K153: 0 | L153: 0 | M153: 0 | N153: 0 | O153: 0 | P153: 0 | Q153: 0 | S153: =Entrées!T131 -> FALSE
D154: =Entrées!C132 -> Produit chimique 9 | E154: tCO2éq./an | G154: 0 | H154: 0 | I154: 0 | J154: 0 | K154: 0 | L154: 0 | M154: 0 | N154: 0 | O154: 0 | P154: 0 | Q154: 0 | S154: =Entrées!T132 -> FALSE
D155: =Entrées!C133 -> Produit chimique 10 | E155: tCO2éq./an | G155: 0 | H155: 0 | I155: 0 | J155: 0 | K155: 0 | L155: 0 | M155: 0 | N155: 0 | O155: 0 | P155: 0 | Q155: 0 | S155: =Entrées!T133 -> FALSE
D156: =Entrées!C134 -> Produit chimique 11 | E156: tCO2éq./an | G156: 0 | H156: 0 | I156: 0 | J156: 0 | K156: 0 | L156: 0 | M156: 0 | N156: 0 | O156: 0 | P156: 0 | Q156: 0 | S156: =Entrées!T134 -> FALSE
D157: =Entrées!C135 -> Produit chimique 12 | E157: tCO2éq./an | G157: 0 | H157: 0 | I157: 0 | J157: 0 | K157: 0 | L157: 0 | M157: 0 | N157: 0 | O157: 0 | P157: 0 | Q157: 0 | S157: =Entrées!T135 -> FALSE
D158: =Entrées!C136 -> Produit chimique 13 | E158: tCO2éq./an | G158: 0 | H158: 0 | I158: 0 | J158: 0 | K158: 0 | L158: 0 | M158: 0 | N158: 0 | O158: 0 | P158: 0 | Q158: 0 | S158: =Entrées!T136 -> FALSE
D159: =Entrées!C137 -> Produit chimique 14 | E159: tCO2éq./an | G159: 0 | H159: 0 | I159: 0 | J159: 0 | K159: 0 | L159: 0 | M159: 0 | N159: 0 | O159: 0 | P159: 0 | Q159: 0 | S159: =Entrées!T137 -> FALSE
D160: =Entrées!C138 -> Produit chimique 15 | E160: tCO2éq./an | G160: 0 | H160: 0 | I160: 0 | J160: 0 | K160: 0 | L160: 0 | M160: 0 | N160: 0 | O160: 0 | P160: 0 | Q160: 0 | S160: =Entrées!T138 -> FALSE
D161: =Entrées!C139 -> Produit chimique 16 | E161: tCO2éq./an | G161: 0 | H161: 0 | I161: 0 | J161: 0 | K161: 0 | L161: 0 | M161: 0 | N161: 0 | O161: 0 | P161: 0 | Q161: 0 | S161: =Entrées!T139 -> FALSE
D162: =Entrées!C140 -> Produit chimique 17 | E162: tCO2éq./an | G162: 0 | H162: 0 | I162: 0 | J162: 0 | K162: 0 | L162: 0 | M162: 0 | N162: 0 | O162: 0 | P162: 0 | Q162: 0 | S162: =Entrées!T140 -> FALSE
D163: =Entrées!C141 -> Produit chimique 18 | E163: tCO2éq./an | G163: 0 | H163: 0 | I163: 0 | J163: 0 | K163: 0 | L163: 0 | M163: 0 | N163: 0 | O163: 0 | P163: 0 | Q163: 0 | S163: =Entrées!T141 -> FALSE
D164: =Entrées!C142 -> Produit chimique 19 | E164: tCO2éq./an | G164: 0 | H164: 0 | I164: 0 | J164: 0 | K164: 0 | L164: 0 | M164: 0 | N164: 0 | O164: 0 | P164: 0 | Q164: 0 | S164: =Entrées!T142 -> FALSE
D165: =Entrées!C143 -> Produit chimique 20 | E165: tCO2éq./an | G165: 0 | H165: 0 | I165: 0 | J165: 0 | K165: 0 | L165: 0 | M165: 0 | N165: 0 | O165: 0 | P165: 0 | Q165: 0 | S165: =Entrées!T143 -> FALSE
D166: Total des émissions du transport de produits chimiques | E166: tCO2éq./an | F166: =SUM(G166:Q166) -> 0 | G166: =SUM(G146:G165) -> 0 | H166: =SUM(H146:H165) -> 0 | I166: 0 | J166: 0 | K166: 0 | L166: 0 | M166: 0 | N166: 0 | O166: 0 | P166: 0 | Q166: 0 | S166: =TRUE -> TRUE
